Workbook

Sheet Comp Depr Rates Sept 07 (hidden)
B2: ACCOUNT | E2: ACQUISITION | F2: DEPRECIATION | G2: CURRENT | I2: PROPOSED
B3: NUMBER | C3: DESCRIPTION | E3: VALUE | F3: EXPENSE | G3: RATE | I3: RATE
A6: COMMON PLANT
B8: C390 | C8: STRUCTURES & IMPROVEMENTS | E8: =24169908.79+6691875.73+4817438.67 -> 35679223.19 | F8: =767991.49+212162.17+159051.27 -> 1139204.93 | G8: 3.17 | I8: 5.27
B9: C391.1 | C9: OFFICE FURNITURE & EQUIP > $20K | E9: =1264710.76+27763.32 -> 1292474.08 | F9: =51963.49+1143.85 -> 53107.34 | G9: 4.12 | I9: 5
B10: C391.1 | C10: OFFICE FURNITURE & EQUIP < $20K | E10: =591341.71+6407314.77 -> 6998656.48 | F10: =20199.13+226681.03 -> 246880.16 | G10: 3.57 | I10: 5
B11: C391.1 | C11: OFFICE FURNITURE & EQUIP - MODULAR | E11: 3171926.71 | F11: 149267.13 | G11: 4.71 | I11: 5
B12: C391.2 | C12: COMPUTER EQUIPMENT > $20K | E12: =247237.5+14142798.87 -> 14390036.37 | F12: =30981.73+1516897.5 -> 1547879.23 | G12: 13.1 | I12: 20
B13: C391.2 | C13: COMPUTER EQUIPMENT < $20K | E13: 34301041.63 | F13: 1595469.3 | G13: 5.26 | I13: 20
B14: C392 | C14: TRANSPORTATION EQUIPMENT | E14: 34354.14 | F14: 3123.1 | G14: 9.09 | I14: 9 | J14: to cc 300
B15: C393 | C15: STORES EQUIPMENT | E15: 38901.93 | F15: 1519.63 | G15: 3.12 | I15: 5
B16: C394 | C16: TOOLS, SHOP & GARAGE EQUIP. > $20K | E16: 799876.74 | F16: 17862.3 | G16: 3.92 | I16: 5
B17: C394 | C17: TOOLS, SHOP EQUIPMENT - 5 YEAR TOOLS | E17: 433573.46 | F17: 83215.26 | G17: 20 | I17: 5
B18: C396 | C18: POWER OPERATED EQUIPMENT | E18: 71433.61 | F18: -811.56 | G18: 14.28 | I18: 6 | J18: to cc 300
B19: C397 | C19: COMMUNICATION EQUIP - NON MOBILE | E19: =1320468.6+308764.68 -> 1629233.28 | F19: =55712.11+12735.35 -> 68447.46 | G19: 4.98 | I19: 6.67
B20: C397 | C20: COMMUNICATION EQUIP - MOBILE | E20: =22887609.88+31199.84+306088.68+20037.12+1563305.65+164054.46+157042.12+10963188.72+2135669.36 -> 38228195.83 | F20: =1138452.85+1553.75+15243.22+997.85+75987.34+8169.91+14501.18+519357.87+103280.36 -> 1877544.33 | G20: 4.35 | I20: 6.67
B21: C398 | C21: MISCELLANEOUS EQUIPMENT > $20K | E21: 26508.51 | F21: 1222.91 | G21: 4.58 | I21: 6.67
B22: C398 | C22: MISCELLANEOUS EQUIPMENT < $20K | E22: 402665.84 | F22: 16194.62 | G22: 4 | I22: 6.67
C24: TOTAL COMMON PLANT IN SERVICE | E24: =SUM(E8:E22) -> 137498101.8 | F24: =SUM(F8:F23) -> 6800126.14
A27: ELECTRIC PLANT
A29: STEAM PRODUCTION PLANT
B30: Colstrip Unit 1
B31: E311 | C31: STRUCTURES AND IMPROVEMENTS | E31: 7473867.75 | F31: 225493.59 | G31: 3.03 | I31: 3.91
B32: E312 | C32: BOILER PLANT EQUIPMENT | E32: 58163160.95 | F32: 1830647.86 | G32: 3.12 | I32: 3.64
B33: E314 | C33: TURBOGENERATOR EQUIPMENT | E33: 23438986.75 | F33: 745263.06 | G33: 3.29 | I33: 5.2
B34: E315 | C34: ACCESSORY ELECTRIC EQUIPMENT | E34: 7180435.19 | F34: 194505.7 | G34: 2.71 | I34: 1.97
B35: E316 | C35: MISC. POWER PLANT EQUIPMENT | E35: 799295.59 | F35: 31191.65 | G35: 3.87 | I35: 4.79
B36: Total Colstrip Unit 1 | E36: =SUM(E31:E35) -> 97055746.23 | F36: =SUM(F31:F35) -> 3027101.86
B40: Colstrip Unit 1-2 Common
B41: E311 | C41: STRUCTURES AND IMPROVEMENTS | E41: 31349014.09 | F41: 990611.78 | G41: 3.16 | I41: 2.77
B42: E312 | C42: BOILER PLANT EQUIPMENT | E42: 6485834.14 | F42: 239775.28 | G42: 3.18 | I42: 2.66
B43: E314 | C43: TURBOGENERATOR EQUIPMENT | E43: 3844102.75 | F43: 127266.97 | G43: 3.31 | I43: 2.65
B44: E315 | C44: ACCESSORY ELECTRIC EQUIPMENT | E44: 2375376.28 | F44: 72918.81 | G44: 3.07 | I44: 2.41
B45: E316 | C45: MISC. POWER PLANT EQUIPMENT | E45: 6289463.07 | F45: 242522.02 | G45: 3.82 | I45: 2.82
B46: Total Colstrip Unit 1-2 Common | E46: =SUM(E41:E45) -> 50343790.33 | F46: =SUM(F41:F45) -> 1673094.86
B48: Colstrip Unit 1-4 Common
B49: E316 | C49: MISC. POWER PLANT EQUIPMENT | E49: 251533.56 | F49: 6187.73 | G49: 2.46 | I49: 2.23
B50: Total Colstrip Unit 1-4 Common | E50: =SUM(E49) -> 251533.56 | F50: =SUM(F49) -> 6187.73
B52: Colstrip Unit 2
B53: E311 | C53: STRUCTURES AND IMPROVEMENTS | E53: 5860808.92 | F53: 178373.66 | G53: 3.06 | I53: 2.97
B54: E312 | C54: BOILER PLANT EQUIPMENT | E54: 49788214.15 | F54: 1537040.43 | G54: 3.05 | I54: 3.83
B55: E314 | C55: TURBOGENERATOR EQUIPMENT | E55: 20283195.82 | F55: 630472.38 | G55: 3.26 | I55: 5.03
B56: E315 | C56: ACCESSORY ELECTRIC EQUIPMENT | E56: 5087938.93 | F56: 136364.32 | G56: 2.69 | I56: 2.93
B57: E316 | C57: MISC. POWER PLANT EQUIPMENT | E57: 824073.98 | F57: 29981.87 | G57: 3.61 | I57: 4.93
B58: Total Colstrip Unit 2 | E58: =SUM(E53:E57) -> 81844231.8 | F58: =SUM(F53:F57) -> 2512232.66
B60: Colstrip Unit 3
B61: E311 | C61: STRUCTURES AND IMPROVEMENTS | E61: 29058975.96 | F61: 711672.75 | G61: 2.45 | I61: 2.8
B62: E312 | C62: BOILER PLANT EQUIPMENT | E62: 123772537.9 | F62: 3235545.9 | G62: 2.68 | I62: 2.81
B63: E314 | C63: TURBOGENERATOR EQUIPMENT | E63: 41474565.66 | F63: 1184354.66 | G63: 2.97 | I63: 3.77
B64: E315 | C64: ACCESSORY ELECTRIC EQUIPMENT | E64: 6460699.33 | F64: 159703.28 | G64: 2.47 | I64: 2.5
B65: E316 | C65: MISC. POWER PLANT EQUIPMENT | E65: 704856.98 | F65: 20402.42 | G65: 2.86 | I65: 3.69
B66: Total Colstrip Unit 3 | E66: =SUM(E61:E65) -> 201471635.8 | F66: =SUM(F61:F65) -> 5311679.01
B68: Colstrip Unit 3-4 Common
B69: E311 | C69: STRUCTURES AND IMPROVEMENTS | E69: 70574232.38 | F69: 1644884.93 | G69: 2.33 | I69: 2.53
B70: E312 | C70: BOILER PLANT EQUIPMENT | E70: 18727316.49 | F70: 468708.58 | G70: 2.48 | I70: 2.68
B71: E314 | C71: TURBOGENERATOR EQUIPMENT | E71: 10515.04 | F71: 305.47 | G71: 2.62 | I71: 49.28
B72: E315 | C72: ACCESSORY ELECTRIC EQUIPMENT | E72: 7652069.98 | F72: 176742.17 | G72: 2.31 | I72: 2.32
B73: E316 | C73: MISC. POWER PLANT EQUIPMENT | E73: 4613132.33 | F73: 129178.32 | G73: 2.79 | I73: 2.7
B74: Total Colstrip Unit 3-4 Common | E74: =SUM(E69:E73) -> 101577266.2 | F74: =SUM(F69:F73) -> 2419819.47
B77: Colstrip Unit 4
B78: E311 | C78: STRUCTURES AND IMPROVEMENTS | E78: 26600987.27 | F78: 675347.47 | G78: 2.54 | I78: 2.75
B79: E312 | C79: BOILER PLANT EQUIPMENT | E79: 108751248.9 | F79: 2979910.81 | G79: 2.75 | I79: 2.98
B80: E314 | C80: TURBOGENERATOR EQUIPMENT | E80: 37714990.91 | F80: 1113014.9 | G80: 2.94 | I80: 3.59
B81: E315 | C81: ACCESSORY ELECTRIC EQUIPMENT | E81: 5670535 | F81: 142891.61 | G81: 2.52 | I81: 2.54
B82: E316 | C82: MISC. POWER PLANT EQUIPMENT | E82: 902345.6 | F82: 25412.81 | G82: 2.79 | I82: 3.26
B83: Total Colstrip Unit 4 | E83: =SUM(E78:E82) -> 179640107.7 | F83: =SUM(F78:F82) -> 4936577.6
B85: Encogen
B86: E312 | C86: FUEL HOLDERS, PRODUCERS & ACCESS. | E86: 42748413.6 | F86: 1154207.17 | G86: 2.7 | I86: 3.27
B87: E314 | C87: GENERATORS | E87: 20449667.41 | F87: 527493.32 | G87: 2.59 | I87: 3.27
B88: E315 | C88: ACCESSORY ELECTRIC EQUIPMENT | E88: 1678558.68 | F88: 44146.09 | G88: 2.63 | I88: 2.64
B89: E316 | C89: MISC. POWER PLANT EQUIPMENT | E89: 1101157.33 | F89: 25873.53 | G89: 2.59 | I89: 6.84
B90: Total Encogen | E90: =SUM(E86:E89) -> 65977797.02 | F90: =SUM(F86:F89) -> 1751720.11
B92: EPCOR Frederickson
B93: E311 | C93: STRUCTURES & IMPROVEMENTS | E93: 6178022.75 | F93: 205728.16 | G93: 3.333 | I93: 3.74
B94: E312 | C94: FUEL HOLDERS, PRODUCERS & ACCESS. | E94: 17970988.13 | F94: 598433.87 | G94: 3.333 | I94: 3.89
B95: E314 | C95: GENERATORS | E95: 15800824.04 | F95: 526167.44 | G95: 3.333 | I95: 3.81
B96: E315 | C96: ACCESSORY ELECTRIC EQUIPMENT | E96: 962486.71 | F96: 32050.82 | G96: 3.333 | I96: 3.34
B97: E316 | C97: MISC. POWER PLANT EQUIPMENT | E97: 336377.91 | F97: 11201.38 | G97: 3.333 | I97: 3.84
B98: Total EPCOR Frederickson | E98: =SUM(E93:E97) -> 41248699.54 | F98: =SUM(F93:F97) -> 1373581.67
B100: Goldendale
B101: E311 | C101: STRUCTURES & IMPROVEMENTS | E101: 1843914 | F101: 6460.26 | G101: 1.39 | I101: 1.55
B102: E312 | C102: FUEL HOLDERS, PRODUCERS & ACCESS. | E102: 86510717 | F102: 303095.64 | G102: 1.39 | I102: 1.55
B103: E314 | C103: GENERATORS | E103: 88357071 | F103: 309564.45 | G103: 1.39 | I103: 1.55
B104: E315 | C104: ACCESSORY ELECTRIC EQUIPMENT | E104: 7300879 | F104: 25579.08 | G104: 1.39 | I104: 1.55
B105: E316 | C105: MISC. POWER PLANT EQUIPMENT | E105: 6163 | F105: 21.6 | G105: 1.39 | I105: 1.55
B106: Total Goldendale | E106: =SUM(E101:E105) -> 184018744 | F106: =SUM(F101:F105) -> 644721.03
B108: TOTAL STEAM PRODUCTION PLANT | E108: =SUM(E83,E74,E66,E58,E50,E46,E36,E90,E98,E106) -> 1003429552 | F108: =SUM(F83,F74,F66,F58,F50,F46,F36,F90,F98,F106) -> 23656716
A113: HYDROELECTRIC PRODUCTION PLANT
B114: Electron
B115: E331 | C115: STRUCTURES & IMPROVEMENTS | E115: 2460057.87 | F115: 97878.14 | G115: 4 | I115: 7.12
B116: E332 | C116: RESERVOIRS, DAMS & WATERWAYS | E116: 46695912.09 | F116: 1847260.03 | G116: 4 | I116: 7.15
B117: E333 | C117: WATER WHEELS, TURBINES & GENERATORS | E117: 2291034.35 | F117: 34869.32 | G117: 2.21 | I117: 6.7
B118: E334 | C118: ACCESSORY ELECTRIC EQUIPMENT | E118: 1793243.86 | F118: 53584.78 | G118: 3.01 | I118: 6.3
B119: E335 | C119: MISC. POWER PLANT EQUIPMENT | E119: 260144.6 | F119: 11244.23 | G119: 3.44 | I119: 7.3
B120: E335.1 | C120: MISCELLANEOUS TOOLS | E120: 627836.7 | F120: 27136.99 | G120: 3.44 | I120: 17.35
B121: E336 | C121: ROADS, RAILROADS & BRIDGES | E121: 492607.43 | F121: 11822.57 | G121: 2.4 | I121: 6.13
B122: Total Electron | E122: =SUM(E115:E121) -> 54620836.9 | F122: =SUM(F115:F121) -> 2083796.06
B124: Lower Baker
B125: E331 | C125: STRUCTURES & IMPROVEMENTS | E125: =3280717.56+3908.5 -> 3284626.06 | F125: =392931.09+470.58 -> 393401.67 | G125: 12.04 | I125: 0.81
B126: E332 | C126: RESERVOIRS, DAMS & WATERWAYS | E126: 14645854.02 | F126: 1414441.84 | G126: 10.65 | I126: 0.6
B127: E333 | C127: WATER WHEELS, TURBINES & GENERATORS | E127: 10022484.3 | F127: 425505.42 | G127: 4.25 | I127: 2
B128: E334 | C128: ACCESSORY ELECTRIC EQUIPMENT | E128: 1883879.27 | F128: 161268.19 | G128: 8.55 | I128: 1.34
B129: E335 | C129: MISC. POWER PLANT EQUIPMENT | E129: 634814.1 | F129: 54954.01 | G129: 8.68 | I129: 0.18
B130: E335.1 | C130: MISCELLANEOUS TOOLS | E130: 520794.71 | F130: 45083.68 | G130: 8.68 | I130: 4.21
B131: E336 | C131: ROADS, RAILROADS & BRIDGES | E131: 74593.13 | F131: 9578.19 | G131: 12.5 | I131: 0.45
B132: Total Lower Baker | E132: =SUM(E125:E131) -> 31067045.59 | F132: =SUM(F125:F131) -> 2504233
B134: Snoqualmie Unit 1
B135: E331 | C135: STRUCTURES & IMPROVEMENTS | E135: 3550855.62 | F135: 104147.36 | G135: 2.93 | I135: 2.24
B136: E332 | C136: RESERVOIRS, DAMS & WATERWAYS | E136: 584993.96 | F136: 12050.88 | G136: 2.06 | I136: 2.72
B137: E333 | C137: WATER WHEELS, TURBINES & GENERATORS | E137: 708781.31 | F137: 9922.94 | G137: 1.4 | I137: 1.61
B138: E334 | C138: ACCESSORY ELECTRIC EQUIPMENT | E138: 298571.16 | F138: 4903.62 | G138: 1.65 | I138: 1.69
B139: E335 | C139: MISC. POWER PLANT EQUIPMENT | E139: 1793.49 | F139: 42.22 | G139: 2.41 | I139: 0
B140: E335.1 | C140: MISCELLANEOUS TOOLS | E140: 357552.84 | F140: 8416.63 | G140: 2.41 | I140: 15.66
B141: E336 | C141: ROADS, RAILROADS & BRIDGES | E141: 39894.69 | F141: 442.84 | G141: 1.11 | I141: 0.6
B142: E338 | C142: EASEMENTS | E142: 32898.73 | F142: 1313.89 | G142: 3.55 | I142: 2.43
B143: Total Snoqualmie Unit 1 | E143: =SUM(E135:E142) -> 5575341.8 | F143: =SUM(F135:F142) -> 141240.38
B149: Snoqualmie Unit 2
B150: E331 | C150: STRUCTURES & IMPROVEMENTS | E150: 652002.48 | F150: 17302.27 | G150: 2.65 | I150: 1.98
B151: E332 | C151: RESERVOIRS, DAMS & WATERWAYS | E151: 1179902.74 | F151: 31385.41 | G151: 2.66 | I151: 2.17
B152: E333 | C152: WATER WHEELS, TURBINES & GENERATORS | E152: 5210196.53 | F152: 124523.68 | G152: 2.39 | I152: 3.24
B153: E334 | C153: ACCESSORY ELECTRIC EQUIPMENT | E153: 490371.62 | F153: 14269.79 | G153: 2.91 | I153: 1.66
B154: E335 | C154: MISC. POWER PLANT EQUIPMENT | E154: 4773.64 | F154: 144.16 | G154: 3.02 | I154: 3.48
B155: E335.1 | C155: MISCELLANEOUS TOOLS | E155: 66781 | F155: 2016.79 | G155: 3.02 | I155: 11.25
B156: E336 | C156: ROADS, RAILROADS & BRIDGES | E156: 287456.42 | F156: 5630.35 | G156: 1.96 | I156: 2.59
B157: Total Snoqualmie Unit 2 | E157: =SUM(E150:E156) -> 7891484.43 | F157: =SUM(F150:F156) -> 195272.45
B159: Upper Baker
B160: E331 | C160: STRUCTURES & IMPROVEMENTS | E160: 6208069.84 | F160: 665912.29 | G160: 13 | I160: 0.54
B161: E332 | C161: RESERVOIRS, DAMS & WATERWAYS | E161: 48037386.2 | F161: 4874401.61 | G161: 10.14 | I161: 0.36
B162: E333 | C162: WATER WHEELS, TURBINES & GENERATORS | E162: 8669934.54 | F162: 764688.22 | G162: 8.82 | I162: 0
B163: E334 | C163: ACCESSORY ELECTRIC EQUIPMENT | E163: 1769313.18 | F163: 160441.72 | G163: 9.09 | I163: 0.01
B164: E335 | C164: MISC. POWER PLANT EQUIPMENT | E164: 493379.6 | F164: 51347.57 | G164: 10.47 | I164: 2.13
B165: E335.1 | C165: MISCELLANEOUS TOOLS | E165: 273542.91 | F165: 28468.48 | G165: 10.47 | I165: 1.66
B166: E336 | C166: ROADS, RAILROADS & BRIDGES | E166: 645094.99 | F166: 35609.25 | G166: 5.52 | I166: 0
B167: Total Upper Baker | E167: =SUM(E160:E166) -> 66096721.26 | F167: =SUM(F160:F166) -> 6580869.14
B169: TOTAL HYDROELECTRIC PRODUCTION PLANT | E169: =SUM(E167,E157,E143,E132,E122) -> 165251430 | F169: =SUM(F167,F157,F143,F132,F122) -> 11505411.03
A172: OTHER PRODUCTION PLANT
B173: Crystal Mountain
B174: E341 | C174: STRUCTURES & IMPROVEMENTS | E174: 28241.57 | F174: 11.29 | G174: 0.04 | I174: 0
B175: E342 | C175: FUEL HOLDERS, PRODUCERS & ACCESS. | E175: 197234.51 | F175: 19743.17 | G175: 10.01 | I175: 4.32
B176: E344 | C176: GENERATORS | E176: 451571.96 | F176: 180.63 | G176: 0.04 | I176: 4.47
B177: E345 | C177: ACCESSORY ELECTRIC EQUIPMENT | E177: 84237.34 | F177: 1052.97 | G177: 1.25 | I177: 5.07
B178: E346.1 | C178: MISCELLANEOUS TOOLS | E178: 10385.31 | F178: 626.24 | G178: 6.03 | I178: 1.85
B179: Total Crystal Mountain | E179: =SUM(E174:E178) -> 771670.69 | F179: =SUM(F174:F178) -> 21614.3
B185: Encogen
B186: E341 | C186: STRUCTURES & IMPROVEMENTS | E186: 6595936.75 | F186: 178845.04 | G186: 2.7 | I186: 2.97
B187: E342 | C187: FUEL HOLDERS, PRODUCERS & ACCESS. | E187: 7998178.46 | F187: 207152.82 | G187: 2.59 | I187: 2.88
B188: E344 | C188: GENERATORS | E188: 70644953.32 | F188: 1857788.48 | G188: 2.63 | I188: 2.55
B189: E345 | C189: ACCESSORY ELECTRIC EQUIPMENT | E189: 2021517.63 | F189: 52963.76 | G189: 2.62 | I189: 6.45
B190: E346 | C190: MISC. POWER PLANT EQUIPMENT | E190: 1142596.92 | F190: 31381.59 | G190: 2.59 | I190: 2.91
B191: E346.1 | C191: MISCELLANEOUS TOOLS | E191: 43664.89 | F191: 1199.26 | G191: 2.59 | I191: 7.23
B192: Total Encogen | E192: =SUM(E186:E191) -> 88446847.97 | F192: =SUM(F186:F191) -> 2329330.95
B194: Frederickson 1
B195: E342 | C195: FUEL HOLDERS, PRODUCERS & ACCESS. | E195: 1804662.8 | F195: 60095.27 | G195: 3.333 | I195: 3.52
B196: E344 | C196: GENERATORS | E196: 29246324.17 | F196: 973822.74 | G196: 3.333 | I196: 3.34
B197: E345 | C197: ACCESSORY ELECTRIC EQUIPMENT | E197: 296766.72 | F197: 9882.34 | G197: 3.333 | I197: 3.34
B198: Total EPCOR Frederickson | E198: =SUM(E195:E197) -> 31347753.69 | F198: =SUM(F195:F197) -> 1043800.35
B200: Frederickson
B201: E341 | C201: STRUCTURES & IMPROVEMENTS | E201: 2344478.06 | F201: 56141.11 | G201: 2.41 | I201: 3.22
B202: E342 | C202: FUEL HOLDERS, PRODUCERS & ACCESS. | E202: 3702107.48 | F202: 64046.46 | G202: 1.73 | I202: 1.93
B203: E344 | C203: GENERATORS | E203: 24805307.3 | F203: 579030.46 | G203: 2.33 | I203: 2.48
B204: E345 | C204: ACCESSORY ELECTRIC EQUIPMENT | E204: 1943694.83 | F204: 743.75 | G204: 0.04 | I204: 6.75
B205: E346 | C205: MISC. POWER PLANT EQUIPMENT | E205: 172525.69 | F205: 5499.04 | G205: 3.5 | I205: 5.02
B206: E346.1 | C206: MISCELLANEOUS TOOLS | E206: 267633.83 | F206: 8530.48 | G206: 3.5 | I206: 3.94
B207: Total Frederickson | E207: =SUM(E201:E206) -> 33235747.19 | F207: =SUM(F201:F206) -> 713991.3
B209: Fredonia Unit 1&2
B210: E341 | C210: STRUCTURES & IMPROVEMENTS | E210: 3491408.04 | F210: 144515.95 | G210: 4.15 | I210: 4.16
B211: E342 | C211: FUEL HOLDERS, PRODUCERS & ACCESS. | E211: 3355684.73 | F211: 141945.47 | G211: 4.23 | I211: 4.75
B212: E344 | C212: GENERATORS | E212: 41422739.26 | F212: 845023.89 | G212: 2.04 | I212: 2.06
B213: E345 | C213: ACCESSORY ELECTRIC EQUIPMENT | E213: 884929.97 | F213: 25618.41 | G213: 2.91 | I213: 3.06
B214: E346 | C214: MISC. POWER PLANT EQUIPMENT | E214: 241975.23 | F214: 9993.58 | G214: 4.13 | I214: 3.9
B215: E346.1 | C215: MISCELLANEOUS TOOLS | E215: =182303.93+199927.61 -> 382231.54 | F215: =6874.34+8257.01 -> 15131.35 | G215: 4.13 | I215: 24.49
B216: E348 | C216: EASEMENTS | E216: 221928.75 | F216: 8863.29 | G216: 3.55 | I216: 3.82
B217: Total Fredonia Unit 1&2 | E217: =SUM(E210:E216) -> 50000897.52 | F217: =SUM(F210:F216) -> 1191091.94
B221: Goldendale
B222: E341 | C222: STRUCTURES & IMPROVEMENTS | E222: 33993049 | F222: 119096.74 | G222: 1.39 | I222: 1.55
B223: E342 | C223: FUEL HOLDERS, PRODUCERS & ACCESS. | E223: 1887875 | F223: 6614.28 | G223: 1.39 | I223: 1.55
B224: E344 | C224: GENERATORS | E224: =65688934.23+5008688.88 -> 70697623.11 | F224: =332449.35+1727267.16+8702.6 -> 2068419.11 | G224: 1.39 | I224: 1.55
B225: E345 | C225: ACCESSORY ELECTRIC EQUIPMENT | E225: 9468135 | F225: 33172.2 | G225: 1.39 | I225: 1.55
B226: E346 | C226: MISC. POWER PLANT EQUIPMENT | E226: 2134388 | F226: 7477.96 | G226: 1.39 | I226: 1.55
B227: Total Goldendale | E227: =SUM(E222:E226) -> 118181070.1 | F227: =SUM(F222:F226) -> 2234780.29
B229: Hopkins Ridge
B230: E341 | C230: STRUCTURES & IMPROVEMENTS | E230: 3818831.4 | F230: 162775 | G230: 4 | I230: 4.24
B231: E344 | C231: GENERATORS | E231: 145368923.7 | F231: 6196254.02 | G231: 4 | I231: 4.24
B232: E345 | C232: ACCESSORY ELECTRIC EQUIPMENT | E232: 16346021.27 | F232: 696737.6 | G232: 4 | I232: 4.24
B233: E346 | C233: MISC. POWER PLANT EQUIPMENT | E233: 291115.38 | F233: 12262.38 | G233: 4 | I233: 4.24
B234: Total Hopkins Ridge | E234: =SUM(E230:E233) -> 165824891.7 | F234: =SUM(F230:F233) -> 7068029
B236: Whitehorn Unit 2&3
B237: E341 | C237: STRUCTURES & IMPROVEMENTS | E237: 185229.75 | F237: 5815.91 | G237: 3.14 | I237: 7.69
B238: E342 | C238: FUEL HOLDERS, PRODUCERS & ACCESS. | E238: 134194.7 | F238: 5917.98 | G238: 4.41 | I238: 5.83
B239: E344 | C239: GENERATORS | E239: 41703.33 | F239: 2214.45 | G239: 5.31 | I239: 7.1
B240: E345 | C240: ACCESSORY ELECTRIC EQUIPMENT | E240: =177446.17+5695.01 -> 183141.18 | F240: =8180.27+262.54 -> 8442.81 | G240: 4.61 | I240: 5.02
B241: E346 | C241: MISC. POWER PLANT EQUIPMENT | E241: 50002.44 | F241: 2595.13 | G241: 5.19 | I241: 5.22
B242: E346.1 | C242: MISCELLANEOUS TOOLS | E242: =82611.12+35292.46+84225.97 -> 202129.55 | F242: =4287.52+1831.68+4047.59 -> 10166.79 | G242: 5.19 | I242: 12.61
B243: Total Whitehorn Unit 2&3 | E243: =SUM(E237:E242) -> 796400.95 | F243: =SUM(F237:F242) -> 35153.07
B245: Wild Horse
B246: E341 | C246: STRUCTURES & IMPROVEMENTS | E246: 4325730.13 | F246: 131185.55 | G246: 4 | I246: 4.29
B247: E344 | C247: GENERATORS | E247: 300074719.6 | F247: 9100304.8 | G247: 4 | I247: 4.27
B248: E345 | C248: ACCESSORY ELECTRIC EQUIPMENT | E248: 33733415.22 | F248: 1023026.42 | G248: 4 | I248: 4.29
B249: Total Wild Horse | E249: =SUM(E246:E248) -> 338133865 | F249: =SUM(F246:F248) -> 10254516.77
B251: TOTAL OTHER PRODUCTION PLANT | E251: =E179+E192+E198+E207+E217+E227+E234+E243+E249 -> 826739144.9 | F251: =F179+F192+F198+F207+F217+F227+F234+F243+F249 -> 24892307.97
... 254 more rows

Sheet Depreciation Recon (hidden)
B2: Financial Statements | D2: Depreciation Rate Comparison
A4: Common
A5: Balance as of 9/30/2007 | B5: 6849066.1 | D5: 6800126.14
A6: Reconciling Items:
A7: C392 - Aircraft, not included in depr study - group #s 101208-09 | D7: 50982.25
A8: C392 - cleared to cc300 | D8: -3123.1
A9: C396 - cleared to cc300 | D9: 811.56
A10: C399 - Asset Retirement Cost (ARO Asset) - Not Recoverable | D10: 269.25
B11: =SUM(B5:B10) -> 6849066.1 | D11: =SUM(D5:D10) -> 6849066.1
A13: Electric
A14: Balance as of 9/30/2007 | B14: 151384996.9 | D14: 150517255.1
A15: Reconciling Items:
A16: E331 - Group # 100054 WRG - 0 acqusition value | D16: 23.88
A17: E337 - Easement, group # 100970, not included in depr. study | D17: -145.99
A18: E344 - Group # 100736 - 0 acquisition value | D18: -114.29
A19: E347 - Easement group # 100125 and ARO group # 101103, not included in depreciation study | D19: 12628.97
A20: E358 - Group # 100167 - 0 acquisition value | D20: 2.47
A21: E372 - Dist Lease, not included in depr study - group #s 101085,86 | D21: -44880.44
A22: Asset Retirement Cost (ARO Asset) - no reclass | D22: 44939
A23: Misclass (adjustment) to balance to subledger | D23: 18953.27
A24: 403.1 ARO Depreciation (from E311 to E317) | D24: 23021
A25: 403.1 ARO Depreciation (from E355 to E359) | D25: 35354.75
A26: 403.1 ARO Depreciation (from E364 to E374) | D26: 57060.5
A27: 403.1 ARO Depreciation (from E368 to E374) | D27: 311164.5
A28: Manual depreciation accrual (E364, E365, E366, E377) | D28: 409734.16
B29: =SUM(B14:B28) -> 151384996.9 | C29: =SUM(C14:C28) -> 0 | D29: =SUM(D14:D28) -> 151384996.9
A31: Gas
A32: Balance as of 9/30/2007 | B32: 70510110.22 | D32: 68099230.84
A33: Reconciling Items:
A34: G366 - Gas Transmission not included in depr study | D34: -270.74
A35: G367 - Gas Transmission not included in depr study | D35: -29723.06
A36: G369 - Gas Transmission not included in depr study | D36: -132403.49
A37: G372 - Gas Transmission not included in depr study | D37: -7908.53
A38: G376 - Cathodic Protection, not included in depr study - group # 100933 | D38: 503793.61
A39: G380 - Cathodic Protection, not included in depr study - group # 100934 | D39: 380453.45
A40: G386 - Group # 100284 - 0 acquisition value. | D40: 397.45
A41: G386.2 Pipe & vents not included in depr study - group # 100779 | D41: 855661.81
A42: G386.3 Pipe & vents not included in depr study - group # 100780 | D42: 186708.08
A43: G386.5 Pipe & vents not included in depr study - group # 100818 | D43: -12547.93
A44: G392 - cleared to cc300 | D44: -0.03
A45: C386 - cleared to cc300 | D45: -72256.68
A46: Gas pipe & vents (cleared to regulatory asset) | D46: 131658.85
A47: 403.1 ARO Depreciation (from G376 to G388) | D47: 614403.38
A48: Manual depreciation accrual (G354) | D48: -7086.79
B49: =SUM(B32:B48) -> 70510110.22 | D49: =SUM(D32:D48) -> 70510110.22
A52: Notes:
A53: The following manual entries were made in the 4th quarter of 2006
A54: to reclass from 403 directly to 108 (for new and recalculated of AROs)
A56: From E364-group # 100177 to E374-group # 101135 | B56: 932231
A57: From E364-group # 100177 to E374-group # 101135 | B57: -726
A58: From E368-group # 100181 to E374-group # 101136 | B58: -1842
A59: From G376-group # 100900 to G388-group # 101106 | B59: -528028
A60: From G376-group # 100887 to G388-group # 101151 | B60: -432

Sheet Lead E
E1: Docket Numbers UE-17_____
E3: PAGE 8.06
A4: PUGET SOUND ENERGY - ELECTRIC
A5: DEPRECIATION STUDY
A6: FOR THE TWELVE MONTHS ENDED SEPTEMBER 30, 2016
A7: 2017 GENERAL RATE CASE
D8: Per Public
A9: LINE | D9: Counsel
A10: NO. | B10: DESCRIPTION | C10: ACTUAL | D10: RESTATED | E10: ADJUSTMENT
A12: 1 | B12: 403 ELEC. DEPRECIATION EXPENSE | C12: =Electric!D460 -> 249419038.2 | D12: =Electric!L460 -> 282038779.4 | E12: =+D12-C12 -> 32619741.22
A13: =A12+1 -> 2 | B13: 403 ELEC. PORTION OF COMMON | C13: ='Common-Elec&Gas'!E61 -> 15207047.52 | D13: ='Common-Elec&Gas'!Q61 -> 10979268.53 | E13: =+D13-C13 -> -4227778.993
A14: 3 | B14: 403 DEPR. EXP. ON ASSETS NOT INCLUDED IN STUDY | C14: ='Common-Elec&Gas'!E71 -> 55937.9107 | D14: =C14 -> 55937.9107 | E14: =+D14-C14 -> 0
A15: 4 | B15: 404 DEPR. EXP. ON ASSETS NOT INCLUDED IN STUDY | C15: =Electric!D487+'Common-Elec&Gas'!E76-C14 -> 29770695.19 | D15: =Electric!L487+'Common-Elec&Gas'!Q76-D14 -> 29770695.19 | E15: =+D15-C15 -> 0
A16: 5 | B16: SUBTOTAL DEPRECIATION EXPENSE | C16: =SUM(C12:C15) -> 294452718.8 | D16: =SUM(D12:D15) -> 322844681.1 | E16: =SUM(E12:E15) -> 28391962.23
A17: 6
A18: 7 | B18: 403.1 DEPR. EXP- FAS 143 (RECOVERED IN RATES) | C18: ='403.1 Depr'!D50 -> 1352124.73 | D18: ='403.1 Depr'!L50 -> 1730992.059 | E18: =+D18-C18 -> 378867.329
A19: 8 | B19: 403.1 DEPR. EXP - FAS 143 (NOT RECOVERED IN RATES) | C19: ='403.1 Depr'!D77 -> 1476016.703 | D19: ='403.1 Depr'!I77 -> 0 | E19: =+D19-C19 -> -1476016.703
A20: 9 | B20: SUBTOTAL DEPRECIATION EXPENSE 403.1 | C20: =SUM(C18:C19) -> 2828141.433 | D20: =SUM(D18:D19) -> 1730992.059 | E20: =SUM(E18:E19) -> -1097149.374
A21: 10
A22: 11 | B22: TOTAL DEPRECIATION EXPENSE | C22: =C16+C20 -> 297280860.3 | D22: =D16+D20 -> 324575673.1 | E22: =+D22-C22 -> 27294812.85
A23: 12
A24: 13 | B24: AMORTIZATION EXPENSE
A25: 14 | B25: 411.10 ACCRETION EXP. - FAS 143 (RECOVERED IN RATES) | C25: ='Elec Accretion'!D51 -> 1424661.083 | D25: ='Elec Accretion'!L51 -> 1694307.43 | E25: =+D25-C25 -> 269646.3471
A26: 15 | B26: 411.10 ACCRETION EXP. - FAS 143 (NOT RECOVERED IN RATES) | C26: ='Elec Accretion'!D79 -> 1148003.004 | D26: ='Elec Accretion'!I79 -> 0 | E26: =+D26-C26 -> -1148003.004
A27: 16 | B27: SUBTOTAL ACCRETION EXPENSE 411.10 | C27: =SUM(C25:C26) -> 2572664.086 | D27: =SUM(D25:D26) -> 1694307.43 | E27: =SUM(E25:E26) -> -878356.6565
A28: 17
A29: 18
A30: 19 | B30: FLEET DEPRECIATION EXPENSE IN FERC 403 | C30: =Electric!D502+'Common-Elec&Gas'!E95 -> 846819.32 | D30: =Electric!L502+'Common-Elec&Gas'!Q95 -> 539848.8844 | E30: =+D30-C30 -> -306970.4356
A31: 20
A32: 21
A33: 22 | B33: INCREASE(DECREASE) EXPENSE | E33: =E22+E27+E30 -> 26109485.76
A34: 23 | B34: FIT | D34: 0.35 | E34: =-E33*D34 -> -9138320.017
A35: 24 | B35: INCREASE(DECREASE) NOI | E35: =-E33-E34 -> -16971165.75
A36: 25
A37: 26
A38: 27 | B38: ADJUSTMENT TO RATE BASE
A39: 28 | B39: ADJUSTMENT TO ACCUM. DEPREC. AT 50% DEPREC. EXPENSE LINE 19 | C39: 0.5 | E39: =-E33*C39 -> -13054742.88
A40: 29 | B40: DFIT | E40: ='DFIT Depr Stdy 8.06E'!S29 -> 4569160.008
A41: =A40+1 -> 30 | B41: TOTAL ADJUSTMENT TO RATEBASE | E41: =SUM(E39:E40) -> -8485582.873

Sheet Electric
D1: CURRENT | F1: CURRENT | I1: PROPOSED | L1: PROPOSED | M1: INCREASE
A2: ACCOUNT | C2: ACQUISITION | D2: DEPRECIATION | E2: CURRENT | F2: RATE | G2: PROPOSED | H2: Diff % | I2: DEPRECIATION | J2: PROPOSED | K2: Diff % | L2: DEPRECIATION | M2: (DECREASE)
A3: NUMBER | B3: DESCRIPTION | C3: VALUE | D3: EXPENSE | E3: RATE | F3: % | G3: RATE | H3: RATE | I3: EXPENSE AMOUNT | J3: RATE | K3: RATE | L3: EXPENSE AMOUNT | M3: AMOUNT
G4: Per PSE | I4: Per PSE | J4: Per Public Counsel | L4: Per Public Counsel
F6: ELECTRIC PLANT
B7: STEAM PRODUCTION PLANT
A9: 311 | B9: STRUCTURES AND IMPROVEMENTS
B10: COLSTRIP 1 | C10: ='Elec Study Rpt'!K24 -> 9209467.84 | D10: 158017.53 | E10: 1.74 | F10: 0.0174 | G10: ='Elec Study Rpt'!V24 -> 0.07315812201 | H10: =G10/F10 -> 4.204489771 | I10: =D10*H10 -> 664383.0885 | J10: 0.0333 | K10: =J10/G10 -> 0.455178442 | L10: =I10*K10 -> 302412.8591 | M10: =L10-I10 -> -361970.2294 | O10: =SUM(M10:M11)+M14 -> -1031693.801 | P10: Colstrip 1&2
B11: COLSTRIP 2 | C11: ='Elec Study Rpt'!K25 -> 4336957.28 | D11: 55819.32 | E11: 1.32 | F11: 0.0132 | G11: ='Elec Study Rpt'!V25 -> 0.13241876 | H11: =G11/F11 -> 10.03172424 | I11: =D11*H11 -> 559964.0257 | J11: 0.0623 | K11: =J11/G11 -> 0.4704771438 | L11: 263450.2755 | M11: =L11-I11 -> -296513.7503 | O11: =SUM(M12:M13)+M15 -> -89255.77895 | P11: Colstrip 3&4
B12: COLSTRIP 3 | C12: ='Elec Study Rpt'!K26 -> 29664979.16 | D12: 394296.39 | E12: 1.33 | F12: 0.0133 | G12: ='Elec Study Rpt'!V26 -> 0.0224581314 | H12: 1.688581308 | I12: 665801.5141 | J12: 0.0217 | K12: 0.9662424541 | L12: 643325.6889 | M12: -22475.82517 | O12: =M16 -> -347.7532961 | P12: FREDERICKSON 1/EPCOR
B13: COLSTRIP 4 | C13: ='Elec Study Rpt'!K27 -> 27862834.57 | D13: 394869.37 | E13: 1.42 | F13: 0.0142 | G13: ='Elec Study Rpt'!V27 -> 0.02403395097 | H13: 1.692531759 | I13: 668328.9492 | J13: 0.0226 | K13: 0.9403364443 | L13: 628454.0677 | M13: -39874.88148 | O13: =M17 -> 34391.6197 | P13: GOLDENDALE
B14: COLSTRIP 1-2 | C14: ='Elec Study Rpt'!K28 -> 30934199.88 | D14: 307992.11 | E14: 1.23 | F14: 0.0123 | G14: ='Elec Study Rpt'!V28 -> 0.02280454027 | H14: 1.854027665 | I14: 571025.8924 | J14: 0.0079 | K14: 0.3464222433 | L14: 197816.0707 | M14: -373209.8218 | O14: =M18 -> 525.5664825 | P14: MINT FARM
B15: COLSTRIP 3-4 | C15: ='Elec Study Rpt'!K29 -> 70065640.6 | D15: 870869.9 | E15: 1.31 | F15: 0.0131 | G15: ='Elec Study Rpt'!V29 -> 0.02100471768 | H15: 1.603413563 | I15: 1396364.61 | J15: 0.0206 | K15: 0.980732058 | L15: 1369459.537 | M15: -26905.0723 | O15: =M19 -> 41480.02295 | P15: SUMAS
B16: FREDERICKSON 1/EPCOR | C16: ='Elec Study Rpt'!K30 -> 403636 | D16: 869.47 | E16: 3.18 | F16: 0.0318 | G16: ='Elec Study Rpt'!V30 -> 0.04111873074 | H16: 1.293041847 | I16: 1124.261095 | J16: 0.0284 | K16: 0.6906827981 | L16: 776.5077987 | M16: -347.7532961 | O16: =M20 -> 14536.74722 | P16: FERNDALE
B17: GOLDENDALE | C17: ='Elec Study Rpt'!K31 -> 2131451.97 | D17: 33037.44 | E17: 1.55 | F17: 0.0155 | G17: ='Elec Study Rpt'!V31 -> 0.01326466671 | H17: 0.8557849493 | I17: 28272.94392 | J17: 0.0294 | K17: 2.216414527 | L17: 62664.56361 | M17: 34391.6197
B18: MINT FARM | C18: ='Elec Study Rpt'!K32 -> 458042 | D18: 12819.24 | E18: 2.79871 | F18: 0.0279871 | G18: ='Elec Study Rpt'!V32 -> 0.02665257771 | H18: 0.9523165212 | I18: 12207.97404 | J18: 0.0278 | K18: 1.043051081 | L18: 12733.54052 | M18: 525.5664825
B19: SUMAS | C19: ='Elec Study Rpt'!K33 -> 1492711.69 | D19: 25973.16 | E19: 1.74 | F19: 0.0174 | G19: ='Elec Study Rpt'!V33 -> 0.01501160616 | H19: =G19/F19 -> 0.8627359862 | I19: 22407.97981 | J19: 0.0428 | K19: 2.851127291 | L19: 63888.00276 | M19: 41480.02295
B20: FERNDALE | C20: ='Elec Study Rpt'!K34 -> 571513.38 | D20: 8598 | E20: 1.504422 | F20: 0.01504422 | G20: ='Elec Study Rpt'!V34 -> 0.02326454719 | H20: =G20/F20 -> 1.546410993 | I20: 13296.04172 | J20: 0.0487 | K20: 2.093313899 | L20: 27832.78894 | M20: 14536.74722
B22: TOTAL STRUCTURES AND IMPROVEMENTS | C22: =+SUBTOTAL(9,C10:C20) -> 177131434.4 | D22: =+SUBTOTAL(9,D10:D20) -> 2263161.93 | E22: =D22/C22 -> 0.01277673801 | F22: =D22/C22 -> 0.01277673801 | G22: =I22/C22 -> 0.02598735395 | H22: =G22/F22 -> 2.033958427 | I22: =+SUBTOTAL(9,I10:I20) -> 4603177.28 | J22: =L22/$C22 -> 0.0201704114 | K22: =J22/G22 -> 0.7761625689 | L22: =+SUBTOTAL(9,L10:L20) -> 3572813.903 | M22: =+SUBTOTAL(9,M10:M20) -> -1030363.377 | N22: =H22*D22-I22 -> 0 | O22: =SUM(O10:O21) -> -1030363.377 | P22: =M22-O22 -> 0 | Q22: Check
A24: 312 | B24: BOILER PLANT EQUIPMENT
B25: COLSTRIP 1 | C25: ='Elec Study Rpt'!K39 -> 88145747.64 | D25: 1456233.61 | E25: 1.69 | F25: 0.0169 | G25: ='Elec Study Rpt'!V39 -> 0.09128908067 | H25: =G25/F25 -> 5.401720749 | I25: =D25*H25 -> 7866167.307 | J25: 0.0327 | K25: =J25/G25 -> 0.3582027529 | L25: =I25*K25 -> 2817682.784 | M25: =L25-I25 -> -5048484.523
B26: COLSTRIP 2 | C26: ='Elec Study Rpt'!K40 -> 88368523.22 | D26: 1564008.64 | E26: 1.78 | F26: 0.0178 | G26: ='Elec Study Rpt'!V40 -> 0.1019848567 | H26: 5.729486332 | I26: 8960966.127 | J26: 0.0391 | K26: 0.3833902528 | L26: 3435547.069 | M26: -5525419.058
B27: COLSTRIP 3 | C27: ='Elec Study Rpt'!K41 -> 137645881.6 | D27: 1974272.86 | E27: 1.44 | F27: 0.0144 | G27: ='Elec Study Rpt'!V41 -> 0.027090124 | H27: 1.881258611 | I27: 3714117.818 | J27: 0.0231 | K27: 0.8527092752 | L27: 3167062.713 | M27: -547055.1056
B28: COLSTRIP 4 | C28: ='Elec Study Rpt'!K42 -> 126930413.2 | D28: 1998527.38 | E28: 1.64 | F28: 0.0164 | G28: ='Elec Study Rpt'!V42 -> 0.03013799375 | H28: 1.837682545 | I28: 3672658.883 | J28: 0.0246 | K28: 0.8162454412 | L28: 2997791.07 | M28: -674867.8128
B29: COLSTRIP 1-2 | C29: ='Elec Study Rpt'!K43 -> 6043572.1 | D29: 77059.79 | E29: 1.27 | F29: 0.0127 | G29: ='Elec Study Rpt'!V43 -> 0.02495228643 | H29: 1.964746963 | I29: 151402.9884 | J29: -0.0141 | K29: -0.5650784764 | L29: -85554.57 | M29: -236957.5584 | O29: =M31 -> 585003.0755 | P29: ENCOGEN
B30: COLSTRIP 3-4 | C30: ='Elec Study Rpt'!K44 -> 15254041.73 | D30: 228489.08 | E30: 1.49 | F30: 0.0149 | G30: ='Elec Study Rpt'!V44 -> 0.02654876702 | H30: 1.781796444 | I30: 407121.0303 | J30: 0.0177 | K30: 0.6666976281 | L30: 271426.6252 | M30: -135694.4051 | O30: =SUM(M25:M26)+M29 -> -10810861.14 | P30: Colstrip 1&2
B31: ENCOGEN | C31: ='Elec Study Rpt'!K45 -> 42923481.28 | D31: 1025458.71 | E31: 2.39 | F31: 0.0239 | G31: ='Elec Study Rpt'!V45 -> 0.0160655422 | H31: 0.6721984185 | I31: 689311.7231 | J31: 0.0297 | K31: 1.848677102 | L31: 1274314.799 | M31: 585003.0755 | O31: =SUM(M27:M28)+M30 -> -1357617.323 | P31: Colstrip 3&4
B32: FREDERICKSON 1/EPCOR | C32: ='Elec Study Rpt'!K46 -> 18138531.28 | D32: 581257.71 | E32: 3.34 | F32: 0.0334 | G32: ='Elec Study Rpt'!V46 -> 0.02700025666 | H32: 0.808390918 | I32: 469883.4538 | J32: 0.0278 | K32: 1.029619842 | L32: 483801.3275 | M32: 13917.87372 | O32: =M32 -> 13917.87372 | P32: FREDERICKSON 1/EPCOR
B33: GOLDENDALE | C33: ='Elec Study Rpt'!K47 -> 86173649.71 | D33: 1338447.26 | E33: 1.55 | F33: 0.0155 | G33: ='Elec Study Rpt'!V47 -> 0.01060904352 | H33: 0.6844544206 | I33: 916106.1439 | J33: 0.029 | K33: 2.733516923 | L33: 2504191.648 | M33: 1588085.504 | O33: =M33 -> 1588085.504 | P33: GOLDENDALE
B34: MINT FARM | C34: ='Elec Study Rpt'!K48 -> 26297846.77 | D34: 736000.44 | E34: 2.79871 | F34: 0.0279871 | G34: ='Elec Study Rpt'!V48 -> 0.03273982876 | H34: 1.169818551 | I34: 860986.968 | J34: 0.0286 | K34: 0.8735537443 | L34: 752118.3897 | M34: -108868.5783 | O34: =M34 -> -108868.5783 | P34: MINT FARM
B35: SUMAS | C35: ='Elec Study Rpt'!K49 -> 15704258.64 | D35: 273254.16 | E35: 1.74 | F35: 0.0174 | G35: ='Elec Study Rpt'!V49 -> 0.01004007917 | H35: 0.5770160441 | I35: 157672.0344 | J35: 0.0406 | K35: 4.043792815 | L35: 637593.04 | M35: 479921.0056 | O35: =M35 -> 479921.0056 | P35: SUMAS
B36: FERNDALE | C36: ='Elec Study Rpt'!K50 -> 44686467.8 | D36: 672273.12 | E36: 1.50442 | F36: 0.0150442 | G36: ='Elec Study Rpt'!V50 -> 0.02119717773 | H36: 1.408993348 | I36: 947228.3542 | J36: 0.0476 | K36: 2.245581964 | L36: 2127078.908 | M36: 1179850.554 | O36: =M36 -> 1179850.554 | P36: FERNDALE
B38: TOTAL BOILER PLANT EQUIPMENT | C38: =+SUBTOTAL(9,C25:C36) -> 696312415 | D38: =+SUBTOTAL(9,D25:D36) -> 11925282.76 | E38: =D38/C38 -> 0.01712633942 | F38: =D38/C38 -> 0.01712633942 | G38: =I38/C38 -> 0.04138030891 | H38: =G38/F38 -> 2.416179424 | I38: =+SUBTOTAL(9,I25:I36) -> 28813622.83 | J38: =L38/$C38 -> 0.02927285707 | K38: =J38/G38 -> 0.707410308 | L38: =+SUBTOTAL(9,L25:L36) -> 20383053.8 | M38: =+SUBTOTAL(9,M25:M36) -> -8430569.029 | N38: =H38*D38-I38 -> 0 | O38: =SUM(O29:O37) -> -8430569.029 | P38: =M38-O38 -> 0 | Q38: Check
A40: 314 | B40: TURBOGENERATOR UNITS
B41: COLSTRIP 1 | C41: ='Elec Study Rpt'!K55 -> 28781740.46 | D41: 670990.18 | E41: 2.36 | F41: 0.0236 | G41: ='Elec Study Rpt'!V55 -> 0.1150833775 | H41: =G41/F41 -> 4.8764143 | I41: =D41*H41 -> 3272026.109 | J41: 0.021 | K41: =J41/G41 -> 0.1824763963 | L41: =I41*K41 -> 597067.5331 | M41: =L41-I41 -> -2674958.576
B42: COLSTRIP 2 | C42: ='Elec Study Rpt'!K56 -> 34145118.66 | D42: 778116.72 | E42: 2.29 | F42: 0.0229 | G42: ='Elec Study Rpt'!V56 -> 0.1135784645 | H42: 4.959758277 | I42: =D42*H42 -> 3859270.843 | J42: 0.0194 | K42: 0.1708070282 | L42: 659190.5838 | M42: -3200080.259
B43: COLSTRIP 3 | C43: ='Elec Study Rpt'!K57 -> 42228337.04 | D43: 794063.43 | E43: 1.87 | F43: 0.0187 | G43: ='Elec Study Rpt'!V57 -> 0.04545810076 | H43: 2.430914479 | I43: =D43*H43 -> 1930300.289 | J43: 0.0242 | K43: 0.5323583607 | L43: 1027611.498 | M43: -902688.7916 | O43: =M46 -> 230725.1094 | P43: ENCOGEN
B44: COLSTRIP 4 | C44: ='Elec Study Rpt'!K58 -> 39133170.24 | D44: 722141.74 | E44: 1.92 | F44: 0.0192 | G44: ='Elec Study Rpt'!V58 -> 0.04274987152 | H44: 2.226555808 | I44: 1607888.886 | J44: 0.0255 | K44: 0.5964930207 | L44: 959094.4984 | M44: -648794.3873 | O44: =SUM(M41:M42)+M45 -> -5981599.122 | P44: Colstrip 1&2
B45: COLSTRIP 1-2 | C45: ='Elec Study Rpt'!K59 -> 3813725.5 | D45: 47290.2 | E45: 1.24 | F45: 0.0124 | G45: ='Elec Study Rpt'!V59 -> 0.01094125563 | H45: 0.8823593253 | I45: 41726.94897 | J45: -0.017 | K45: -1.553752199 | L45: -64833.33871 | M45: -106560.2877 | O45: =SUM(M43:M44) -> -1551483.179 | P45: Colstrip 3&4
B46: ENCOGEN | C46: ='Elec Study Rpt'!K60 -> 20710885.2 | D46: 492919.08 | E46: 2.38 | F46: 0.0238 | G46: ='Elec Study Rpt'!V60 -> 0.0149597179 | H46: 0.6285595755 | I46: 309829.0077 | J46: 0.0261 | K46: 1.744685306 | L46: 540554.1171 | M46: 230725.1094 | O46: =M47 -> -20729.50446 | P46: FREDERICKSON 1/EPCOR
B47: FREDERICKSON 1/EPCOR | C47: ='Elec Study Rpt'!K61 -> 15800824.04 | D47: 513526.8 | E47: 3.25 | F47: 0.0325 | G47: ='Elec Study Rpt'!V61 -> 0.02861192548 | H47: 0.8803669379 | I47: 452092.0165 | J47: 0.0273 | K47: 0.9541475989 | L47: 431362.512 | M47: -20729.50446 | O47: =M48 -> 1596040.898 | P47: GOLDENDALE
B48: GOLDENDALE | C48: ='Elec Study Rpt'!K62 -> 89524456.27 | D48: 1378664.81 | E48: 1.55 | F48: 0.0155 | G48: ='Elec Study Rpt'!V62 -> 0.01135609243 | H48: 0.7326511244 | I48: 1010080.323 | J48: 0.0293 | K48: 2.58011285 | L48: 2606121.221 | M48: 1596040.898 | O48: =M49 -> -21169.62293 | P48: MINT FARM
B49: MINT FARM | C49: ='Elec Study Rpt'!K63 -> 24647469.63 | D49: 689811.24 | E49: 2.79871 | F49: 0.0279871 | G49: ='Elec Study Rpt'!V63 -> 0.02955889635 | H49: 1.056161458 | I49: 728552.0451 | J49: 0.0287 | K49: 0.9709428817 | L49: 707382.4222 | M49: -21169.62293 | O49: =M50 -> 538163.7045 | P49: SUMAS
B50: SUMAS | C50: ='Elec Study Rpt'!K64 -> 22032534.57 | D50: 383366.16 | E50: 1.74 | F50: 0.0174 | G50: ='Elec Study Rpt'!V64 -> 0.0152741392 | H50: 0.8778240921 | I50: 336528.0513 | J50: 0.0397 | K50: 2.599164475 | L50: 874691.7559 | M50: 538163.7045 | O50: =M51 -> 420121.6442 | P50: FERNDALE
B51: FERNDALE | C51: ='Elec Study Rpt'!K65 -> 18176144.67 | D51: 273445.92 | E51: 1.504422 | F51: 0.01504422 | G51: ='Elec Study Rpt'!V65 -> 0.02418609711 | H51: 1.607667071 | I51: =D51*H51 -> 439610.0013 | J51: 0.0473 | K51: 1.955668986 | L51: 859731.6455 | M51: 420121.6442
B53: TOTAL TURBOGENERATOR UNITS | C53: =+SUBTOTAL(9,C41:C51) -> 338994406.3 | D53: =+SUBTOTAL(9,D41:D51) -> 6744336.28 | E53: =D53/C53 -> 0.01989512557 | F53: =D53/C53 -> 0.01989512557 | G53: =I53/C53 -> 0.04126293609 | H53: =G53/F53 -> 2.0740224 | I53: =+SUBTOTAL(9,I41:I51) -> 13987904.52 | J53: =L53/$C53 -> 0.0271331157 | K53: =J53/G53 -> 0.6575662877 | L53: =+SUBTOTAL(9,L41:L51) -> 9197974.448 | M53: =+SUBTOTAL(9,M41:M51) -> -4789930.072 | N53: =H53*D53-I53 -> 0 | O53: =SUM(O43:O51) -> -4789930.072 | P53: =M53-O53 -> 0 | Q53: Check
A55: 315 | B55: ACCESSORY ELECTRIC EQUIPMENT
B56: COLSTRIP 1 | C56: ='Elec Study Rpt'!K70 -> 7465362.62 | D56: 62651.88 | E56: 0.93 | F56: 0.0093 | G56: ='Elec Study Rpt'!V70 -> 0.06530658172 | H56: =G56/F56 -> 7.022213088 | I56: =D56*H56 -> 439954.8518 | J56: 0.029 | K56: =J56/G56 -> 0.4440593771 | L56: =I56*K56 -> 195366.0774 | M56: =L56-I56 -> -244588.7743
B57: COLSTRIP 2 | C57: ='Elec Study Rpt'!K71 -> 4167725.42 | D57: 54300.48 | E57: 1.36 | F57: 0.0136 | G57: ='Elec Study Rpt'!V71 -> 0.1139557907 | H57: 8.379102257 | I57: 454989.2745 | J57: 0.0427 | K57: 0.3747067151 | L57: 170487.5365 | M57: -284501.738
B58: COLSTRIP 3 | C58: ='Elec Study Rpt'!K72 -> 6769581.5 | D58: 84348.44 | E58: 1.28 | F58: 0.0128 | G58: ='Elec Study Rpt'!V72 -> 0.02594119001 | H58: 2.02665547 | I58: 170945.2273 | J58: 0.0202 | K58: 0.7786844007 | L58: 133112.3819 | M58: -37832.84542
B59: COLSTRIP 4 | C59: ='Elec Study Rpt'!K73 -> 6474413.6 | D59: 85465.65 | E59: 1.4 | F59: 0.014 | G59: ='Elec Study Rpt'!V73 -> 0.03058099347 | H59: 2.184356676 | I59: 186687.4632 | J59: 0.023 | K59: 0.7521011384 | L59: 140407.8536 | M59: -46279.60959 | O59: =M62 -> 25518.68221 | P59: ENCOGEN
B60: COLSTRIP 1-2 | C60: ='Elec Study Rpt'!K74 -> 2272860.64 | D60: 25943.24 | E60: 1.14 | F60: 0.0114 | G60: ='Elec Study Rpt'!V74 -> 0.02120043922 | H60: 1.859687651 | I60: 48246.32306 | J60: -0.0084 | K60: -0.3962182062 | L60: -19116.07158 | M60: -67362.39464 | O60: =SUM(M56:M57)+M60 -> -596452.907 | P60: Colstrip 1&2
B61: COLSTRIP 3-4 | C61: ='Elec Study Rpt'!K75 -> 7639006.24 | D61: 97796.07 | E61: 1.28 | F61: 0.0128 | G61: ='Elec Study Rpt'!V75 -> 0.02315706971 | H61: 1.809146071 | I61: 176927.3758 | J61: 0.0181 | K61: 0.7816187552 | L61: 138289.7552 | M61: -38637.62056 | O61: =SUM(M58:M59)+M61 -> -122750.0756 | P61: Colstrip 3&4
B62: ENCOGEN | C62: ='Elec Study Rpt'!K76 -> 1678558.68 | D62: 32060.52 | E62: 1.91 | F62: 0.0191 | G62: ='Elec Study Rpt'!V76 -> 0.01279728868 | H62: 0.6700151143 | I62: 21481.03297 | J62: 0.028 | K62: 2.187963458 | L62: 46999.71518 | M62: 25518.68221 | O62: =M63 -> 539.4067479 | P62: FREDERICKSON 1/EPCOR
B63: FREDERICKSON 1/EPCOR | C63: ='Elec Study Rpt'!K77 -> 962486.71 | D63: 27430.92 | E63: 2.85 | F63: 0.0285 | G63: ='Elec Study Rpt'!V77 -> 0.02533957066 | H63: 0.8891077426 | I63: 24389.04336 | J63: 0.0259 | K63: 1.022116765 | L63: 24928.45011 | M63: 539.4067479 | O63: =M64 -> 137306.6154 | P63: GOLDENDALE
B64: GOLDENDALE | C64: ='Elec Study Rpt'!K78 -> 7300879 | D64: 113163.6 | E64: 1.55 | F64: 0.0155 | G64: ='Elec Study Rpt'!V78 -> 0.008093135087 | H64: 0.5221377475 | I64: 59086.98721 | J64: 0.0269 | K64: 3.323804646 | L64: 196393.6026 | M64: 137306.6154 | O64: =M65 -> 2022.355567 | P64: MINT FARM
B65: MINT FARM | C65: ='Elec Study Rpt'!K79 -> 2199936 | D65: 61569.84 | E65: 2.79871 | F65: 0.0279871 | G65: ='Elec Study Rpt'!V79 -> 0.02478072089 | H65: 0.8854336781 | I65: 54516.00989 | J65: 0.0257 | K65: 1.037096544 | L65: 56538.36546 | M65: 2022.355567 | O65: =M66 -> 20314.67007 | P65: SUMAS
B66: SUMAS | C66: ='Elec Study Rpt'!K80 -> 670281.89 | D66: 11662.8 | E66: 1.74 | F66: 0.0174 | G66: ='Elec Study Rpt'!V80 -> 0.008192075725 | H66: 0.4708089497 | I66: 5490.950619 | J66: 0.0385 | K66: 4.699663589 | L66: 25805.62069 | M66: 20314.67007 | O66: =M67 -> 33357.94605 | P66: FERNDALE
B67: FERNDALE | C67: ='Elec Study Rpt'!K81 -> 1279531 | D67: 19249.44 | E67: 1.504422 | F67: 0.01504422 | G67: ='Elec Study Rpt'!V81 -> 0.0184294089 | H67: 1.225015913 | I67: 23580.87032 | J67: 0.0445 | K67: 2.414618952 | L67: 56938.81637 | M67: 33357.94605
B69: TOTAL ACCESSORY ELECTRIC EQUIPMENT | C69: =+SUBTOTAL(9,C56:C67) -> 48880623.3 | D69: =+SUBTOTAL(9,D56:D67) -> 675642.88 | E69: =D69/C69 -> 0.01382230492 | F69: =D69/C69 -> 0.01382230492 | G69: =I69/C69 -> 0.0340890786 | H69: =G69/F69 -> 2.466236912 | I69: =+SUBTOTAL(9,I56:I67) -> 1666295.41 | J69: =L69/$C69 -> 0.02385714471 | K69: =J69/G69 -> 0.6998471558 | L69: =+SUBTOTAL(9,L56:L67) -> 1166152.103 | M69: =+SUBTOTAL(9,M56:M67) -> -500143.3066 | N69: =H69*D69-I69 -> 0 | O69: =SUM(O59:O67) -> -500143.3066 | P69: =M69-O69 -> 0 | Q69: Check
A71: 316 | B71: MISCELLANEOUS POWER PLANT EQUIPMENT
B72: COLSTRIP 1 | C72: ='Elec Study Rpt'!K86 -> 946611.59 | D72: 21122.55 | E72: 2.31 | F72: 0.0231 | G72: ='Elec Study Rpt'!V86 -> 0.1062039013 | H72: =G72/F72 -> 4.597571484 | I72: =D72*H72 -> 97112.43355 | J72: 0.0639 | K72: =J72/G72 -> 0.6016728126 | L72: =I72*K72 -> 58429.91104 | M72: =L72-I72 -> -38682.52251
B73: COLSTRIP 2 | C73: ='Elec Study Rpt'!K87 -> 1075704.32 | D73: 24833.86 | E73: 2.38 | F73: 0.0238 | G73: ='Elec Study Rpt'!V87 -> 0.0965027952 | H73: 4.054739294 | I73: 100694.828 | J73: 0.0592 | K73: 0.6134537334 | L73: 61771.61815 | M73: -38923.20981
B74: COLSTRIP 3 | C74: ='Elec Study Rpt'!K88 -> 1043990.99 | D74: 20272.79 | E74: 2.01 | F74: 0.0201 | G74: ='Elec Study Rpt'!V88 -> 0.04330688716 | H74: 2.1545715 | I74: 43679.17557 | J74: 0.0394 | K74: 0.9097860083 | L74: 39738.70279 | M74: -3940.472784
B75: COLSTRIP 4 | C75: ='Elec Study Rpt'!K89 -> 1165681.21 | D75: 21861.16 | E75: 1.93 | F75: 0.0193 | G75: ='Elec Study Rpt'!V89 -> 0.04362084553 | H75: 2.260147437 | I75: 49409.44474 | J75: 0.0382 | K75: 0.8757280959 | L75: 43269.23896 | M75: -6140.205777
B76: COLSTRIP 1-2 | C76: ='Elec Study Rpt'!K90 -> 6205596.72 | D76: 86878.32 | E76: 1.4 | F76: 0.014 | G76: ='Elec Study Rpt'!V90 -> 0.02472022192 | H76: 1.765730137 | I76: 153403.6679 | J76: 0.0285 | K76: 1.152902271 | L76: 176859.4371 | M76: 23455.76925
B77: COLSTRIP 1-4 | C77: ='Elec Study Rpt'!K91 -> 251533.56 | D77: 3471.12 | E77: 1.38 | F77: 0.0138 | G77: ='Elec Study Rpt'!V91 -> 0.01977867287 | H77: 1.433237165 | I77: 4974.938187 | J77: 0.0272 | K77: 1.37521866 | L77: 6841.627826 | M77: 1866.689639 | O77: =SUM(M72:M73)+M76+(M77*0.5) -> -53216.61826 | P77: Colstrip 1&2
B78: COLSTRIP 3-4 | C78: ='Elec Study Rpt'!K92 -> 4444375.42 | D78: 72443.28 | E78: 1.63 | F78: 0.0163 | G78: ='Elec Study Rpt'!V92 -> 0.02724252309 | H78: 1.671320435 | I78: 121075.9342 | J78: 0.0285 | K78: 1.046158607 | L78: 126664.6307 | M78: 5588.696435 | O78: =SUM(M74:M75)+M78+(M77*0.5) -> -3558.637306 | P78: Colstrip 3&4
B79: FREDERICKSON 1/EPCOR | C79: ='Elec Study Rpt'!K93 -> 336377.91 | D79: 11268.6 | E79: 3.35 | F79: 0.0335 | G79: ='Elec Study Rpt'!V93 -> 0.02546243301 | H79: 0.7600726272 | I79: 8564.954407 | J79: 0.0305 | K79: 1.197843112 | L79: 10259.47164 | M79: 1694.517235 | O79: =M79 -> 1694.517235 | P79: FREDERICKSON 1/EPCOR
B80: GOLDENDALE | C80: ='Elec Study Rpt'!K94 -> 6163 | D80: 95.52 | E80: 1.55 | F80: 0.0155 | G80: ='Elec Study Rpt'!V94 -> 0.008761966575 | H80: 0.5652881661 | I80: 53.99632563 | J80: 0.0311 | K80: 3.549431481 | L80: 191.6562581 | M80: 137.6599324 | O80: =M80 -> 137.6599324 | P80: GOLDENDALE
B81: MINT FARM | C81: ='Elec Study Rpt'!K95 -> 152757 | D81: 4275.24 | E81: 2.79871 | F81: 0.0279871 | G81: ='Elec Study Rpt'!V95 -> 0.02728516533 | H81: 0.9749193496 | I81: 4168.0142 | J81: 0.0295 | K81: 1.081173584 | L81: 4506.346853 | M81: 338.3326527 | O81: =M81 -> 338.3326527 | P81: MINT FARM
B82: SUMAS | C82: ='Elec Study Rpt'!K96 -> 123691 | D82: 2152.2 | E82: 1.74 | F82: 0.0174 | G82: ='Elec Study Rpt'!V96 -> 0.007065995101 | H82: 0.4060916725 | I82: 873.9904975 | J82: 0.0439 | K82: 6.212854577 | L82: 5429.975862 | M82: 4555.985365 | O82: =M82 -> 4555.985365 | P82: SUMAS
B83: FERNDALE | C83: ='Elec Study Rpt'!K97 -> 62866 | D83: 945.84 | E83: 1.504422 | F83: 0.01504422 | G83: ='Elec Study Rpt'!V97 -> 0.01862692075 | H83: 1.238144666 | I83: 1171.086751 | J83: 0.0487 | K83: 2.614495474 | L83: 3061.801011 | M83: 1890.714259 | O83: =M83 -> 1890.714259 | P83: FERNDALE
B85: TOTAL MISCELLANEOUS POWER PLANT EQUIPMENT | C85: =+SUBTOTAL(9,C72:C83) -> 15815348.72 | D85: =+SUBTOTAL(9,D72:D83) -> 269620.48 | E85: =D85/C85 -> 0.01704802624 | F85: =D85/C85 -> 0.01704802624 | G85: =I85/C85 -> 0.03700092073 | H85: =G85/F85 -> 2.17039323 | I85: =+SUBTOTAL(9,I72:I83) -> 585182.4643 | J85: =L85/$C85 -> 0.03395590118 | K85: =J85/G85 -> 0.9177042221 | L85: =+SUBTOTAL(9,L72:L83) -> 537024.4182 | M85: =+SUBTOTAL(9,M72:M83) -> -48158.04612 | N85: =H85*D85-I85 -> 0 | O85: =SUM(O77:O83) -> -48158.04612 | P85: =M85-O85 -> 0 | Q85: Check
B87: TOTAL STEAM PRODUCTION PLANT | C87: =SUBTOTAL(9,C9:C85) -> 1277134228 | D87: =SUBTOTAL(9,D9:D85) -> 21878044.33 | F87: =D87/C87 -> 0.01713057552 | G87: =I87/C87 -> 0.03888094253 | H87: 2.269681044 | I87: =SUBTOTAL(9,I9:I85) -> 49656182.51 | J87: =L87/$C87 -> 0.02729315206 | K87: =J87/G87 -> 0.7019673466 | L87: =SUBTOTAL(9,L9:L85) -> 34857018.68 | M87: =SUBTOTAL(9,M9:M85) -> -14799163.83 | N87: =H87*D87-I87 -> 0
O88: =O22+O38+O53+O69+O85 -> -14799163.83
B90: HYDROELECTRIC PRODUCTION PLANT
A92: 330.1 | B92: EASEMENTS | C92: ='Elec Study Rpt'!K106 -> 32898.73 | D92: 799.44 | E92: 2.43 | F92: 0.0243 | G92: ='Elec Study Rpt'!V106 -> 0.01997037576 | H92: =G92/F92 -> 0.8218261628 | I92: =D92*H92 -> 657.0007076 | J92: =G92 -> 0.01997037576 | K92: =J92/G92 -> 1 | L92: =I92*K92 -> 657.0007076 | M92: =L92-I92 -> 0
A93: 331 | B93: STRUCTURES AND IMPROVEMENTS | L93: 0 | M93: 0
B94: LOWER BAKER | C94: ='Elec Study Rpt'!K108 -> 35273454.28 | D94: 39715.32 | E94: 0.81 | F94: 0.0081 | G94: ='Elec Study Rpt'!V108 -> 0.02202095076 | H94: 2.718635897 | I94: =D94*H94 -> 107971.4946 | J94: 0.022 | K94: =J94/G94 -> 0.9990485985 | L94: 107868.7704 | M94: -102.7242375
D95: 664964.04 | E95: 2.19 | F95: 0.0219 | G95: =G94 -> 0.02202095076 | H95: 1.005522866 | I95: =D95*H95 -> 668636.5473 | J95: =J94 -> 0.022 | K95: 0.9990485985 | L95: 668000.4055 | M95: -636.1417864
B96: UPPER BAKER | C96: ='Elec Study Rpt'!K109 -> 15612653.91 | D96: 84308.28 | E96: 0.54 | F96: 0.0054 | G96: ='Elec Study Rpt'!V109 -> 0.0167012605 | H96: 3.092826018 | I96: 260750.8419 | J96: 0.0164 | K96: 0.9819618108 | L96: 256047.3689 | M96: -4703.473024
B97: SNOQUALMIE #1 | C97: ='Elec Study Rpt'!K110 -> 58654809.26 | D97: 281593.92 | E97: 2.24 | F97: 0.0224 | G97: ='Elec Study Rpt'!V110 -> 0.03425141136 | H97: 1.529080864 | I97: =D97*H97 -> 430579.8745 | J97: 0.0343 | K97: 1.001418588 | L97: 431190.69 | M97: 610.8154731
D98: 1469951.9 | F98: 0.0319 | G98: =G97 -> 0.03425141136 | H98: 1.073711955 | I98: =D98*H98 -> 1578304.928 | J98: =J97 -> 0.0343 | K98: 1.001418588 | L98: 1580543.892 | M98: 2238.964541
B99: SNOQUALMIE #2 | C99: ='Elec Study Rpt'!K111 -> 54612246.02 | D99: 1742164.71 | E99: 1.98 | F99: 0.0319 | G99: ='Elec Study Rpt'!V111 -> 0.03358728369 | H99: 1.052892906 | I99: 1834312.864 | J99: 0.0336 | K99: 1.000378605 | L99: 1835007.343 | M99: 694.4798501
B102: TOTAL STRUCTURES AND IMPROVEMENTS | C102: =+SUBTOTAL(9,C94:C99) -> 164153163.5 | D102: =+SUBTOTAL(9,D94:D100) -> 4282698.17 | E102: =D102/C102 -> 0.02608964749 | F102: =D102/C102 -> 0.02608964749 | G102: =I102/C102 -> 0.029731724 | H102: =G102/F102 -> 1.139598533 | I102: =+SUBTOTAL(9,I94:I100) -> 4880556.55 | J102: =L102/$C102 -> 0.02972016114 | K102: =J102/G102 -> 0.9996110937 | L102: =+SUBTOTAL(9,L94:L100) -> 4878658.471 | M102: =+SUBTOTAL(9,M94:M100) -> -1898.079184 | N102: =H102*D102-I102 -> 0
A104: 332 | B104: RESERVOIRS, DAMS AND WATERWAYS
B105: LOWER BAKER | C105: ='Elec Study Rpt'!K116 -> 115624470 | D105: 248068.8 | E105: 0.6 | F105: 0.006 | G105: ='Elec Study Rpt'!V116 -> 0.02280077912 | H105: =G105/F105 -> 3.800129853 | I105: =D105*H105 -> 942693.6524 | J105: 0.0226 | K105: =J105/G105 -> 0.9911941993 | L105: =I105*K105 -> 934392.48 | M105: =L105-I105 -> -8301.172409
D106: 1625944.9 | F106: 0.0219 | G106: =G105 -> 0.02280077912 | H106: 1.041131466 | I106: 1692822.398 | J106: =J105 -> 0.0226 | K106: 0.9911941993 | L106: 1677915.742 | M106: -14906.65663
B107: UPPER BAKER | C107: ='Elec Study Rpt'!K117 -> 119603565.1 | D107: 430572.84 | E107: 0.36 | F107: 0.0036 | G107: ='Elec Study Rpt'!V117 -> 0.01589255302 | H107: 4.414598061 | I107: 1900806.024 | J107: 0.0156 | K107: 0.9815918174 | L107: 1865815.64 | M107: -34990.38442
B108: SNOQUALMIE #1 | C108: ='Elec Study Rpt'!K118 -> 53492873.45 | D108: 22113.12 | E108: 2.72 | F108: 0.0272 | G108: ='Elec Study Rpt'!V118 -> 0.035507141 | H108: 1.305409596 | I108: 28866.67904 | J108: 0.0355 | K108: 0.9997988856 | L108: 28860.87353 | M108: -5.805505701
D109: 1680351.87 | E109: 3.19 | F109: 0.0319 | G109: =G108 -> 0.035507141 | H109: 1.11307652 | I109: 1870360.212 | J109: =J108 -> 0.0355 | K109: 0.9997988856 | L109: 1869984.056 | M109: -376.1564281
B110: SNOQUALMIE #2 | C110: ='Elec Study Rpt'!K119 -> 60540016.92 | D110: 7532.4 | E110: 2.17 | F110: 0.0217 | G110: ='Elec Study Rpt'!V119 -> 0.03607968929 | H110: 1.662658493 | I110: 12523.80883 | J110: 0.036 | K110: 0.9977912978 | L110: 12496.14747 | M110: -27.66136394
D111: 1953373.78 | E111: 3.19 | F111: 0.0319 | G111: =G110 -> 0.03607968929 | H111: 1.131024743 | I111: 2209314.077 | J111: =J110 -> 0.036 | K111: 0.9977912978 | L111: 2204434.36 | M111: -4879.71683
B113: TOTAL RESERVOIRS, DAMS AND WATERWAYS | C113: =+SUBTOTAL(9,C105:C111) -> 349260925.5 | D113: =+SUBTOTAL(9,D105:D111) -> 5967957.71 | E113: =D113/C113 -> 0.01708739019 | F113: =D113/C113 -> 0.01708739019 | G113: =I113/C113 -> 0.02478773381 | H113: =G113/F113 -> 1.450644806 | I113: =+SUBTOTAL(9,I105:I111) -> 8657386.852 | J113: =L113/$C113 -> 0.02460595696 | K113: =J113/G113 -> 0.9926666609 | L113: =+SUBTOTAL(9,L105:L111) -> 8593899.298 | M113: =+SUBTOTAL(9,M105:M111) -> -63487.55359 | N113: =H113*D113-I113 -> 0
A115: 333 | B115: WATER WHEELS, TURBINES AND GENERATORS
B116: LOWER BAKER | C116: ='Elec Study Rpt'!K124 -> 41634914.7 | D116: 223788.12 | E116: 2 | F116: 0.02 | G116: ='Elec Study Rpt'!V124 -> 0.02145350859 | H116: =G116/F116 -> 1.072675429 | I116: =D116*H116 -> 240052.0177 | J116: 0.0212 | K116: =J116/G116 -> 0.9881833507 | L116: =I116*K116 -> 237215.4072 | M116: =L116-I116 -> -2836.610495
D117: 666756.6 | E117: 2.19 | F117: 0.0219 | G117: =G116 -> 0.02145350859 | H117: 0.9796122642 | I117: =D117*H117 -> 653162.9426 | J117: =J116 -> 0.0212 | K117: 0.9881833507 | L117: 645444.7452 | M117: -7718.197396
B118: UPPER BAKER | C118: ='Elec Study Rpt'!K125 -> 13128270.76 | D118: 0 | E118: 0 | F118: 0 | G118: ='Elec Study Rpt'!V125 -> 0.009619240973 | I118: 0 | J118: 0.0094 | K118: 0.9772080798 | L118: 0 | M118: 0
B119: SNOQUALMIE #1 | C119: ='Elec Study Rpt'!K126 -> 36614585.44 | D119: 26900.22 | E119: 1.61 | F119: 0.0161 | G119: ='Elec Study Rpt'!V126 -> 0.03457772319 | H119: =G119/F119 -> 2.14768467 | I119: =D119*H119 -> 57773.19012 | J119: 0.0342 | K119: 0.9890761116 | L119: 57142.08224 | M119: -631.1078798
D120: 1097277.57 | E120: 3.19 | F120: 0.0319 | G120: =G119 -> 0.03457772319 | H120: 1.083941166 | I120: 1189384.328 | J120: =J119 -> 0.0342 | K120: 0.9890761116 | L120: 1176391.627 | M120: -12992.70164
B121: SNOQUALMIE #2 | C121: ='Elec Study Rpt'!K127 -> 35031623.57 | D121: 906506.84 | E121: 3.19 | F121: 0.0319 | G121: ='Elec Study Rpt'!V127 -> 0.03489264486 | H121: 1.093813318 | I121: 991549.2548 | J121: 0.0349 | K121: 1.000210794 | L121: 991758.267 | M121: 209.012139
D122: 214318.2 | E122: 3.24 | F122: 0.0324 | G122: =G121 -> 0.03489264486 | H122: 1.076933483 | I122: 230806.4456 | J122: =J121 -> 0.0349 | K122: 1.000210794 | L122: 230855.0981 | M122: 48.65249877
B124: TOTAL WATER WHEELS, TURBINES AND GENERATORS | C124: =+SUBTOTAL(9,C116:C122) -> 126409394.5 | D124: =+SUBTOTAL(9,D116:D122) -> 3135547.55 | E124: =D124/C124 -> 0.0248047035 | F124: =D124/C124 -> 0.0248047035 | G124: =I124/C124 -> 0.02660188504 | H124: =G124/F124 -> 1.072453256 | I124: =+SUBTOTAL(9,I116:I122) -> 3362728.179 | J124: =L124/$C124 -> 0.02641265106 | K124: =J124/G124 -> 0.9928864447 | L124: =+SUBTOTAL(9,L116:L122) -> 3338807.227 | M124: =+SUBTOTAL(9,M116:M122) -> -23920.95277 | N124: =H124*D124-I124 -> 0
A126: 334 | B126: ACCESSORY ELECTRIC EQUIPMENT
B127: LOWER BAKER | C127: ='Elec Study Rpt'!K132 -> 15578198.47 | D127: 27321.24 | E127: 1.34 | F127: 0.0134 | G127: ='Elec Study Rpt'!V132 -> 0.0220763011 | H127: =G127/F127 -> 1.647485157 | I127: =D127*H127 -> 45011.33736 | J127: 0.0218 | K127: =J127/G127 -> 0.9874842666 | L127: =I127*K127 -> 44447.98746 | M127: =L127-I127 -> -563.3498979
D128: 296510.64 | E128: 2.19 | F128: 0.0219 | G128: =G127 -> 0.0220763011 | H128: 1.008050278 | I128: 298897.6332 | J128: =J127 -> 0.0218 | K128: 0.9874842666 | L128: 295156.7101 | M128: -3740.923088
B129: UPPER BAKER | C129: ='Elec Study Rpt'!K133 -> 2738077.7 | D129: 300.3 | E129: 0.01 | F129: 0.0001 | G129: ='Elec Study Rpt'!V133 -> 0.01401895936 | H129: =G129/F129 -> 140.1895936 | I129: 42098.93496 | J129: 0.0138 | K129: 0.9843811973 | L129: 41441.4 | M129: -657.5349572
B130: SNOQUALMIE #1 | C130: ='Elec Study Rpt'!K134 -> 16156295.24 | D130: 515339.29 | E130: 3.19 | F130: 0.0319 | G130: ='Elec Study Rpt'!V134 -> 0.03473946172 | H130: 1.089011339 | I130: =D130*H130 -> 561210.3303 | J130: 0.0343 | K130: 0.9873497833 | L130: 554110.898 | M130: -7099.432285
B131: SNOQUALMIE #2 | C131: ='Elec Study Rpt'!K135 -> 11055386.45 | D131: 352675.23 | E131: 3.19 | F131: 0.0319 | G131: ='Elec Study Rpt'!V135 -> 0.03513436656 | H131: 1.101390801 | I131: =D131*H131 -> 388433.2542 | J131: 0.0351 | K131: 0.9990218534 | L131: 388053.3095 | M131: -379.9446569
B134: TOTAL ACCESSORY ELECTRIC EQUIPMENT | C134: =+SUBTOTAL(9,C127:C132) -> 45527957.86 | D134: =+SUBTOTAL(9,D127:D132) -> 1192146.7 | E134: =D134/C134 -> 0.02618493682 | F134: =E134 -> 0.02618493682 | G134: =I134/C134 -> 0.02933695146 | H134: =G134/F134 -> 1.12037511 | I134: =+SUBTOTAL(9,I127:I132) -> 1335651.49 | J134: =L134/$C134 -> 0.02906368674 | K134: =J134/G134 -> 0.990685306 | L134: =+SUBTOTAL(9,L127:L132) -> 1323210.305 | M134: =+SUBTOTAL(9,M127:M132) -> -12441.18489 | N134: =H134*D134-I134 -> 0
A136: 335 | B136: MISCELLANEOUS POWER PLANT EQUIPMENT
B137: LOWER BAKER | C137: ='Elec Study Rpt'!K140 -> 8012780.46 | D137: 1354.08 | E137: 0.18 | F137: =E137*0.01 -> 0.0018 | G137: ='Elec Study Rpt'!V140 -> 0.02703518474 | H137: =G137/F137 -> 15.01954708 | I137: =D137*H137 -> 20337.66831 | J137: 0.0268 | K137: =J137/G137 -> 0.9913007904 | L137: =I137*K137 -> 20160.74667 | M137: =L137-I137 -> -176.9216388
D138: 159005.88 | E138: 2.19 | F138: 0.0219 | G138: =G137 -> 0.02703518474 | H138: =G138/F138 -> 1.234483321 | I138: =D138*H138 -> 196290.1069 | J138: =J137 -> 0.0268 | K138: 0.9913007904 | L138: 194582.5381 | M138: -1707.568777
B139: UPPER BAKER | C139: ='Elec Study Rpt'!K141 -> 1115022.1 | D139: 23749.92 | E139: 2.13 | F139: 0.0213 | G139: ='Elec Study Rpt'!V141 -> 0.0197484875 | H139: 0.9271590374 | I139: =D139*H139 -> 22019.95297 | J139: 0.0195 | K139: 0.987417391 | L139: 21742.88451 | M139: -277.0684582
B140: SNOQUALMIE #1 | C140: ='Elec Study Rpt'!K142 -> 1548648.53 | D140: 46326.04 | E140: 3.19 | F140: 0.0319 | G140: ='Elec Study Rpt'!V142 -> 0.03616314413 | H140: 1.133640882 | I140: 52517.09284 | J140: 0.0362 | K140: 1.001019156 | L140: 52570.61592 | M140: 53.5230853
B141: SNOQUALMIE #2 | C141: ='Elec Study Rpt'!K143 -> 1592310.85 | D141: 50767.15 | E141: 3.48 | F141: 0.0348 | G141: ='Elec Study Rpt'!V143 -> 0.03556340774 | H141: 1.021937004 | I141: 51880.82917 | J141: 0.0352 | K141: 0.9897814141 | L141: 51350.68046 | M141: -530.1487073
D142: 17.4 | E142: 3.48 | F142: 0.0348 | G142: =G141 -> 0.03556340774 | H142: 1.021937004 | I142: =D142*H142 -> 17.78170387 | J142: =J141 -> 0.0352 | K142: 0.9897814141 | L142: 17.6 | M142: -0.1817038677
B144: TOTAL MISCELLANEOUS POWER PLANT EQUIPMENT | C144: =+SUBTOTAL(9,C137:C142) -> 12268761.94 | D144: =+SUBTOTAL(9,D137:D142) -> 281220.47 | E144: =D144/C144 -> 0.02292166654 | F144: =E144 -> 0.02292166654 | G144: =I144/C144 -> 0.02796235134 | H144: =G144/F144 -> 1.219909176 | I144: =+SUBTOTAL(9,I137:I142) -> 343063.4318 | J144: =L144/$C144 -> 0.02774730387 | K144: =J144/G144 -> 0.9923093925 | L144: =+SUBTOTAL(9,L137:L142) -> 340425.0656 | M144: =+SUBTOTAL(9,M137:M142) -> -2638.366199 | N144: =H144*D144-I144 -> 0
A146: 335.1 | B146: MISCELLANEOUS TOOLS
B147: LOWER BAKER | C147: ='Elec Study Rpt'!K148 -> 846482.91 | D147: 30.79 | E147: 2.19 | F147: =E147*0.01 -> 0.0219 | G147: ='Elec Study Rpt'!V148 -> 0.01774637128 | H147: =G147/F147 -> 0.810336588 | I147: =D147*H147 -> 24.95026354 | J147: 0.0177 | K147: =J147/G147 -> 0.9973869995 | L147: =I147*K147 -> 24.88506849 | M147: =L147-I147 -> -0.06519505027
D148: 34204 | E148: 4.21 | F148: 0.0421 | G148: =G147 -> 0.01774637128 | H148: 0.4215290089 | I148: =D148*H148 -> 14417.97822 | J148: =J147 -> 0.0177 | K148: 0.9973869995 | L148: 14380.30404 | M148: -37.67418381
B149: UPPER BAKER | C149: ='Elec Study Rpt'!K149 -> 597432.9 | D149: 9459.93 | E149: 1.66 | F149: 0.0166 | G149: ='Elec Study Rpt'!V149 -> 0.103628374 | H149: 6.242673132 | I149: =D149*H149 -> 59055.25085 | J149: 0.1036 | K149: 0.9997261947 | L149: 59039.0812 | M149: -16.16964074
B150: SNOQUALMIE #1 | C150: ='Elec Study Rpt'!K150 -> 674571.58 | D150: 20342.73 | E150: 3.19 | F150: 0.0319 | G150: ='Elec Study Rpt'!V150 -> 0.01316835791 | H150: 0.4128011883 | I150: =D150*H150 -> 8397.503118 | J150: 0.0132 | K150: 1.002402888 | L150: 8417.681379 | M150: 20.17826126
B151: SNOQUALMIE #2 | C151: ='Elec Study Rpt'!K151 -> 80300.26 | D151: 9033.72 | E151: 11.25 | F151: 0.1125 | G151: ='Elec Study Rpt'!V151 -> 0.002565371519 | H151: =G151/F151 -> 0.02280330239 | I151: 205.9986489 | J151: 0.0026 | K151: 1.013498427 | L151: 208.7793067 | M151: 2.780657762
B153: TOTAL MISCELLANEOUS TOOLS | C153: =+SUBTOTAL(9,C147:C151) -> 2198787.65 | D153: =+SUBTOTAL(9,D147:D151) -> 73071.17 | E153: =D153/C153 -> 0.03323248155 | F153: =E153 -> 0.03323248155 | G153: =I153/C153 -> 0.03733952258 | H153: =G153/F153 -> 1.123585144 | I153: =+SUBTOTAL(9,I147:I151) -> 82101.6811 | J153: =L153/$C153 -> 0.03732544659 | K153: =J153/G153 -> 0.9996230272 | L153: =+SUBTOTAL(9,L147:L151) -> 82070.731 | M153: =+SUBTOTAL(9,M147:M151) -> -30.95010058 | N153: =H153*D153-I153 -> 0
A155: 336 | B155: ROADS, RAILROADS AND BRIDGES
B156: LOWER BAKER | C156: ='Elec Study Rpt'!K156 -> 1588315.74 | D156: 469.92 | E156: 0.45 | F156: 0.0045 | G156: ='Elec Study Rpt'!V156 -> 0.02298346549 | H156: =G156/F156 -> 5.107436776 | I156: =D156*H156 -> 2400.08669 | J156: 0.023 | K156: =J156/G156 -> 1.000719409 | L156: =I156*K156 -> 2401.813333 | M156: =L156-I156 -> 1.726643601
D157: 32497.44 | F157: 0.0219 | G157: =G156 -> 0.02298346549 | H157: =G157/F157 -> 1.04947331 | I157: =D157*H157 -> 34105.19593 | J157: =J156 -> 0.023 | K157: 1.000719409 | L157: 34129.73151 | M157: 24.53557972
B158: UPPER BAKER | C158: ='Elec Study Rpt'!K157 -> 2648181.67 | E158: 0 | F158: =E158*0.01 -> 0 | G158: ='Elec Study Rpt'!V157 -> 0.02527885483 | I158: 0 | J158: 0.025 | K158: 0.9889688504 | L158: 0 | M158: 0
B159: SNOQUALMIE #1 | C159: ='Elec Study Rpt'!K158 -> 637500.65 | D159: 20334.46 | E159: 3.19 | F159: 0.0319 | G159: ='Elec Study Rpt'!V158 -> 0.03381486748 | H159: =G159/F159 -> 1.060027194 | I159: =D159*H159 -> 21555.08057 | J159: 0.0339 | K159: 1.002517606 | L159: 21609.34777 | M159: 54.26720264
B160: SNOQUALMIE #2 | C160: ='Elec Study Rpt'!K159 -> 157935.07 | D160: 5038.23 | E160: 3.19 | F160: 0.0319 | G160: ='Elec Study Rpt'!V159 -> 0.03381769483 | H160: =G160/F160 -> 1.060115825 | I160: =D160*H160 -> 5341.107355 | J160: 0.0338 | K160: 0.9994767583 | L160: 5338.312665 | M160: -2.794690172
B163: TOTAL ROADS, RAILROADS AND BRIDGES | C163: =+SUBTOTAL(9,C156:C161) -> 5031933.13 | D163: =+SUBTOTAL(9,D156:D161) -> 58340.05 | E163: =D163/C163 -> 0.01159396369 | F163: =E163 -> 0.01159396369 | G163: =I163/C163 -> 0.01259982375 | H163: =G163/F163 -> 1.08675722 | I163: =+SUBTOTAL(9,I156:I161) -> 63401.47054 | J163: =L163/$C163 -> 0.01261527203 | K163: =J163/G163 -> 1.001226071 | L163: =+SUBTOTAL(9,L156:L161) -> 63479.20528 | M163: =+SUBTOTAL(9,M156:M161) -> 77.73473578 | N163: =H163*D163-I163 -> 0
B165: TOTAL HYDROELECTRIC PRODUCTION PLANT | C165: =SUBTOTAL(9,C91:C163) -> 704883822.7 | D165: =SUBTOTAL(9,D91:D163) -> 14991781.26 | F165: =D165/C165 -> 0.02126844279 | G165: =I165/C165 -> 0.02656543682 | H165: 1.249054154 | I165: =SUBTOTAL(9,I91:I163) -> 18725546.66 | J165: =L165/$C165 -> 0.02641741334 | K165: =J165/G165 -> 0.9944279676 | L165: =SUBTOTAL(9,L91:L163) -> 18621207.3 | M165: =SUBTOTAL(9,M91:M163) -> -104339.352 | N165: =H165*D165-I165 -> 0
B168: OTHER PRODUCTION PLANT
A170: 340.1 | B170: EASEMENTS | C170: ='Elec Study Rpt'!K172 -> 221928.75 | D170: 8477.64 | E170: 3.82 | F170: =E170*0.01 -> 0.0382 | G170: ='Elec Study Rpt'!V172 -> 0.01166590629 | H170: =G170/F170 -> 0.305390217 | I170: =D170*H170 -> 2588.988319 | J170: =G170 -> 0.01166590629 | K170: =J170/G170 -> 1 | L170: =I170*K170 -> 2588.988319 | M170: =L170-I170 -> 0 | N170: =H170*D170-I170 -> 0
A171: 341 | B171: STRUCTURES AND IMPROVEMENTS | M171: 0
B172: ENCOGEN | C172: ='Elec Study Rpt'!K174 -> 9238362.05 | D172: 196114.46 | E172: 2.15 | F172: 0.0215 | G172: ='Elec Study Rpt'!V174 -> 0.02509340928 | H172: 1.167135315 | I172: =D172*H172 -> 228892.1121 | J172: =G172 -> 0.02509340928 | K172: =J172/G172 -> 1 | L172: =I172*K172 -> 228892.1121 | M172: 0
B173: FREDERICKSON 1/EPCOR | C173: ='Elec Study Rpt'!K175 -> 5774386.75 | D173: 164725.17 | E173: 3.33 | F173: 0.0333 | G173: ='Elec Study Rpt'!V175 -> 0.02466738135 | H173: 0.7407622026 | I173: 122022.1797 | J173: 0.02466738135 | K173: 1 | L173: 122022.1797 | M173: 0
B174: GOLDENDALE | C174: ='Elec Study Rpt'!K176 -> 34450809.72 | D174: 533367.84 | E174: 1.55 | F174: 0.0155 | G174: ='Elec Study Rpt'!V176 -> 0.01012707692 | H174: 0.6533598013 | I174: 348481.106 | J174: 0.01012707692 | K174: 1 | L174: 348481.106 | M174: 0
B175: MINT FARM | C175: ='Elec Study Rpt'!K177 -> 11003157.44 | D175: 306992.59 | E175: 2.79871 | F175: 0.0279871 | G175: ='Elec Study Rpt'!V177 -> 0.02589174985 | H175: 0.9251315731 | I175: 284008.5377 | J175: 0.02589174985 | K175: 1 | L175: 284008.5377 | M175: 0
B176: SUMAS | C176: ='Elec Study Rpt'!K178 -> 2897941.9 | D176: 50424.12 | E176: 1.74 | F176: 0.0174 | G176: ='Elec Study Rpt'!V178 -> 0.01492196928 | H176: 0.8575844412 | I176: =D176*H176 -> 43242.94078 | J176: 0.01492196928 | K176: 1 | L176: 43242.94078 | M176: 0
B177: CRYSTAL MOUNTAIN | C177: ='Elec Study Rpt'!K179 -> 811209.69 | D177: 42695.64 | E177: 5.26 | F177: 0.0526 | G177: ='Elec Study Rpt'!V179 -> 0.05046167533 | H177: 0.9593474397 | I177: =D177*H177 -> 40959.95292 | J177: 0.05046167533 | K177: 1 | L177: 40959.95292 | M177: 0
B178: FREDONIA | C178: ='Elec Study Rpt'!K180 -> 5035526.76 | D178: 157366.32 | E178: 4.16 | F178: 0.0416 | G178: ='Elec Study Rpt'!V180 -> 0.01800725214 | H178: 0.4328666379 | I178: =D178*H178 -> 68118.62985 | J178: 0.01800725214 | K178: 1 | L178: 68118.62985 | M178: 0
D179: 28889.28 | E179: 2.31 | F179: 0.0231 | G179: =G178 -> 0.01800725214 | H179: 0.7795347245 | I179: =D179*H179 -> 22520.19692 | J179: 0.01800725214 | K179: 1 | L179: 22520.19692 | M179: 0
B180: FREDERICKSON | C180: ='Elec Study Rpt'!K181 -> 2735279.15 | D180: 87181.56 | E180: 3.22 | F180: 0.0322 | G180: ='Elec Study Rpt'!V181 -> 0.009061232379 | H180: 0.2814047323 | I180: 24533.30355 | J180: 0.009061232379 | K180: 1 | L180: 24533.30355 | M180: 0
B181: WHITEHORN 2-3 | C181: ='Elec Study Rpt'!K182 -> 1010183.43 | D181: 72602.56 | E181: 7.69 | F181: 0.0769 | G181: ='Elec Study Rpt'!V182 -> 0.02825823425 | H181: 0.3674672854 | I181: 26679.06564 | J181: 0.02825823425 | K181: 1 | L181: 26679.06564 | M181: 0
B182: FERNDALE | C182: ='Elec Study Rpt'!K183 -> 5927075 | D182: -11975.91 | E182: 1.504422 | F182: 0.01504422 | G182: ='Elec Study Rpt'!V183 -> 0.02280247846 | H182: 1.515696956 | I182: -18151.85033 | J182: 0.02280247846 | K182: 1 | L182: -18151.85033 | M182: 0
B184: TOTAL STRUCTURES AND IMPROVEMENTS | C184: =+SUBTOTAL(9,C172:C182) -> 78883931.89 | D184: =+SUBTOTAL(9,D172:D182) -> 1628383.63 | E184: =D184/C184 -> 0.02064277973 | F184: =E184 -> 0.02064277973 | G184: =I184/C184 -> 0.01510201313 | H184: 0.7315881546 | I184: =+SUBTOTAL(9,I172:I182) -> 1191306.175 | J184: =L184/$C184 -> 0.01510201313 | K184: =J184/G184 -> 1 | L184: 1191306.175 | M184: 0 | N184: =H184*D184-I184 -> 0
A186: 341.01 | B186: STRUCTURES AND IMPROVEMENTS - WIND
B187: LOWER SNAKE RIVER | C187: ='Elec Study Rpt'!K188 -> 31416965.73 | D187: 1292129.48 | E187: 4.24 | F187: =E187*0.01 -> 0.0424 | G187: ='Elec Study Rpt'!V188 -> 0.04371854404 | H187: =G187/F187 -> 1.031097737 | I187: =D187*H187 -> 1332311.783 | J187: =G187 -> 0.04371854404 | K187: =J187/G187 -> 1 | L187: =I187*K187 -> 1332311.783 | M187: =L187-I187 -> 0
B188: HOPKINS RIDGE | C188: ='Elec Study Rpt'!K189 -> 3413471.97 | D188: -538411.54 | E188: 4.24 | F188: 0.0424 | G188: ='Elec Study Rpt'!V189 -> 0.06876400394 | H188: 1.621792546 | I188: -873191.8221 | J188: 0.06876400394 | K188: 1 | L188: -873191.8221 | M188: 0
B189: WILD HORSE | C189: ='Elec Study Rpt'!K190 -> 15120072.09 | D189: -14913.25 | E189: 4.28 | F189: 0.0428 | G189: ='Elec Study Rpt'!V190 -> 0.05702307468 | H189: 1.332314829 | I189: -19869.14412 | J189: 0.05702307468 | K189: 1 | L189: -19869.14412 | M189: 0
B191: TOTAL STRUCTURES AND IMPROVEMENTS - WIND | C191: =+SUBTOTAL(9,C187:C189) -> 49950509.79 | D191: =+SUBTOTAL(9,D187:D189) -> 738804.69 | E191: =D191/C191 -> 0.01479073373 | F191: =E191 -> 0.01479073373 | G191: =I191/C191 -> 0.008793720388 | H191: =G191/F191 -> 0.5945425392 | I191: =+SUBTOTAL(9,I187:I189) -> 439250.8163 | J191: =L191/$C191 -> 0.008793720388 | K191: =J191/G191 -> 1 | L191: =+SUBTOTAL(9,L187:L189) -> 439250.8163 | M191: =+SUBTOTAL(9,M187:M189) -> 0 | N191: =H191*D191-I191 -> 0
A193: 342 | B193: FUEL HOLDERS, PRODUCERS AND ACCESSORIES
B194: ENCOGEN | C194: ='Elec Study Rpt'!K195 -> 8121641.08 | D194: 168930.12 | E194: 2.08 | F194: =E194*0.01 -> 0.0208 | G194: ='Elec Study Rpt'!V195 -> 0.01544946382 | H194: =G194/F194 -> 0.7427626835 | I194: =D194*H194 -> 125474.9893 | J194: =G194 -> 0.01544946382 | K194: =J194/G194 -> 1 | L194: =I194*K194 -> 125474.9893 | M194: =L194-I194 -> 0
B195: FREDERICKSON 1/EPCOR | C195: ='Elec Study Rpt'!K196 -> 1804662.8 | D195: 54500.76 | E195: 3.02 | F195: 0.0302 | G195: ='Elec Study Rpt'!V196 -> 0.02812270525 | H195: 0.9312154056 | I195: 50751.94733 | J195: =G195 -> 0.02812270525 | K195: 1 | L195: 50751.94733 | M195: 0
B196: GOLDENDALE | C196: ='Elec Study Rpt'!K197 -> 1887875 | D196: 29262.12 | E196: 1.55 | F196: 0.0155 | G196: ='Elec Study Rpt'!V197 -> 0.01040058267 | H196: 0.6710053333 | I196: 19635.03858 | J196: 0.01040058267 | K196: 1 | L196: 19635.03858 | M196: 0
B197: MINT FARM | C197: ='Elec Study Rpt'!K198 -> 1457862 | D197: 40801.32 | E197: 2.79871 | F197: 0.0279871 | G197: ='Elec Study Rpt'!V198 -> 0.0270711494 | H197: 0.9672724003 | I197: 39465.99073 | J197: 0.0270711494 | K197: 1 | L197: 39465.99073 | M197: 0
B198: SUMAS | C198: ='Elec Study Rpt'!K199 -> 3889943.37 | D198: 67685.04 | E198: 1.74 | F198: 0.0174 | G198: ='Elec Study Rpt'!V199 -> 0.009941789975 | H198: 0.57136724 | I198: 38673.01449 | J198: 0.009941789975 | K198: 1 | L198: 38673.01449 | M198: 0
B199: CRYSTAL MOUNTAIN | C199: ='Elec Study Rpt'!K200 -> 476309.45 | D199: 20576.52 | E199: 4.32 | F199: 0.0432 | G199: ='Elec Study Rpt'!V200 -> 0.07841120935 | H199: 1.815074291 | I199: 37347.91244 | J199: 0.07841120935 | K199: 1 | L199: 37347.91244 | M199: 0
B200: FREDONIA | C200: ='Elec Study Rpt'!K201 -> 3739991.62 | D200: 23391.96 | E200: 2.31 | F200: 0.0231 | G200: ='Elec Study Rpt'!V201 -> 0.03269739947 | H200: 1.415471838 | I200: =D200*H200 -> 33110.66062 | J200: 0.03269739947 | K200: 1 | L200: 33110.66062 | M200: 0
D201: 129470.04 | E201: 4.75 | F201: 0.0475 | G201: =G200 -> 0.03269739947 | H201: 0.6883663046 | I201: =D201*H201 -> 89122.81299 | J201: 0.03269739947 | K201: 1 | L201: 89122.81299 | M201: 0
B202: FREDERICKSON | C202: ='Elec Study Rpt'!K202 -> 3702107.48 | D202: 71450.64 | E202: 1.93 | F202: 0.0193 | G202: ='Elec Study Rpt'!V202 -> 0.005589518973 | H202: 0.289612382 | I202: 20692.99005 | J202: 0.005589518973 | K202: 1 | L202: 20692.99005 | M202: 0
B203: WHITEHORN 2-3 | C203: ='Elec Study Rpt'!K203 -> 134194.7 | D203: 7823.52 | E203: 5.83 | F203: 0.0583 | G203: ='Elec Study Rpt'!V203 -> 0.000998549123 | H203: 0.01712777226 | I203: 133.9994689 | J203: 0.000998549123 | K203: 1 | L203: 133.9994689 | M203: 0
B204: FERNDALE | C204: ='Elec Study Rpt'!K204 -> 418443 | D204: 6295.08 | E204: 1.504422 | F204: 0.01504422 | G204: ='Elec Study Rpt'!V204 -> 0.0209419204 | H204: 1.392024339 | I204: 8762.904577 | J204: 0.0209419204 | K204: 1 | L204: 8762.904577 | M204: 0
B206: TOTAL FUEL HOLDERS, PRODUCERS AND ACCESSORIES | C206: =+SUBTOTAL(9,C194:C204) -> 25633030.5 | D206: =+SUBTOTAL(9,D194:D204) -> 620187.12 | E206: =D206/C206 -> 0.02419484189 | F206: =E206 -> 0.02419484189 | G206: =I206/C206 -> 0.01806935237 | H206: =G206/F206 -> 0.746826636 | I206: =+SUBTOTAL(9,I194:I204) -> 463172.2605 | J206: =L206/$C206 -> 0.01806935237 | K206: =J206/G206 -> 1 | L206: 463172.2605 | M206: 0 | N206: =H206*D206-I206 -> 0
A208: 344 | B208: GENERATORS
B209: CRYSTAL MOUNTAIN | C209: ='Elec Study Rpt'!K209 -> 575842.91 | D209: 25740.12 | E209: 4.47 | F209: =E209*0.01 -> 0.0447 | G209: ='Elec Study Rpt'!V209 -> 0.03000644742 | H209: =G209/F209 -> 0.6712851771 | I209: =D209*H209 -> 17278.96101 | J209: =G209 -> 0.03000644742 | K209: =J209/G209 -> 1 | L209: =I209*K209 -> 17278.96101 | M209: =L209-I209 -> 0
B210: FREDONIA | C210: ='Elec Study Rpt'!K210 -> 99010602.66 | D210: 934955.73 | E210: 2.06 | F210: 0.0206 | G210: ='Elec Study Rpt'!V210 -> 0.02766005788 | H210: 1.342721256 | I210: =D210*H210 -> 1255384.932 | J210: 0.02766005788 | K210: 1 | L210: 1255384.932 | M210: 0
D211: 1236406.32 | E211: 2.31 | F211: 0.0231 | G211: =G210 -> 0.02766005788 | H211: 1.197405103 | I211: =D211*H211 -> 1480479.237 | J211: 0.02766005788 | K211: 1 | L211: 1480479.237 | M211: 0
B212: FREDERICKSON | C212: ='Elec Study Rpt'!K211 -> 30004024.96 | D212: 744015.48 | E212: 2.48 | F212: 0.0248 | G212: ='Elec Study Rpt'!V211 -> 0.01686467068 | H212: 0.6800270435 | I212: 505950.6472 | J212: 0.01686467068 | K212: 1 | L212: 505950.6472 | M212: 0
B213: WHITEHORN 2-3 | C213: ='Elec Study Rpt'!K212 -> 33087674.33 | D213: 804697.56 | E213: 2.85 | F213: 0.0285 | G213: ='Elec Study Rpt'!V212 -> 0.00653104228 | H213: 0.2291593782 | I213: 184403.9925 | J213: 0.00653104228 | K213: 1 | L213: 184403.9925 | M213: 0
D214: 344539.92 | E214: 7.1 | F214: 0.071 | G214: =G213 -> 0.00653104228 | H214: 0.09198651099 | I214: 31693.02514 | J214: 0.00653104228 | K214: 1 | L214: 31693.02514 | M214: 0
B216: TOTAL GENERATORS | C216: =+SUBTOTAL(9,C209:C213) -> 162678144.9 | D216: =+SUBTOTAL(9,D209:D214) -> 4090355.13 | E216: =D216/C216 -> 0.02514385158 | F216: =E216 -> 0.02514385158 | G216: =I216/C216 -> 0.02136237045 | H216: =G216/F216 -> 0.8496061306 | I216: =+SUBTOTAL(9,I209:I214) -> 3475190.795 | J216: =L216/$C216 -> 0.02136237045 | K216: =J216/G216 -> 1 | L216: =+SUBTOTAL(9,L209:L214) -> 3475190.795 | M216: =+SUBTOTAL(9,M209:M214) -> 0 | N216: =H216*D216-I216 -> 0
A218: 344.01 | B218: GENERATORS - WIND
B219: LOWER SNAKE RIVER | C219: ='Elec Study Rpt'!K217 -> 583581424.8 | D219: 24159123.09 | E219: 4.24 | F219: =E219*0.01 -> 0.0424 | G219: ='Elec Study Rpt'!V217 -> 0.04328117539 | H219: =G219/F219 -> 1.020782438 | I219: =D219*H219 -> 24661208.58 | J219: =G219 -> 0.04328117539 | K219: =J219/G219 -> 1 | L219: =I219*K219 -> 24661208.58 | M219: =L219-I219 -> 0
B220: HOPKINS RIDGE | C220: ='Elec Study Rpt'!K218 -> 153525782 | D220: 6666129.1 | E220: 4.24 | F220: 0.0424 | G220: ='Elec Study Rpt'!V218 -> 0.04882029521 | H220: 1.151422057 | I220: 7675528.079 | J220: 0.04882029521 | K220: 1 | L220: 7675528.079 | M220: 0
B221: WILD HORSE | C221: ='Elec Study Rpt'!K219 -> 372345403.4 | D221: 16191337.95 | E221: 4.28 | F221: 0.0428 | G221: ='Elec Study Rpt'!V219 -> 0.04842418581 | H221: 1.131406211 | I221: 18318980.31 | J221: 0.04842418581 | K221: 1 | L221: 18318980.31 | M221: 0
B223: TOTAL GENERATORS - WIND | C223: =+SUBTOTAL(9,C219:C221) -> 1109452610 | D223: =+SUBTOTAL(9,D219:D221) -> 47016590.14 | E223: =D223/C223 -> 0.04237818696 | F223: =E223 -> 0.04237818696 | G223: =I223/C223 -> 0.04565829717 | H223: =G223/F223 -> 1.077400909 | I223: =+SUBTOTAL(9,I219:I221) -> 50655716.97 | J223: =L223/$C223 -> 0.04565829717 | K223: =J223/G223 -> 1 | L223: 50655716.97 | M223: 0 | N223: =H223*D223-I223 -> 0
A225: 344.2 | B225: GENERATORS - COMBINED CYCLE
B226: ENCOGEN | C226: ='Elec Study Rpt'!K224 -> 74375981.07 | D226: 1368518.04 | E226: 1.84 | F226: =E226*0.01 -> 0.0184 | G226: ='Elec Study Rpt'!V224 -> 0.007265194922 | H226: =G226/F226 -> 0.3948475501 | I226: =D226*H226 -> 540355.9954 | J226: =G226 -> 0.007265194922 | K226: =J226/G226 -> 1 | L226: =I226*K226 -> 540355.9954 | M226: =L226-I226 -> 0
B227: FREDERICKSON 1/EPCOR | C227: ='Elec Study Rpt'!K225 -> 26006934.52 | D227: 746399.04 | E227: 2.87 | F227: 0.0287 | G227: ='Elec Study Rpt'!V225 -> 0.1153287789 | H227: 4.01842435 | I227: 2999348.077 | J227: 0.1153287789 | K227: 1 | L227: 2999348.077 | M227: 0
B228: GOLDENDALE | C228: ='Elec Study Rpt'!K226 -> 83514274.03 | D228: 1381030.28 | E228: 1.55 | F228: 0.0155 | G228: ='Elec Study Rpt'!V226 -> 0.08558768047 | H228: 5.521785836 | I228: 7625753.44 | J228: 0.08558768047 | K228: 1 | L228: 7625753.44 | M228: 0
B229: MINT FARM | C229: ='Elec Study Rpt'!K227 -> 32380061.68 | D229: 906224.04 | E229: 2.79871 | F229: 0.0279871 | G229: ='Elec Study Rpt'!V227 -> 0.0896497057 | H229: 3.203250987 | I229: 2902863.05 | J229: 0.0896497057 | K229: 1 | L229: 2902863.05 | M229: 0
B230: SUMAS | C230: ='Elec Study Rpt'!K228 -> 27973570.46 | D230: 486272.28 | E230: 1.74 | F230: 0.0174 | G230: ='Elec Study Rpt'!V228 -> 0.0095722139 | H230: 0.5501272357 | I230: 267511.6252 | J230: 0.0095722139 | K230: 1 | L230: 267511.6252 | M230: 0
B231: FERNDALE | C231: ='Elec Study Rpt'!K229 -> 53610403.71 | D231: 806087.52 | E231: 1.504422 | F231: 0.01504422 | G231: ='Elec Study Rpt'!V229 -> 0.01594388292 | H231: 1.059801234 | I231: 854292.5483 | J231: 0.01594388292 | K231: 1 | L231: 854292.5483 | M231: 0
B233: TOTAL GENERATORS - COMBINED CYCLE | C233: =+SUBTOTAL(9,C226:C231) -> 297861225.5 | D233: =+SUBTOTAL(9,D226:D231) -> 5694531.2 | E233: =D233/C233 -> 0.01911806812 | F233: =E233 -> 0.01911806812 | G233: =I233/C233 -> 0.0509973217 | H233: =G233/F233 -> 2.667493461 | I233: =+SUBTOTAL(9,I226:I231) -> 15190124.74 | J233: =L233/$C233 -> 0.0509973217 | K233: =J233/G233 -> 1 | L233: 15190124.74 | M233: 0 | N233: =H233*D233-I233 -> 0
A235: 345 | B235: ACCESSORY ELECTRIC EQUIPMENT
B236: ENCOGEN | C236: ='Elec Study Rpt'!K234 -> 2021517.63 | D236: 37195.92 | E236: 1.84 | F236: =E236*0.01 -> 0.0184 | G236: ='Elec Study Rpt'!V234 -> 0.01647128845 | H236: =G236/F236 -> 0.8951787204 | I236: =D236*H236 -> 33296.99607 | J236: =G236 -> 0.01647128845 | K236: =J236/G236 -> 1 | L236: =I236*K236 -> 33296.99607 | M236: =L236-I236 -> 0
B237: FREDERICKSON 1/EPCOR | C237: ='Elec Study Rpt'!K235 -> 296766.72 | D237: 8517.24 | E237: 2.87 | F237: 0.0287 | G237: ='Elec Study Rpt'!V235 -> 0.02990564441 | H237: 1.042008516 | I237: 8875.036612 | J237: 0.02990564441 | K237: 1 | L237: 8875.036612 | M237: 0
B238: GOLDENDALE | C238: ='Elec Study Rpt'!K236 -> 9468135 | D238: 146756.04 | E238: 1.55 | F238: 0.0155 | G238: ='Elec Study Rpt'!V236 -> 0.01076928033 | H238: 0.6947922792 | I238: 101964.9635 | J238: 0.01076928033 | K238: 1 | L238: 101964.9635 | M238: 0
B239: MINT FARM | C239: ='Elec Study Rpt'!K237 -> 2823972 | D239: 79034.76 | E239: 2.79871 | F239: 0.0279871 | G239: ='Elec Study Rpt'!V237 -> 0.0282534671 | H239: 1.009517496 | I239: 79786.97298 | J239: 0.0282534671 | K239: 1 | L239: 79786.97298 | M239: 0
B240: SUMAS | C240: ='Elec Study Rpt'!K238 -> 4392925.14 | D240: 76436.88 | E240: 1.74 | F240: 0.0174 | G240: ='Elec Study Rpt'!V238 -> 0.01267014534 | H240: 0.7281692725 | I240: 55658.9873 | J240: 0.01267014534 | K240: 1 | L240: 55658.9873 | M240: 0
B241: CRYSTAL MOUNTAIN | C241: ='Elec Study Rpt'!K239 -> 406679.71 | D241: 20618.64 | E241: 5.07 | F241: 0.0507 | G241: ='Elec Study Rpt'!V239 -> 0.05119999717 | H241: 1.009861877 | I241: 20821.97849 | J241: 0.05119999717 | K241: 1 | L241: 20821.97849 | M241: 0
B242: FREDONIA | C242: ='Elec Study Rpt'!K240 -> 7187907.92 | D242: 63030.48 | E242: 3.06 | F242: 0.0306 | G242: ='Elec Study Rpt'!V240 -> 0.04301098504 | H242: 1.405587746 | I242: 88594.87033 | J242: 0.04301098504 | K242: 1 | L242: 88594.87033 | M242: 0
D243: 118263.96 | E243: 2.31 | F243: 0.0231 | G243: =G242 -> 0.04301098504 | H243: 1.861947404 | I243: 220201.2733 | J243: 0.04301098504 | K243: 1 | L243: 220201.2733 | M243: 0
B244: FREDERICKSON | C244: ='Elec Study Rpt'!K241 -> 2438637.16 | D244: 163111.65 | E244: 6.75 | F244: 0.0675 | G244: ='Elec Study Rpt'!V241 -> 0.02431686065 | H244: 0.3602497874 | I244: 58760.93724 | J244: 0.02431686065 | K244: 1 | L244: 58760.93724 | M244: 0
B245: WHITEHORN 2-3 | C245: ='Elec Study Rpt'!K242 -> 201938.39 | D245: 10207.75 | E245: 5.02 | F245: 0.0502 | G245: ='Elec Study Rpt'!V242 -> 0.00993867486 | H245: 0.1979815709 | I245: 2020.946381 | J245: 0.00993867486 | K245: 1 | L245: 2020.946381 | M245: 0
B246: FERNDALE | C246: ='Elec Study Rpt'!K243 -> 3521060.99 | D246: 52971.6 | E246: 1.504422 | F246: 0.01504422 | G246: ='Elec Study Rpt'!V243 -> 0.02109932211 | H246: 1.402486943 | I246: 74291.97733 | J246: 0.02109932211 | K246: 1 | L246: 74291.97733 | M246: 0
... 230 more rows

Sheet Gas

Sheet Elec Study Rpt
A1: PUGET SOUND ENERGY
A2: ELECTRIC PLANT
A6: TABLE 1. SUMMARY OF ESTIMATED SURVIVOR CURVES, NET SALVAGE, ORIGINAL COST, BOOK DEPRECIATION RESERVE
A7: AND CALCULATED ANNUAL DEPRECIATION RATES AS OF SEPTEMBER 30, 2016 | Y7: STUDY FROM JOHN SPANOS
Y8: Before Colsrip 1 & 2 changes
E10: PROBABLE | I10: NET | K10: ORIGINAL COST | M10: BOOK | Q10: CALCULATED ANNUAL | U10: COMPOSITE | Y10: NET | Z10: CALCULATED ANNUAL | AB10: COMPOSITE
E11: RETIREMENT | G11: SURVIVOR | I11: SALVAGE | K11: AS OF | M11: DEPRECIATION | O11: FUTURE | Q11: ACCRUAL | S11: ACCRUAL | U11: REMAINING | Y11: SALVAGE | Z11: ACCRUAL | AA11: ACCRUAL | AB11: REMAINING
C12: ACCOUNT | E12: DATE | G12: CURVE | I12: PERCENT | K12: SEPTEMBER 30, 2016 | M12: RESERVE | O12: ACCRUALS | Q12: AMOUNT | S12: RATE | U12: LIFE | Y12: PERCENT | Z12: AMOUNT | AA12: RATE | AB12: LIFE
C13: -1 | E13: -2 | G13: -3 | I13: -4 | K13: -5 | M13: -6 | O13: -7 | Q13: -8 | S13: (9)=(8)/(5) | U13: (10)=(7)/(8) | Y13: -4 | Z13: -8 | AA13: (9)=(8)/(5)
C19: ELECTRIC PLANT
C21: STEAM PRODUCTION PLANT
A23: 311 | C23: STRUCTURES AND IMPROVEMENTS
C24: COLSTRIP 1 | E24: 2022-06-30 | G24: 90-R2 | H24: * | I24: 0 | K24: 9209467.84 | M24: 5369107.82 | O24: =K24*(1-(I24/100))-M24 -> 3840360.02 | Q24: =+O24/U24 -> 673747.3719 | S24: =Q24/K24*100 -> 7.315812201 | U24: 5.7 | V24: =Q24/K24 -> 0.07315812201 | W24: =S24/100-V24 -> 0 | Y24: -11 | Z24: =(K24*(1-(Y24/100))-M24)/AB24 -> 851276 | AA24: =Z24/K24*100 -> 9.243487407 | AB24: 5.701325401
C25: COLSTRIP 2 | E25: 2022-06-30 | G25: 90-R2 | H25: * | I25: 0 | K25: 4336957.28 | M25: 1063478.6 | O25: =K25*(1-(I25/100))-M25 -> 3273478.68 | Q25: =+O25/U25 -> 574294.5053 | S25: =Q25/K25*100 -> 13.241876 | U25: 5.7 | V25: =Q25/K25 -> 0.13241876 | W25: =S25/100-V25 -> 0 | Y25: -11 | Z25: =(K25*(1-(Y25/100))-M25)/AB25 -> 655913 | AA25: =Z25/K25*100 -> 15.12380588 | AB25: 5.718050993
C26: COLSTRIP 3 | E26: 2035-06-30 | G26: 90-R2 | H26: * | I26: -13 | K26: 29664979.16 | M26: 21454594.69 | O26: 12066832 | Q26: 666220 | S26: 2.25 | U26: 18.1 | V26: 0.0224581314 | W26: 4.186859843e-05 | Y26: -13 | Z26: 666220 | AA26: 2.25 | AB26: 18.1
C27: COLSTRIP 4 | E27: 2035-06-30 | G27: 90-R2 | H27: * | I27: -13 | K27: 27862834.57 | M27: 19334080.89 | O27: 12150922 | Q27: 669654 | S27: 2.4 | U27: 18.1 | V27: 0.02403395097 | W27: -3.395097213e-05 | Y27: -13 | Z27: 669654 | AA27: 2.4 | AB27: 18.1
C28: COLSTRIP 1-2 | E28: 2022-06-30 | G28: 90-R2 | H28: * | I28: 0 | K28: 30934199.88 | M28: 26913190.7 | O28: =K28*(1-(I28/100))-M28 -> 4021009.18 | Q28: =+O28/U28 -> 705440.207 | S28: =Q28/K28*100 -> 2.280454027 | U28: 5.7 | V28: 0.02280454027 | W28: 0 | Y28: -11 | Z28: =(K28*(1-(Y28/100))-M28)/AB28 -> 1305543 | AA28: =Z28/K28*100 -> 4.220387161 | AB28: 5.686347494
C29: COLSTRIP 3-4 | E29: 2035-06-30 | G29: 90-R2 | H29: * | I29: -13 | K29: 70065640.6 | M29: 52568883.73 | O29: 26605290 | Q29: 1471709 | S29: 2.1 | U29: 18.1 | V29: 0.02100471768 | W29: -4.717681836e-06 | Y29: -13 | Z29: 1471709 | AA29: 2.1 | AB29: 18.1
C30: FREDERICKSON 1/EPCOR | E30: 2042-06-30 | G30: 90-R2 | H30: * | I30: -5 | K30: 403636 | M30: 8557.12 | O30: 415261 | Q30: 16597 | S30: 4.11 | U30: 25 | V30: 0.04111873074 | W30: -1.87307376e-05 | Y30: -5 | Z30: 16597 | AA30: 4.11 | AB30: 25
C31: GOLDENDALE | E31: 2044-06-30 | G31: 90-R2 | H31: * | I31: -5 | K31: 2131451.97 | M31: 1475543.82 | O31: 762481 | Q31: 28273 | S31: 1.33 | U31: 27 | V31: 0.01326466671 | W31: 3.533328551e-05 | Y31: -5 | Z31: 28273 | AA31: 1.33 | AB31: 27
C32: MINT FARM | E32: 2047-06-30 | G32: 90-R2 | H32: * | I32: -5 | K32: 458042 | M32: 117385.54 | O32: 363559 | Q32: 12208 | S32: 2.67 | U32: 29.8 | V32: 0.02665257771 | W32: 4.742228879e-05 | Y32: -5 | Z32: 12208 | AA32: 2.67 | AB32: 29.8
C33: SUMAS | E33: 2033-06-30 | G33: 90-R2 | H33: * | I33: -5 | K33: 1492711.69 | M33: 1197365.06 | O33: 369982 | Q33: 22408 | S33: 1.5 | U33: 16.5 | V33: 0.01501160616 | W33: -1.160615953e-05 | Y33: -5 | Z33: 22408 | AA33: 1.5 | AB33: 16.5
C34: FERNDALE | E34: 2034-06-30 | G34: 90-R2 | H34: * | I34: -5 | K34: 571513.38 | M34: 367245.85 | O34: 232843 | Q34: 13296 | S34: 2.33 | U34: 17.5 | V34: 0.02326454719 | W34: 3.545280777e-05 | Y34: -5 | Z34: 13296 | AA34: 2.33 | AB34: 17.5
W35: 0
C36: TOTAL STRUCTURES AND IMPROVEMENTS | K36: =+SUBTOTAL(9,K24:K34) -> 177131434.4 | M36: =+SUBTOTAL(9,M24:M34) -> 129869433.8 | O36: =+SUBTOTAL(9,O24:O34) -> 64102017.88 | Q36: =+SUBTOTAL(9,Q24:Q34) -> 4853847.084 | S36: =Q36/K36*100 -> 2.740251668 | U36: =ROUND(O36/Q36,1) -> 13.2 | V36: 0.02740251668 | W36: 0 | Z36: 5713097 | AA36: 3.125119148
W37: 0
A38: 312 | C38: BOILER PLANT EQUIPMENT | W38: 0
C39: COLSTRIP 1 | E39: 2022-06-30 | G39: 75-S0 | H39: * | I39: 0 | K39: 88145747.64 | M39: 42279305.32 | O39: =K39*(1-(I39/100))-M39 -> 45866442.32 | Q39: =+O39/U39 -> 8046744.267 | S39: =Q39/K39*100 -> 9.128908067 | U39: 5.7 | V39: =Q39/K39 -> 0.09128908067 | W39: 0 | Y39: -11 | Z39: =(K39*(1-(Y39/100))-M39)/AB39 -> 9805944 | AA39: =Z39/K39*100 -> 11.12469321 | AB39: 5.666203535
C40: COLSTRIP 2 | E40: 2022-06-30 | G40: 75-S0 | H40: * | I40: 0 | K40: 88368523.22 | M40: 36998691.5 | O40: =K40*(1-(I40/100))-M40 -> 51369831.72 | Q40: =+O40/U40 -> 9012251.179 | S40: =Q40/K40*100 -> 10.19848567 | U40: 5.7 | V40: 0.1019848567 | W40: 0 | Y40: -11 | Z40: =(K40*(1-(Y40/100))-M40)/AB40 -> 10769052 | AA40: 12.1865248 | AB40: 5.672771315
C41: COLSTRIP 3 | E41: 2035-06-30 | G41: 75-S0 | H41: * | I41: -12 | K41: 137645881.6 | M41: 88664394.6 | O41: 65498993 | Q41: 3728844 | S41: 2.71 | U41: 17.6 | V41: 0.027090124 | W41: 9.876000665e-06 | Y41: -12 | Z41: 3728844 | AA41: 2.71 | AB41: 17.6
C42: COLSTRIP 4 | E42: 2035-06-30 | G42: 75-S0 | H42: * | I42: -12 | K42: 126930413.2 | M42: 74762985.32 | O42: 67399077 | Q42: 3825428 | S42: 3.01 | U42: 17.6 | V42: 0.03013799375 | W42: -3.799374519e-05 | Y42: -12 | Z42: 3825428 | AA42: 3.01 | AB42: 17.6
C43: COLSTRIP 1-2 | E43: 2022-06-30 | G43: 75-S0 | H43: * | I43: 0 | K43: 6043572.1 | M43: 5184006.73 | O43: =K43*(1-(I43/100))-M43 -> 859565.37 | Q43: =+O43/U43 -> 150800.9421 | S43: =Q43/K43*100 -> 2.495228643 | U43: 5.7 | V43: 0.02495228643 | W43: 0 | Y43: -11 | Z43: =(K43*(1-(Y43/100))-M43)/AB43 -> 272594 | AA43: =Z43/K43*100 -> 4.510478166 | AB43: 5.592046417
C44: COLSTRIP 3-4 | E44: 2035-06-30 | G44: 75-S0 | H44: * | I44: -12 | K44: 15254041.73 | M44: 10094597.47 | O44: 6989929 | Q44: 404976 | S44: 2.65 | U44: 17.3 | V44: 0.02654876702 | W44: -4.876701979e-05 | Y44: -12 | Z44: 404976 | AA44: 2.65 | AB44: 17.3
C45: ENCOGEN | E45: 2033-06-30 | G45: 75-S0 | H45: * | I45: -5 | K45: 42923481.28 | M45: 34057590.03 | O45: 11012065 | Q45: 689589 | S45: 1.61 | U45: 16 | V45: 0.0160655422 | W45: 3.445779708e-05 | Y45: -5 | Z45: 689589 | AA45: 1.61 | AB45: 16
C46: FREDERICKSON 1/EPCOR | E46: 2042-06-30 | G46: 75-S0 | H46: * | I46: -5 | K46: 18138531.28 | M46: 7308605.07 | O46: 11736853 | Q46: 489745 | S46: 2.7 | U46: 24 | V46: 0.02700025666 | W46: -2.566602515e-07 | Y46: -5 | Z46: 489745 | AA46: 2.7 | AB46: 24
C47: GOLDENDALE | E47: 2044-06-30 | G47: 75-S0 | H47: * | I47: -5 | K47: 86173649.71 | M47: 66841916.81 | O47: 23640415 | Q47: 914220 | S47: 1.06 | U47: 25.9 | V47: 0.01060904352 | W47: -9.043519413e-06 | Y47: -5 | Z47: 914220 | AA47: 1.06 | AB47: 25.9
C48: MINT FARM | E48: 2047-06-30 | G48: 75-S0 | H48: * | I48: -5 | K48: 26297846.77 | M48: 3059103.69 | O48: 24553635 | Q48: 860987 | S48: 3.27 | U48: 28.5 | V48: 0.03273982876 | W48: -3.982875975e-05 | Y48: -5 | Z48: 860987 | AA48: 3.27 | AB48: 28.5
C49: SUMAS | E49: 2033-06-30 | G49: 75-S0 | H49: * | I49: -5 | K49: 15704258.64 | M49: 13938346.76 | O49: 2551125 | Q49: 157672 | S49: 1 | U49: 16.2 | V49: 0.01004007917 | W49: -4.00791667e-05 | Y49: -5 | Z49: 157672 | AA49: 1 | AB49: 16.2
C50: FERNDALE | E50: 2034-06-30 | G50: 75-S0 | H50: * | I50: -5 | K50: 44686467.8 | M50: 30590588.72 | O50: 16330202 | Q50: 947227 | S50: 2.12 | U50: 17.2 | V50: 0.02119717773 | W50: 2.822271847e-06 | Y50: -5 | Z50: 947227 | AA50: 2.12 | AB50: 17.2
W51: 0
C52: TOTAL BOILER PLANT EQUIPMENT | K52: =+SUBTOTAL(9,K39:K50) -> 696312415 | M52: =+SUBTOTAL(9,M39:M50) -> 413780132 | O52: =+SUBTOTAL(9,O39:O50) -> 327808133.4 | Q52: =+SUBTOTAL(9,Q39:Q50) -> 29228484.39 | S52: 4.197610693 | U52: 11.2 | V52: 0.04197610693 | W52: 0 | Z52: 32866278 | AA52: 4.720047682 | AB52: 10
W53: 0
A54: 314 | C54: TURBOGENERATOR UNITS | W54: 0
C55: COLSTRIP 1 | E55: 2022-06-30 | G55: 45-R1.5 | H55: * | I55: 0 | K55: 28781740.46 | M55: 9901631.02 | O55: =K55*(1-(I55/100))-M55 -> 18880109.44 | Q55: =+O55/U55 -> 3312299.902 | S55: =Q55/K55*100 -> 11.50833775 | U55: 5.7 | V55: =Q55/K55 -> 0.1150833775 | W55: 0 | Y55: -10 | Z55: =(K55*(1-(Y55/100))-M55)/AB55 -> 3914005 | AA55: =Z55/K55*100 -> 13.59891701 | AB55: 5.559084234
C56: COLSTRIP 2 | E56: 2022-06-30 | G56: 45-R1.5 | H56: * | I56: 0 | K56: 34145118.66 | M56: 12039662.81 | O56: =K56*(1-(I56/100))-M56 -> 22105455.85 | Q56: =+O56/U56 -> 3878150.149 | S56: =Q56/K56*100 -> 11.35784645 | U56: 5.7 | V56: 0.1135784645 | W56: 0 | Y56: -10 | Z56: =(K56*(1-(Y56/100))-M56)/AB56 -> 4582212 | AA56: 13.41981572 | AB56: 5.569355524
C57: COLSTRIP 3 | E57: 2035-06-30 | G57: 45-R1.5 | H57: * | I57: -10 | K57: 42228337.04 | M57: 15440101.08 | O57: 31011070 | Q57: 1919620 | S57: 4.55 | U57: 16.2 | V57: 0.04545810076 | W57: 4.189924217e-05 | Y57: -10 | Z57: 1919620 | AA57: 4.55 | AB57: 16.2
C58: COLSTRIP 4 | E58: 2035-06-30 | G58: 45-R1.5 | H58: * | I58: -10 | K58: 39133170.24 | M58: 15579408.57 | O58: 27467079 | Q58: 1672938 | S58: 4.27 | U58: 16.4 | V58: 0.04274987152 | W58: -4.987152178e-05 | Y58: -10 | Z58: 1672938 | AA58: 4.27 | AB58: 16.4
C59: COLSTRIP 1-2 | E59: 2022-06-30 | G59: 45-R1.5 | H59: * | I59: 0 | K59: 3813725.5 | M59: 3575881.91 | O59: =K59*(1-(I59/100))-M59 -> 237843.59 | Q59: =+O59/U59 -> 41726.94561 | S59: =Q59/K59*100 -> 1.094125563 | U59: 5.7 | V59: 0.01094125563 | W59: 0 | Y59: -10 | Z59: =(K59*(1-(Y59/100))-M59)/AB59 -> 116678 | AA59: =Z59/K59*100 -> 3.059423128 | AB59: 5.307051372
C60: ENCOGEN | E60: 2033-06-30 | G60: 45-R1.5 | H60: * | I60: -5 | K60: 20710885.2 | M60: 16987715.85 | O60: 4758714 | Q60: 309829 | S60: 1.5 | U60: 15.4 | V60: 0.0149597179 | W60: 4.028210248e-05 | Y60: -5 | Z60: 309829 | AA60: 1.5 | AB60: 15.4
C61: FREDERICKSON 1/EPCOR | E61: 2042-06-30 | G61: 45-R1.5 | H61: * | I61: -5 | K61: 15800824.04 | M61: 6391663.07 | O61: 10199202 | Q61: 452092 | S61: 2.86 | U61: 22.6 | V61: 0.02861192548 | W61: -1.192548284e-05 | Y61: -5 | Z61: 452092 | AA61: 2.86 | AB61: 22.6
C62: GOLDENDALE | E62: 2044-06-30 | G62: 45-R1.5 | H62: * | I62: -5 | K62: 89524456.27 | M62: 69143032.49 | O62: 24857647 | Q62: 1016648 | S62: 1.14 | U62: 24.5 | V62: 0.01135609243 | W62: 4.390757165e-05 | Y62: -5 | Z62: 1016648 | AA62: 1.14 | AB62: 24.5
C63: MINT FARM | E63: 2047-06-30 | G63: 45-R1.5 | H63: * | I63: -5 | K63: 24647469.63 | M63: 6463275.29 | O63: 19416568 | Q63: 728552 | S63: 2.96 | U63: 26.7 | V63: 0.02955889635 | W63: 4.110365337e-05 | Y63: -5 | Z63: 728552 | AA63: 2.96 | AB63: 26.7
C64: SUMAS | E64: 2033-06-30 | G64: 45-R1.5 | H64: * | I64: -5 | K64: 22032534.57 | M64: 17817477.42 | O64: 5316684 | Q64: 336528 | S64: 1.53 | U64: 15.8 | V64: 0.0152741392 | W64: 2.586079778e-05 | Y64: -5 | Z64: 336528 | AA64: 1.53 | AB64: 15.8
C65: FERNDALE | E65: 2034-06-30 | G65: 45-R1.5 | H65: * | I65: -5 | K65: 18176144.67 | M65: 11698599.04 | O65: 7386353 | Q65: 439610 | S65: 2.42 | U65: 16.8 | V65: 0.02418609711 | W65: 1.390289407e-05 | Y65: -5 | Z65: 439610 | AA65: 2.42 | AB65: 16.8
W66: 0
C67: TOTAL TURBOGENERATOR UNITS | K67: =+SUBTOTAL(9,K55:K65) -> 338994406.3 | M67: =+SUBTOTAL(9,M55:M65) -> 185038448.5 | O67: =+SUBTOTAL(9,O55:O65) -> 171636725.9 | Q67: =+SUBTOTAL(9,Q55:Q65) -> 14107994 | S67: 4.161718818 | U67: 12.2 | W67: 0.04161718818 | Z67: 15488712 | AA67: 4.569016985 | AB67: 11.1
W68: 0
A69: 315 | C69: ACCESSORY ELECTRIC EQUIPMENT | W69: 0
C70: COLSTRIP 1 | E70: 2022-06-30 | G70: 60-S2 | H70: * | I70: 0 | K70: 7465362.62 | M70: 4686399.93 | O70: =K70*(1-(I70/100))-M70 -> 2778962.69 | Q70: =+O70/U70 -> 487537.314 | S70: =Q70/K70*100 -> 6.530658172 | U70: 5.7 | V70: =Q70/K70 -> 0.06530658172 | W70: 0 | Y70: -10 | Z70: =(K70*(1-(Y70/100))-M70)/AB70 -> 627933 | AA70: =Z70/K70*100 -> 8.411285988 | AB70: 5.614450828
C71: COLSTRIP 2 | E71: 2022-06-30 | G71: 60-S2 | H71: * | I71: 0 | K71: 4167725.42 | M71: 1460587.68 | O71: =K71*(1-(I71/100))-M71 -> 2707137.74 | Q71: =+O71/U71 -> 474936.4456 | S71: =Q71/K71*100 -> 11.39557907 | U71: 5.7 | V71: 0.1139557907 | W71: 0 | Y71: -11 | Z71: =(K71*(1-(Y71/100))-M71)/AB71 -> 560352 | AA71: 13.44503161 | AB71: 5.649283908
C72: COLSTRIP 3 | E72: 2035-06-30 | G72: 60-S2 | H72: * | I72: -10 | K72: 6769581.5 | M72: 4484209.88 | O72: 2962330 | Q72: 175611 | S72: 2.59 | U72: 16.9 | V72: 0.02594119001 | W72: -4.1190013e-05 | Y72: -10 | Z72: 175611 | AA72: 2.59 | AB72: 16.9
C73: COLSTRIP 4 | E73: 2035-06-30 | G73: 60-S2 | H73: * | I73: -11 | K73: 6474413.6 | M73: 3767316.75 | O73: 3419282 | Q73: 197994 | S73: 3.06 | U73: 17.3 | V73: 0.03058099347 | W73: 1.900653366e-05 | Y73: -11 | Z73: 197994 | AA73: 3.06 | AB73: 17.3
C74: COLSTRIP 1-2 | E74: 2022-06-30 | G74: 60-S2 | H74: * | I74: 0 | K74: 2272860.64 | M74: 1998202.47 | O74: =K74*(1-(I74/100))-M74 -> 274658.17 | Q74: =+O74/U74 -> 48185.64386 | S74: =Q74/K74*100 -> 2.120043922 | U74: 5.7 | V74: 0.02120043922 | W74: 0 | Y74: -10 | Z74: =(K74*(1-(Y74/100))-M74)/AB74 -> 91460 | AA74: =Z74/K74*100 -> 4.024003865 | AB74: 5.488128515
C75: COLSTRIP 3-4 | E75: 2035-06-30 | G75: 60-S2 | H75: * | I75: -10 | K75: 7639006.24 | M75: 5452900.67 | O75: 2950006 | Q75: 176897 | S75: 2.32 | U75: 16.7 | V75: 0.02315706971 | W75: 4.293029194e-05 | Y75: -10 | Z75: 176897 | AA75: 2.32 | AB75: 16.7
C76: ENCOGEN | E76: 2033-06-30 | G76: 60-S2 | H76: * | I76: 0 | K76: 1678558.68 | M76: 1328205.7 | O76: 350353 | Q76: 21481 | S76: 1.28 | U76: 16.3 | V76: 0.01279728868 | W76: 2.711316592e-06 | Y76: 0 | Z76: 21481 | AA76: 1.28 | AB76: 16.3
C77: FREDERICKSON 1/EPCOR | E77: 2042-06-30 | G77: 60-S2 | H77: * | I77: 0 | K77: 962486.71 | M77: 358861.47 | O77: 603625 | Q77: 24389 | S77: 2.53 | U77: 24.7 | V77: 0.02533957066 | W77: -3.957066275e-05 | Y77: 0 | Z77: 24389 | AA77: 2.53 | AB77: 24.7
C78: GOLDENDALE | E78: 2044-06-30 | G78: 60-S2 | H78: * | I78: 0 | K78: 7300879 | M78: 5714399.63 | O78: 1586479 | Q78: 59087 | S78: 0.81 | U78: 26.8 | V78: 0.008093135087 | W78: 6.864913115e-06 | Y78: 0 | Z78: 59087 | AA78: 0.81 | AB78: 26.8
C79: MINT FARM | E79: 2047-06-30 | G79: 60-S2 | H79: * | I79: 0 | K79: 2199936 | M79: 586806.03 | O79: 1613130 | Q79: 54516 | S79: 2.48 | U79: 29.6 | V79: 0.02478072089 | W79: 1.92791063e-05 | Y79: 0 | Z79: 54516 | AA79: 2.48 | AB79: 29.6
C80: SUMAS | E80: 2033-06-30 | G80: 60-S2 | H80: * | I80: 0 | K80: 670281.89 | M80: 579011.38 | O80: 91271 | Q80: 5491 | S80: 0.82 | U80: 16.6 | V80: 0.008192075725 | W80: 7.924274964e-06 | Y80: 0 | Z80: 5491 | AA80: 0.82 | AB80: 16.6
C81: FERNDALE | E81: 2034-06-30 | G81: 60-S2 | H81: * | I81: 0 | K81: 1279531 | M81: 862621.84 | O81: 416909 | Q81: 23581 | S81: 1.84 | U81: 17.7 | V81: 0.0184294089 | W81: -2.94089006e-05 | Y81: 0 | Z81: 23581 | AA81: 1.84 | AB81: 17.7
W82: 0
C83: TOTAL ACCESSORY ELECTRIC EQUIPMENT | K83: =+SUBTOTAL(9,K70:K81) -> 48880623.3 | M83: =+SUBTOTAL(9,M70:M81) -> 31279523.43 | O83: =+SUBTOTAL(9,O70:O81) -> 19754143.6 | Q83: =+SUBTOTAL(9,Q70:Q81) -> 1749706.404 | S83: 3.579550107 | U83: 11.3 | V83: =Q83/K83 -> 0.03579550107 | W83: 0 | Z83: 2018792 | AA83: 4.130045535 | AB83: 10.5
W84: 0
A85: 316 | C85: MISCELLANEOUS POWER PLANT EQUIPMENT | W85: 0
C86: COLSTRIP 1 | E86: 2022-06-30 | G86: 50-R1.5 | H86: * | I86: 0 | K86: 946611.59 | M86: 373568.68 | O86: =K86*(1-(I86/100))-M86 -> 573042.91 | Q86: =+O86/U86 -> 100533.8439 | S86: =Q86/K86*100 -> 10.62039013 | U86: 5.7 | V86: =Q86/K86 -> 0.1062039013 | W86: 0 | Y86: -11 | Z86: =(K86*(1-(Y86/100))-M86)/AB86 -> 120035 | AA86: =Z86/K86*100 -> 12.68049127 | AB86: 5.641439454
C87: COLSTRIP 2 | E87: 2022-06-30 | G87: 50-R1.5 | H87: * | I87: 0 | K87: 1075704.32 | M87: 483996.02 | O87: =K87*(1-(I87/100))-M87 -> 591708.3 | Q87: =+O87/U87 -> 103808.4737 | S87: =Q87/K87*100 -> 9.65027952 | U87: 5.7 | V87: 0.0965027952 | W87: 0 | Y87: -11 | Z87: =(K87*(1-(Y87/100))-M87)/AB87 -> 126437 | AA87: 11.75388047 | AB87: 5.615727795
C88: COLSTRIP 3 | E88: 2035-06-30 | G88: 50-R1.5 | H88: * | I88: -11 | K88: 1043990.99 | M88: 378123.11 | O88: 780707 | Q88: 45212 | S88: 4.33 | U88: 17.3 | V88: 0.04330688716 | W88: -6.887160013e-06 | Y88: -11 | Z88: 45212 | AA88: 4.33 | AB88: 17.3
C89: COLSTRIP 4 | E89: 2035-06-30 | G89: 50-R1.5 | H89: * | I89: -11 | K89: 1165681.21 | M89: 420604.1 | O89: 873302 | Q89: 50848 | S89: 4.36 | U89: 17.2 | V89: 0.04362084553 | W89: =S89/100-V89 -> -2.084553117e-05 | Y89: -11 | Z89: 50848 | AA89: 4.36 | AB89: 17.2
C90: COLSTRIP 1-2 | E90: 2022-06-30 | G90: 50-R1.5 | H90: * | I90: 0 | K90: 6205596.72 | M90: 5331195.47 | O90: =K90*(1-(I90/100))-M90 -> 874401.25 | Q90: =+O90/U90 -> 153403.7281 | S90: =Q90/K90*100 -> 2.472022192 | U90: 5.7 | V90: 0.02472022192 | W90: 0 | Y90: -10 | Z90: =(K90*(1-(Y90/100))-M90)/AB90 -> 270437 | AA90: =Z90/K90*100 -> 4.357953186 | AB90: 5.527945222
C91: COLSTRIP 1-4 | E91: 2035-06-30 | G91: 50-R1.5 | H91: * | I91: -9 | K91: 251533.56 | M91: 195027.13 | O91: 79144 | Q91: 4975 | S91: 1.98 | U91: 15.9 | V91: 0.01977867287 | W91: 2.132712629e-05 | Y91: -9 | Z91: 4975 | AA91: 1.98 | AB91: 15.9
C92: COLSTRIP 3-4 | E92: 2035-06-30 | G92: 50-R1.5 | H92: * | I92: -10 | K92: 4444375.42 | M92: 2910937.53 | O92: 1977875 | Q92: 121076 | S92: 2.72 | U92: 16.3 | V92: 0.02724252309 | W92: -4.252309e-05 | Y92: -10 | Z92: 121076 | AA92: 2.72 | AB92: 16.3
C93: FREDERICKSON 1/EPCOR | E93: 2042-06-30 | G93: 50-R1.5 | H93: * | I93: 0 | K93: 336377.91 | M93: 138260.22 | O93: 198118 | Q93: 8565 | S93: 2.55 | U93: 23.1 | V93: 0.02546243301 | W93: 3.756698827e-05 | Y93: 0 | Z93: 8565 | AA93: 2.55 | AB93: 23.1
C94: GOLDENDALE | E94: 2044-06-30 | G94: 50-R1.5 | H94: * | I94: 0 | K94: 6163 | M94: 4823.62 | O94: 1339 | Q94: 54 | S94: 0.88 | U94: 24.8 | V94: 0.008761966575 | W94: 3.803342528e-05 | Y94: 0 | Z94: 54 | AA94: 0.88 | AB94: 24.8
C95: MINT FARM | E95: 2047-06-30 | G95: 50-R1.5 | H95: * | I95: 0 | K95: 152757 | M95: 38798.85 | O95: 113958 | Q95: 4168 | S95: 2.73 | U95: 27.3 | V95: 0.02728516533 | W95: 1.483467206e-05 | Y95: 0 | Z95: 4168 | AA95: 2.73 | AB95: 27.3
C96: SUMAS | E96: 2033-06-30 | G96: 50-R1.5 | H96: * | I96: 0 | K96: 123691 | M96: 109782.03 | O96: 13909 | Q96: 874 | S96: 0.71 | U96: 15.9 | V96: 0.007065995101 | W96: 3.400489931e-05 | Y96: 0 | Z96: 874 | AA96: 0.71 | AB96: 15.9
C97: FERNDALE | E97: 2034-06-30 | G97: 50-R1.5 | H97: * | I97: 0 | K97: 62866 | M97: 43035.78 | O97: 19830 | Q97: 1171 | S97: 1.86 | U97: 16.9 | V97: 0.01862692075 | W97: -2.692075208e-05 | Y97: 0 | Z97: 1171 | AA97: 1.86 | AB97: 16.9
W98: 0
C99: TOTAL MISCELLANEOUS POWER PLANT EQUIPMENT | K99: =+SUBTOTAL(9,K86:K97) -> 15815348.72 | M99: =+SUBTOTAL(9,M86:M97) -> 10428152.54 | O99: =+SUBTOTAL(9,O86:O97) -> 6097334.46 | Q99: =+SUBTOTAL(9,Q86:Q97) -> 594689.0456 | S99: =Q99/K99*100 -> 3.760201916 | U99: =ROUND(O99/Q99,1) -> 10.3 | V99: =Q99/K99 -> 0.03760201916 | W99: 0 | Z99: 753852 | AA99: 4.766584748
W100: 0
C101: TOTAL STEAM PRODUCTION PLANT | K101: =SUBTOTAL(9,K23:K99) -> 1277134228 | M101: =SUBTOTAL(9,M23:M99) -> 770395690.4 | O101: =SUBTOTAL(9,O23:O99) -> 589398355.2 | Q101: =SUBTOTAL(9,Q23:Q99) -> 50534720.92 | S101: =ROUND(Q101/K101*100,2) -> 3.96 | V101: 0.03956884079 | W101: 3.115921297e-05 | Z101: 56840731 | AA101: 4.44
W102: 0
W103: 0
C104: HYDROELECTRIC PRODUCTION PLANT | W104: 0
W105: 0
A106: 330.1 | C106: EASEMENTS | E106: 2049-06-30 | G106: SQUARE | H106: * | I106: 0 | K106: 32898.73 | M106: 11389.88 | O106: 21509 | Q106: 657 | S106: 2 | U106: 32.7 | V106: =Q106/K106 -> 0.01997037576 | W106: 2.962424385e-05 | Z106: 657 | AA106: 2
A107: 331 | C107: STRUCTURES AND IMPROVEMENTS | W107: 0
C108: LOWER BAKER | E108: 2058-10-31 | G108: 75-S1 | H108: * | I108: -5 | K108: 35273454.28 | M108: 6306965.73 | O108: 30730161 | Q108: 776755 | S108: 2.2 | U108: 39.6 | V108: =Q108/K108 -> 0.02202095076 | W108: -2.095076468e-05 | Z108: 776755 | AA108: 2.2
C109: UPPER BAKER | E109: 2058-10-31 | G109: 75-S1 | H109: * | I109: -7 | K109: 15612653.91 | M109: 6565230.35 | O109: 10140309 | Q109: 260751 | S109: 1.67 | U109: 38.9 | V109: 0.0167012605 | W109: -1.260496973e-06 | Z109: 260751 | AA109: 1.67
C110: SNOQUALMIE #1 | E110: 2044-06-30 | G110: 75-S1 | H110: * | I110: -2 | K110: 58654809.26 | M110: 5540003.07 | O110: 54287902 | Q110: 2009010 | S110: 3.43 | U110: 27 | V110: 0.03425141136 | W110: 4.858864352e-05 | Z110: 2009010 | AA110: 3.43
C111: SNOQUALMIE #2 | E111: 2044-06-30 | G111: 75-S1 | H111: * | I111: -2 | K111: 54612246.02 | M111: 5903871.9 | O111: 49800619 | Q111: 1834277 | S111: 3.36 | U111: 27.1 | V111: 0.03358728369 | W111: 1.27163104e-05 | Z111: 1834277 | AA111: 3.36
W112: 0
C113: TOTAL STRUCTURES AND IMPROVEMENTS | K113: =+SUBTOTAL(9,K108:K111) -> 164153163.5 | M113: =+SUBTOTAL(9,M108:M111) -> 24316071.05 | O113: =+SUBTOTAL(9,O108:O111) -> 144958991 | Q113: =+SUBTOTAL(9,Q108:Q111) -> 4880793 | S113: =Q113/K113*100 -> 2.973316442 | U113: =ROUND(O113/Q113,1) -> 29.7 | V113: =Q113/K113 -> 0.02973316442 | W113: 0 | Z113: 4880793 | AA113: 2.973316442
W114: 0
A115: 332 | C115: RESERVOIRS, DAMS AND WATERWAYS | W115: 0
C116: LOWER BAKER | E116: 2058-10-31 | G116: 90-R1.5 | H116: * | I116: -9 | K116: 115624470 | M116: 22402337.16 | O116: 103628335 | Q116: 2636328 | S116: 2.28 | U116: 39.3 | V116: =Q116/K116 -> 0.02280077912 | W116: -7.79116324e-07 | Z116: 2636328 | AA116: 2.28
C117: UPPER BAKER | E117: 2058-10-31 | G117: 90-R1.5 | H117: * | I117: -12 | K117: 119603565.1 | M117: 59809737.76 | O117: 74146255 | Q117: 1900806 | S117: 1.59 | U117: 39 | V117: 0.01589255302 | W117: 7.446981752e-06 | Z117: 1900806 | AA117: 1.59
C118: SNOQUALMIE #1 | E118: 2044-06-30 | G118: 90-R1.5 | H118: * | I118: -4 | K118: 53492873.45 | M118: 4795759.13 | O118: 50836829 | Q118: 1899379 | S118: 3.55 | U118: 26.8 | V118: 0.035507141 | W118: -7.140998424e-06 | Z118: 1899379 | AA118: 3.55
C119: SNOQUALMIE #2 | E119: 2044-06-30 | G119: 90-R1.5 | H119: * | I119: -4 | K119: 60540016.92 | M119: 4528235 | O119: 58433383 | Q119: 2184265 | S119: 3.61 | U119: 26.8 | V119: 0.03607968929 | W119: 2.03107114e-05 | Z119: 2184265 | AA119: 3.61
W120: 0
C121: TOTAL RESERVOIRS, DAMS AND WATERWAYS | K121: =+SUBTOTAL(9,K116:K119) -> 349260925.5 | M121: =+SUBTOTAL(9,M116:M119) -> 91536069.05 | O121: =+SUBTOTAL(9,O116:O119) -> 287044802 | Q121: =+SUBTOTAL(9,Q116:Q119) -> 8620778 | S121: =Q121/K121*100 -> 2.468291576 | U121: =ROUND(O121/Q121,1) -> 33.3 | V121: =Q121/K121 -> 0.02468291576 | W121: 0 | Z121: 8620778 | AA121: 2.468291576
W122: 0
A123: 333 | C123: WATER WHEELS, TURBINES AND GENERATORS | W123: 0
C124: LOWER BAKER | E124: 2058-10-31 | G124: 75-S1 | H124: * | I124: -6 | K124: 41634914.7 | M124: 9000675.22 | O124: 35132334 | Q124: 893215 | S124: 2.15 | U124: 39.3 | V124: =Q124/K124 -> 0.02145350859 | W124: 4.649141385e-05 | Z124: 893215 | AA124: 2.15
C125: UPPER BAKER | E125: 2058-10-31 | G125: 75-S1 | H125: * | I125: -9 | K125: 13128270.76 | M125: 9227177.96 | O125: 5082637 | Q125: 126284 | S125: 0.96 | U125: 40.2 | V125: 0.009619240973 | W125: -1.924097306e-05 | Z125: 126284 | AA125: 0.96
C126: SNOQUALMIE #1 | E126: 2044-06-30 | G126: 75-S1 | H126: * | I126: -2 | K126: 36614585.44 | M126: 3022250.83 | O126: 34324626 | Q126: 1266049 | S126: 3.46 | U126: 27.1 | V126: 0.03457772319 | W126: 2.227681166e-05 | Z126: 1266049 | AA126: 3.46
C127: SNOQUALMIE #2 | E127: 2044-06-30 | G127: 75-S1 | H127: * | I127: -2 | K127: 35031623.57 | M127: 2768921.16 | O127: 32963335 | Q127: 1222346 | S127: 3.49 | U127: 27 | V127: 0.03489264486 | W127: 7.355142775e-06 | Z127: 1222346 | AA127: 3.49
W128: 0
C129: TOTAL WATER WHEELS, TURBINES AND GENERATORS | K129: =+SUBTOTAL(9,K124:K127) -> 126409394.5 | M129: =+SUBTOTAL(9,M124:M127) -> 24019025.17 | O129: =+SUBTOTAL(9,O124:O127) -> 107502932 | Q129: =+SUBTOTAL(9,Q124:Q127) -> 3507894 | S129: 1.82 | U129: 26.2 | V129: =Q129/K129 -> 0.02775026346 | W129: -0.009550263457 | Z129: 3507894 | AA129: 1.82
W130: 0
A131: 334 | C131: ACCESSORY ELECTRIC EQUIPMENT | W131: 0
C132: LOWER BAKER | E132: 2058-10-31 | G132: 60-R2.5 | H132: * | I132: -3 | K132: 15578198.47 | M132: 2648683.04 | O132: 13396861 | Q132: 343909 | S132: 2.21 | U132: 39 | V132: =Q132/K132 -> 0.0220763011 | W132: 2.369890124e-05 | Z132: 343909 | AA132: 2.21
C133: UPPER BAKER | E133: 2058-10-31 | G133: 60-R2.5 | H133: * | I133: -4 | K133: 2738077.7 | M133: 1380697.6 | O133: 1466903 | Q133: 38385 | S133: 1.4 | U133: 38.2 | V133: 0.01401895936 | W133: -1.89593597e-05 | Z133: 38385 | AA133: 1.4
C134: SNOQUALMIE #1 | E134: 2044-06-30 | G134: 60-R2.5 | H134: * | I134: -1 | K134: 16156295.24 | M134: 1231152.81 | O134: 15086705 | Q134: 561261 | S134: 3.47 | U134: 26.9 | V134: 0.03473946172 | W134: -3.946171833e-05 | Z134: 561261 | AA134: 3.47
C135: SNOQUALMIE #2 | E135: 2044-06-30 | G135: 60-R2.5 | H135: * | I135: -1 | K135: 11055386.45 | M135: 725092.46 | O135: 10440848 | Q135: 388424 | S135: 3.51 | U135: 26.9 | V135: 0.03513436656 | W135: -3.436656029e-05 | Z135: 388424 | AA135: 3.51
W136: 0
C137: TOTAL ACCESSORY ELECTRIC EQUIPMENT | K137: =+SUBTOTAL(9,K132:K135) -> 45527957.86 | M137: =+SUBTOTAL(9,M132:M135) -> 5985625.91 | O137: =+SUBTOTAL(9,O132:O135) -> 40391317 | Q137: =+SUBTOTAL(9,Q132:Q135) -> 1331979 | S137: =Q137/K137*100 -> 2.925628696 | U137: =ROUND(O137/Q137,1) -> 30.3 | V137: =Q137/K137 -> 0.02925628696 | W137: 0 | Z137: 1331979 | AA137: 2.925628696
W138: 0
A139: 335 | C139: MISCELLANEOUS POWER PLANT EQUIPMENT | W139: 0
C140: LOWER BAKER | E140: 2058-10-31 | G140: 45-S1 | H140: * | I140: -4 | K140: 8012780.46 | M140: 1065748.89 | O140: 7267543 | Q140: 216627 | S140: 2.7 | U140: 33.5 | V140: =Q140/K140 -> 0.02703518474 | W140: -3.518473786e-05 | Z140: 216627 | AA140: 2.7
C141: UPPER BAKER | E141: 2058-10-31 | G141: 45-S1 | H141: * | I141: -4 | K141: 1115022.1 | M141: 447518.47 | O141: 712105 | Q141: 22020 | S141: 1.97 | U141: 32.3 | V141: 0.0197484875 | W141: -4.848749635e-05 | Z141: 22020 | AA141: 1.97
C142: SNOQUALMIE #1 | E142: 2044-06-30 | G142: 45-S1 | H142: * | I142: -1 | K142: 1548648.53 | M142: 129676.29 | O142: 1434459 | Q142: 56004 | S142: 3.62 | U142: 25.6 | V142: 0.03616314413 | W142: 3.685586813e-05 | Z142: 56004 | AA142: 3.62
C143: SNOQUALMIE #2 | E143: 2044-06-30 | G143: 45-S1 | H143: * | I143: -2 | K143: 1592310.85 | M143: 173198.84 | O143: 1450958 | Q143: 56628 | S143: 3.56 | U143: 25.6 | V143: 0.03556340774 | W143: 3.659226463e-05 | Z143: 56628 | AA143: 3.56
W144: 0
C145: TOTAL MISCELLANEOUS POWER PLANT EQUIPMENT | K145: =+SUBTOTAL(9,K140:K143) -> 12268761.94 | M145: =+SUBTOTAL(9,M140:M143) -> 1816142.49 | O145: =+SUBTOTAL(9,O140:O143) -> 10865065 | Q145: =+SUBTOTAL(9,Q140:Q143) -> 351279 | S145: =Q145/K145*100 -> 2.863198436 | U145: =ROUND(O145/Q145,1) -> 30.9 | V145: =Q145/K145 -> 0.02863198436 | W145: 0 | Z145: 351279 | AA145: 2.863198436
W146: 0
A147: 335.1 | C147: MISCELLANEOUS TOOLS | W147: 0
C148: LOWER BAKER | E148: 2058-10-31 | G148: 18-S4 | H148: * | I148: 0 | K148: 846482.91 | M148: 637395.13 | O148: 209088 | Q148: 15022 | S148: 1.77 | U148: 13.9 | V148: =Q148/K148 -> 0.01774637128 | W148: -4.637127641e-05 | Z148: 15022 | AA148: 1.77
C149: UPPER BAKER | E149: 2058-10-31 | G149: 18-S4 | H149: * | I149: 0 | K149: 597432.9 | M149: 140377.26 | O149: 457056 | Q149: 61911 | S149: 10.36 | U149: 7.4 | V149: 0.103628374 | W149: -2.837399815e-05 | Z149: 61911 | AA149: 10.36
C150: SNOQUALMIE #1 | E150: 2044-06-30 | G150: 18-S4 | H150: * | I150: 0 | K150: 674571.58 | M150: 542234.84 | O150: 132337 | Q150: 8883 | S150: 1.32 | U150: 14.9 | V150: 0.01316835791 | W150: 3.164209201e-05 | Z150: 8883 | AA150: 1.32
C151: SNOQUALMIE #2 | E151: 2044-06-30 | G151: 18-S4 | H151: * | I151: 0 | K151: 80300.26 | M151: 77265.07 | O151: 3035 | Q151: 206 | S151: 0.26 | U151: 14.7 | V151: 0.002565371519 | W151: 3.462848065e-05 | Z151: 206 | AA151: 0.26
W152: 0
C153: TOTAL MISCELLANEOUS TOOLS | K153: =+SUBTOTAL(9,K148:K151) -> 2198787.65 | M153: =+SUBTOTAL(9,M148:M151) -> 1397272.3 | O153: =+SUBTOTAL(9,O148:O151) -> 801516 | Q153: =+SUBTOTAL(9,Q148:Q151) -> 86022 | S153: =Q153/K153*100 -> 3.912246824 | U153: =ROUND(O153/Q153,1) -> 9.3 | V153: =Q153/K153 -> 0.03912246824 | W153: =S153/100-V153 -> 0 | Z153: 86022 | AA153: 3.912246824
W154: 0
A155: 336 | C155: ROADS, RAILROADS AND BRIDGES | W155: 0
C156: LOWER BAKER | E156: 2058-10-31 | G156: 75-S0.5 | H156: * | I156: -1 | K156: 1588315.74 | M156: 188571.47 | O156: 1415627 | Q156: 36505 | S156: 2.3 | U156: 38.8 | V156: =Q156/K156 -> 0.02298346549 | W156: 1.653450843e-05 | Z156: 36505 | AA156: 2.3
C157: UPPER BAKER | E157: 2058-10-31 | G157: 75-S0.5 | H157: * | I157: -2 | K157: 2648181.67 | M157: 245575.23 | O157: 2455570 | Q157: 66943 | S157: 2.53 | U157: 36.7 | V157: 0.02527885483 | W157: 2.114516977e-05 | Z157: 66943 | AA157: 2.53
C158: SNOQUALMIE #1 | E158: 2044-06-30 | G158: 75-S0.5 | H158: * | I158: 0 | K158: 637500.65 | M158: 60851.95 | O158: 576649 | Q158: 21557 | S158: 3.38 | U158: 26.7 | V158: 0.03381486748 | W158: -1.486748288e-05 | Z158: 21557 | AA158: 3.38
C159: SNOQUALMIE #2 | E159: 2044-06-30 | G159: 75-S0.5 | H159: * | I159: 0 | K159: 157935.07 | M159: 15049.7 | O159: 142885 | Q159: 5341 | S159: 3.38 | U159: 26.8 | V159: 0.03381769483 | W159: -1.769482864e-05 | Z159: 5341 | AA159: 3.38
W160: 0
C161: TOTAL ROADS, RAILROADS AND BRIDGES | K161: =+SUBTOTAL(9,K156:K159) -> 5031933.13 | M161: =+SUBTOTAL(9,M156:M159) -> 510048.35 | O161: =+SUBTOTAL(9,O156:O159) -> 4590731 | Q161: =+SUBTOTAL(9,Q156:Q159) -> 130346 | S161: =Q161/K161*100 -> 2.590376236 | U161: =ROUND(O161/Q161,1) -> 35.2 | V161: =Q161/K161 -> 0.02590376236 | W161: 0 | Z161: 130346 | AA161: 2.590376236
W162: 0
C163: TOTAL HYDROELECTRIC PRODUCTION PLANT | K163: =SUBTOTAL(9,K105:K161) -> 704883822.7 | M163: =SUBTOTAL(9,M105:M161) -> 149591644.2 | O163: =SUBTOTAL(9,O105:O161) -> 596176863 | Q163: =SUBTOTAL(9,Q105:Q161) -> 18909748 | S163: =ROUND(Q163/K163*100,2) -> 2.68 | V163: 0.02682675838 | W163: -2.67583831e-05 | Z163: 18909748 | AA163: 2.68
W168: 0
W169: 0
C170: OTHER PRODUCTION PLANT | W170: 0
W171: 0
A172: 340.1 | C172: EASEMENTS | E172: 2030-06-30 | G172: SQUARE | H172: * | I172: -5 | K172: 221928.75 | M172: 197424.65 | O172: 35601 | Q172: 2589 | S172: 1.17 | U172: 13.8 | V172: =Q172/K172 -> 0.01166590629 | W172: 3.409371251e-05 | Z172: 2589 | AA172: 1.17
A173: 341 | C173: STRUCTURES AND IMPROVEMENTS | W173: 0
C174: ENCOGEN | E174: 2033-06-30 | G174: 55-R4 | H174: * | I174: -5 | K174: 9238362.05 | M174: 5850367.36 | O174: 3849913 | Q174: 231822 | S174: 2.51 | U174: 16.6 | V174: =Q174/K174 -> 0.02509340928 | W174: 6.590719726e-06 | Z174: 231822 | AA174: 2.51
C175: FREDERICKSON 1/EPCOR | E175: 2042-06-30 | G175: 55-R4 | H175: * | I175: -5 | K175: 5774386.75 | M175: 2475066.12 | O175: 3588040 | Q175: 142439 | S175: 2.47 | U175: 25.2 | V175: 0.02466738135 | W175: 3.261865427e-05 | Z175: 142439 | AA175: 2.47
C176: GOLDENDALE | E176: 2044-06-30 | G176: 55-R4 | H176: * | I176: -5 | K176: 34450809.72 | M176: 26661589.05 | O176: 9511761 | Q176: 348886 | S176: 1.01 | U176: 27.3 | V176: 0.01012707692 | W176: -2.707692027e-05 | Z176: 348886 | AA176: 1.01
C177: MINT FARM | E177: 2047-06-30 | G177: 55-R4 | H177: * | I177: -5 | K177: 11003157.44 | M177: 2980385.99 | O177: 8572929 | Q177: 284891 | S177: 2.59 | U177: 30.1 | V177: 0.02589174985 | W177: 8.250149695e-06 | Z177: 284891 | AA177: 2.59
C178: SUMAS | E178: 2033-06-30 | G178: 55-R4 | H178: * | I178: -5 | K178: 2897941.9 | M178: 2321056.67 | O178: 721782 | Q178: 43243 | S178: 1.49 | U178: 16.7 | V178: 0.01492196928 | W178: -2.196927758e-05 | Z178: 43243 | AA178: 1.49
C179: CRYSTAL MOUNTAIN | E179: 2028-06-30 | G179: 55-R4 | H179: * | I179: -5 | K179: 811209.69 | M179: 372742.74 | O179: 479027 | Q179: 40935 | S179: 5.05 | U179: 11.7 | V179: 0.05046167533 | W179: 3.832467164e-05 | Z179: 40935 | AA179: 5.05
C180: FREDONIA | E180: 2030-06-30 | G180: 55-R4 | H180: * | I180: -5 | K180: 5035526.76 | M180: 4058710.98 | O180: 1228592 | Q180: 90676 | S180: 1.8 | U180: 13.5 | V180: 0.01800725214 | W180: -7.252135028e-06 | Z180: 90676 | AA180: 1.8
C181: FREDERICKSON | E181: 2030-06-30 | G181: 55-R4 | H181: * | I181: -5 | K181: 2735279.15 | M181: 2532961.56 | O181: 339082 | Q181: 24785 | S181: 0.91 | U181: 13.7 | V181: 0.009061232379 | W181: 3.876762085e-05 | Z181: 24785 | AA181: 0.91
C182: WHITEHORN 2-3 | E182: 2038-06-30 | G182: 55-R4 | H182: * | I182: -5 | K182: 1010183.43 | M182: 442590.24 | O182: 618102 | Q182: 28546 | S182: 2.83 | U182: 21.7 | V182: 0.02825823425 | W182: 4.17657504e-05 | Z182: 28546 | AA182: 2.83
C183: FERNDALE | E183: 2034-06-30 | G183: 55-R4 | H183: * | I183: -5 | K183: 5927075 | M183: 3829888.98 | O183: 2393540 | Q183: 135152 | S183: 2.28 | U183: 17.7 | V183: 0.02280247846 | W183: -2.478456912e-06 | Z183: 135152 | AA183: 2.28
W184: 0
C185: TOTAL STRUCTURES AND IMPROVEMENTS | K185: =+SUBTOTAL(9,K174:K183) -> 78883931.89 | M185: =+SUBTOTAL(9,M174:M183) -> 51525359.69 | O185: =+SUBTOTAL(9,O174:O183) -> 31302768 | Q185: =+SUBTOTAL(9,Q174:Q183) -> 1371375 | S185: =Q185/K185*100 -> 1.738471913 | U185: =ROUND(O185/Q185,1) -> 22.8 | V185: =Q185/K185 -> 0.01738471913 | W185: 0 | Z185: 1371375 | AA185: 1.738471913
W186: 0
A187: 341.01 | C187: STRUCTURES AND IMPROVEMENTS - WIND | W187: 0
C188: LOWER SNAKE RIVER | E188: 2037-06-30 | G188: 55-R4 | H188: * | I188: -5 | K188: 31416965.73 | M188: 4583746.24 | O188: 28404068 | Q188: 1373504 | S188: 4.37 | U188: 20.7 | V188: =Q188/K188 -> 0.04371854404 | W188: -1.854404413e-05 | Z188: 1373504 | AA188: 4.37
C189: HOPKINS RIDGE | E189: 2030-06-30 | G189: 55-R4 | H189: * | I189: -5 | K189: 3413471.97 | M189: 368034 | O189: 3216112 | Q189: 234724 | S189: 6.88 | U189: 13.7 | V189: 0.06876400394 | W189: 3.599605829e-05 | Z189: 234724 | AA189: 6.88
C190: WILD HORSE | E190: 2031-06-30 | G190: 55-R4 | H190: * | I190: -5 | K190: 15120072.09 | M190: 3203467.94 | O190: 12672608 | Q190: 862193 | S190: 5.7 | U190: 14.7 | V190: 0.05702307468 | W190: -2.307468297e-05 | Z190: 862193 | AA190: 5.7
W191: 0
C192: TOTAL STRUCTURES AND IMPROVEMENTS - WIND | K192: =+SUBTOTAL(9,K188:K190) -> 49950509.79 | M192: =+SUBTOTAL(9,M188:M190) -> 8155248.18 | O192: =+SUBTOTAL(9,O188:O190) -> 44292788 | Q192: =+SUBTOTAL(9,Q188:Q190) -> 2470421 | S192: =Q192/K192*100 -> 4.945737312 | U192: =ROUND(O192/Q192,1) -> 17.9 | V192: =Q192/K192 -> 0.04945737312 | W192: 0 | Z192: 2470421 | AA192: 4.945737312
W193: 0
A194: 342 | C194: FUEL HOLDERS, PRODUCERS AND ACCESSORIES | W194: 0
C195: ENCOGEN | E195: 2033-06-30 | G195: 45-R3 | H195: * | I195: -5 | K195: 8121641.08 | M195: 6540475.27 | O195: 1987248 | Q195: 125475 | S195: 1.54 | U195: 15.8 | V195: =Q195/K195 -> 0.01544946382 | W195: -4.946381699e-05 | Z195: 125475 | AA195: 1.54
C196: FREDERICKSON 1/EPCOR | E196: 2042-06-30 | G196: 45-R3 | H196: * | I196: -5 | K196: 1804662.8 | M196: 697151.93 | O196: 1197744 | Q196: 50752 | S196: 2.81 | U196: 23.6 | V196: 0.02812270525 | W196: -2.270524998e-05 | Z196: 50752 | AA196: 2.81
C197: GOLDENDALE | E197: 2044-06-30 | G197: 45-R3 | H197: * | I197: -5 | K197: 1887875 | M197: 1477641 | O197: 504628 | Q197: 19635 | S197: 1.04 | U197: 25.7 | V197: 0.01040058267 | W197: -5.826656956e-07 | Z197: 19635 | AA197: 1.04
C198: MINT FARM | E198: 2047-06-30 | G198: 45-R3 | H198: * | I198: -5 | K198: 1457862 | M198: 419774.87 | O198: 1110980 | Q198: 39466 | S198: 2.71 | U198: 28.2 | V198: 0.0270711494 | W198: 2.885060452e-05 | Z198: 39466 | AA198: 2.71
C199: SUMAS | E199: 2033-06-30 | G199: 45-R3 | H199: * | I199: -5 | K199: 3889943.37 | M199: 3452527.24 | O199: 631913 | Q199: 38673 | S199: 0.99 | U199: 16.3 | V199: 0.009941789975 | W199: -4.178997521e-05 | Z199: 38673 | AA199: 0.99
C200: CRYSTAL MOUNTAIN | E200: 2028-06-30 | G200: 45-R3 | H200: * | I200: -5 | K200: 476309.45 | M200: 67263.19 | O200: 432862 | Q200: 37348 | S200: 7.84 | U200: 11.6 | V200: 0.07841120935 | W200: -1.12093514e-05 | Z200: 37348 | AA200: 7.84
C201: FREDONIA | E201: 2030-06-30 | G201: 45-R3 | H201: * | I201: -5 | K201: 3739991.62 | M201: 2415322.15 | O201: 1511669 | Q201: 122288 | S201: 3.27 | U201: 12.4 | V201: 0.03269739947 | W201: 2.600533634e-06 | Z201: 122288 | AA201: 3.27
C202: FREDERICKSON | E202: 2030-06-30 | G202: 45-R3 | H202: * | I202: -5 | K202: 3702107.48 | M202: 3642779 | O202: 244434 | Q202: 20693 | S202: 0.56 | U202: 11.8 | V202: 0.005589518973 | W202: 1.048102688e-05 | Z202: 20693 | AA202: 0.56
C203: WHITEHORN 2-3 | E203: 2038-06-30 | G203: 45-R3 | H203: * | I203: -5 | K203: 134194.7 | M203: 138223 | O203: 2681 | Q203: 134 | S203: 0.1 | U203: 20 | V203: 0.000998549123 | W203: 1.450876972e-06 | Z203: 134 | AA203: 0.1
C204: FERNDALE | E204: 2034-06-30 | G204: 45-R3 | H204: * | I204: -5 | K204: 418443 | M204: 286449.33 | O204: 152916 | Q204: 8763 | S204: 2.09 | U204: 17.5 | V204: 0.0209419204 | W204: -4.192040493e-05 | Z204: 8763 | AA204: 2.09
W205: 0
C206: TOTAL FUEL HOLDERS, PRODUCERS AND ACCESSORIES | K206: =+SUBTOTAL(9,K195:K204) -> 25633030.5 | M206: =+SUBTOTAL(9,M195:M204) -> 19137606.98 | O206: =+SUBTOTAL(9,O195:O204) -> 7777075 | Q206: =+SUBTOTAL(9,Q195:Q204) -> 463227 | S206: =Q206/K206*100 -> 1.807148788 | U206: =ROUND(O206/Q206,1) -> 16.8 | V206: =Q206/K206 -> 0.01807148788 | W206: 0 | Z206: 463227 | AA206: 1.807148788
W207: 0
A208: 344 | C208: GENERATORS
C209: CRYSTAL MOUNTAIN | E209: 2028-06-30 | G209: 60-R3 | H209: * | I209: -5 | K209: 575842.91 | M209: 405828.63 | O209: 198806 | Q209: 17279 | S209: 3 | U209: 11.5 | V209: =Q209/K209 -> 0.03000644742 | W209: -6.447418099e-06 | Z209: 17279 | AA209: 3
C210: FREDONIA | E210: 2030-06-30 | G210: 60-R3 | H210: * | I210: -5 | K210: 99010602.66 | M210: 66636896.34 | O210: 37324236 | Q210: 2738639 | S210: 2.77 | U210: 13.6 | V210: 0.02766005788 | W210: 3.994212312e-05 | Z210: 2738639 | AA210: 2.77
C211: FREDERICKSON | E211: 2030-06-30 | G211: 60-R3 | H211: * | I211: -5 | K211: 30004024.96 | M211: 24750966 | O211: 6753260 | Q211: 506008 | S211: 1.69 | U211: 13.3 | V211: 0.01686467068 | W211: 3.532932083e-05 | Z211: 506008 | AA211: 1.69
C212: WHITEHORN 2-3 | E212: 2038-06-30 | G212: 60-R3 | H212: * | I212: -5 | K212: 33087674.33 | M212: 30119678 | O212: 4622380 | Q212: 216097 | S212: 0.65 | U212: 21.4 | V212: 0.00653104228 | W212: -3.104228012e-05 | Z212: 216097 | AA212: 0.65
W213: 0
C214: TOTAL GENERATORS | K214: =+SUBTOTAL(9,K209:K212) -> 162678144.9 | M214: =+SUBTOTAL(9,M209:M212) -> 121913369 | O214: =+SUBTOTAL(9,O209:O212) -> 48898682 | Q214: =+SUBTOTAL(9,Q209:Q212) -> 3478023 | S214: =Q214/K214*100 -> 2.137978032 | U214: =ROUND(O214/Q214,1) -> 14.1 | V214: =Q214/K214 -> 0.02137978032 | W214: 0 | Z214: 3478023 | AA214: 2.137978032
W215: 0
... 227 more rows

Sheet Common-Elec&Gas
E1: 4 FACTOR | F1: 4 FACTOR | H1: CURRENT | K1: PROPOSED | L1: 4 FACTOR | M1: 4 FACTOR | P1: PROPOSED | Q1: 4 FACTOR | R1: 4 FACTOR
A2: ACCOUNT | C2: ACQUISITION | D2: DEPRECIATION | E2: ALLOCATOR | F2: ALLOCATOR | G2: CURRENT | H2: RATE | I2: PROPOSED | J2: Difft % | K2: DEPRECIATION | L2: ALLOCATOR | M2: ALLOCATOR | N2: PROPOSED | O2: Difft % | P2: DEPRECIATION | Q2: ALLOCATOR | R2: ALLOCATOR | S2: INCREASE | T2: INCREASE
A3: NUMBER | B3: DESCRIPTION | C3: VALUE | D3: EXPENSE | E3: CURRENT ELEC | F3: Current GAS | G3: RATE | H3: % | I3: RATE | J3: RATE | K3: EXPENSE AMOUNT | L3: PROPOSED ELEC | M3: PROPOSED GAS | N3: RATE | O3: RATE | P3: EXPENSE AMOUNT | Q3: PROPOSED ELEC | R3: PROPOSED GAS | S3: (DECREASE) | T3: (DECREASE)
I4: Per PSE | K4: Per PSE | L4: Per PSE | M4: Per PSE | N4: Per Public Counsel | P4: Per Public Counsel | Q4: Per Public Counsel | R4: Per Public Counsel | S4: Electric | T4: Gas
E5: 0.6718 | F5: 0.3282 | L5: 0.6718 | M5: 0.3282 | Q5: =E5 -> 0.6718 | R5: =F5 -> 0.3282 | S5: AMOUNT | T5: AMOUNT
A6: COMMON PLANT
A8: 389.1 | B8: LAND AND LAND RIGHTS - EASEMENTS | C8: ='Comm Study Rpt'!K17 -> 14082567.58 | D8: 281651.4 | E8: =D8*$E$5 -> 189213.4105 | F8: =D8*$F$5 -> 92437.98948 | G8: 2 | H8: =G8*0.01 -> 0.02 | I8: ='Comm Study Rpt'!V17 -> 0.01645161642 | J8: =I8/H8 -> 0.8225808209 | K8: =D8*J8 -> 231681.0398 | L8: =K8*L5 -> 155643.3225 | M8: =K8*M5 -> 76037.71727 | N8: =I8 -> 0.01645161642 | O8: =N8/I8 -> 1 | P8: =K8*O8 -> 231681.0398 | Q8: =P8*Q5 -> 155643.3225 | R8: =P8*R5 -> 76037.71727 | S8: =Q8-L8 -> 0 | T8: =R8-M8 -> 0
A10: 390 | B10: STRUCTURES AND IMPROVEMENTS
B11: EAST SIDE TELECOMMUNICATION OFFICE | C11: ='Comm Study Rpt'!K20 -> 25949969.49 | D11: 1338163.75 | E11: =D11*$E$5 -> 898978.4072 | F11: =D11*$F$5 -> 439185.3428 | G11: 5.27 | H11: =G11*0.01 -> 0.0527 | I11: ='Comm Study Rpt'!V20 -> 0.02947968784 | J11: =I11/H11 -> 0.559386866 | K11: =D11*J11 -> 748551.2263 | L11: =K11*L5 -> 502876.7138 | M11: =K11*M5 -> 245674.5125 | N11: =I11 -> 0.02947968784 | O11: =N11/I11 -> 1 | P11: =K11*O11 -> 748551.2263 | Q11: =P11*Q5 -> 502876.7138 | R11: =P11*R5 -> 245674.5125 | S11: =Q11-L11 -> 0 | T11: =R11-M11 -> 0
B12: FACTORIA | C12: ='Comm Study Rpt'!K21 -> 18065002.23 | D12: 952025.64 | E12: =D12*$E$5 -> 639570.825 | F12: =D12*$F$5 -> 312454.815 | G12: 5.27 | H12: 0.0527 | I12: ='Comm Study Rpt'!V21 -> 0.01875122935 | J12: 0.3558108036 | K12: 338741.008 | L12: =K12*L5 -> 227566.2092 | M12: =K12*M5 -> 111174.7988 | N12: =I12 -> 0.01875122935 | O12: 1 | P12: 338741.008 | Q12: =P12*Q5 -> 227566.2092 | R12: =P12*R5 -> 111174.7988 | S12: 0 | T12: 0
B13: OTHER STRUCTURES | C13: ='Comm Study Rpt'!K22 -> 45026876.4 | D13: 1846509.14 | E13: 1240484.84 | F13: 606024.2997 | G13: 5.27 | H13: 0.0527 | I13: ='Comm Study Rpt'!V22 -> 0.01284874826 | J13: 0.243809265 | K13: 450196.0362 | L13: =K13*L5 -> 302441.6971 | M13: =K13*M5 -> 147754.3391 | N13: =I13 -> 0.01284874826 | O13: 1 | P13: 450196.0362 | Q13: =P13*Q5 -> 302441.6971 | R13: =P13*R5 -> 147754.3391 | S13: 0 | T13: 0
C14: =+SUBTOTAL(9,C11:C13) -> 89041848.12 | D14: =+SUBTOTAL(9,D11:D13) -> 4136698.53 | E14: 2779034.072 | F14: 1357664.458 | I14: =K14/C14 -> 0.01726703009 | K14: =+SUBTOTAL(9,K11:K13) -> 1537488.271 | L14: 1032884.62 | M14: 504603.6504 | P14: =SUBTOTAL(9,P11:P13) -> 1537488.271 | Q14: 1032884.62 | R14: =+SUBTOTAL(9,R11:R13) -> 504603.6504 | S14: =+SUBTOTAL(9,S11:S13) -> 0 | T14: 0
A16: 391.1 | B16: OFFICE FURNITURE AND EQUIPMENT | C16: ='Comm Study Rpt'!K26 -> 21112177.85 | D16: 374011.6 | E16: =D16*$E$5 -> 251260.9929 | F16: =D16*$F$5 -> 122750.6071 | G16: 5 | H16: =G16*0.01 -> 0.05 | I16: ='Comm Study Rpt'!V26 -> 0.05004978679 | J16: =I16/H16 -> 1.000995736 | K16: =D16*J16 -> 374384.0167 | L16: =K16*L5 -> 251511.1824 | M16: =K16*M5 -> 122872.8343 | N16: =I16 -> 0.05004978679 | O16: =N16/I16 -> 1 | P16: =K16*O16 -> 374384.0167 | Q16: =P16*Q5 -> 251511.1824 | R16: =P16*R5 -> 122872.8343 | S16: =Q16-L16 -> 0 | T16: =R16-M16 -> 0
D17: 495366.96 | E17: =D17*$E$5 -> 332787.5237 | F17: =D17*$F$5 -> 162579.4363 | H17: 0.16438356 | I17: =I16 -> 0.05004978679 | J17: =I17/H17 -> 0.3044695393 | K17: =D17*J17 -> 150824.1501 | L17: =K17*L5 -> 101323.664 | M17: =K17*M5 -> 49500.48607 | N17: =I17 -> 0.05004978679 | O17: 1 | P17: 150824.1501 | Q17: =P17*Q5 -> 101323.664 | R17: =P17*R5 -> 49500.48607 | S17: 0 | T17: 0
D18: =+SUBTOTAL(9,D16:D17) -> 869378.56 | E18: =+SUBTOTAL(9,E16:E17) -> 584048.5166 | F18: 285330.0434 | K18: =+SUBTOTAL(9,K16:K17) -> 525208.1668 | L18: 352834.8465 | M18: 172373.3204 | P18: =SUBTOTAL(9,P16:P17) -> 525208.1668 | Q18: =+SUBTOTAL(9,Q16:Q17) -> 352834.8465 | R18: =+SUBTOTAL(9,R16:R17) -> 172373.3204 | S18: 0 | T18: 0
A21: 391.2 | B21: OFFICE FURNITURE AND EQUIPMENT - COMPUTERS | C21: ='Comm Study Rpt'!K28 -> 63265264.67 | D21: 11802785.69 | E21: =D21*$E$5 -> 7929111.427 | F21: =D21*$F$5 -> 3873674.263 | G21: 20 | H21: =G21*0.01 -> 0.2 | I21: ='Comm Study Rpt'!V28 -> 0.200026793 | J21: =I21/H21 -> 1.000133965 | K21: =D21*J21 -> 11804366.85 | L21: =K21*L5 -> 7930173.65 | M21: =K21*M5 -> 3874193.2 | N21: =I21 -> 0.200026793 | O21: =N21/I21 -> 1 | P21: =K21*O21 -> 11804366.85 | Q21: =P21*Q5 -> 7930173.65 | R21: =P21*R5 -> 3874193.2 | S21: =Q21-L21 -> 0 | T21: 0
S22: 0
A23: 392 | B23: TRANSPORTATION EQUIPMENT | C23: ='Comm Study Rpt'!K30 -> 4200662.92 | D23: 374440.27 | E23: =D23*$E$5 -> 251548.9734 | F23: =D23*$F$5 -> 122891.2966 | G23: 9 | H23: =G23*0.01 -> 0.09 | I23: ='Comm Study Rpt'!V30 -> 0.01432416767 | J23: =I23/H23 -> 0.1591574186 | K23: =D23*J23 -> 59594.94679 | L23: =K23*L5 -> 40035.88525 | M23: =K23*M5 -> 19559.06153 | N23: =I23 -> 0.01432416767 | O23: =N23/I23 -> 1 | P23: =K23*O23 -> 59594.94679 | Q23: =P23*Q5 -> 40035.88525 | R23: =P23*R5 -> 19559.06153 | S23: 0 | T23: 0
D24: -353.22 | E24: =D24*$E$5 -> -237.293196 | F24: =D24*$F$5 -> -115.926804 | H24: 0.6 | I24: =I23 -> 0.01432416767 | J24: =I24/H24 -> 0.02387361279 | K24: =D24*J24 -> -8.432637509 | L24: =K24*L5 -> -5.665045878 | M24: =K24*M5 -> -2.76759163 | N24: =I24 -> 0.01432416767 | O24: 1 | P24: -8.432637509 | Q24: =P24*Q5 -> -5.665045878 | R24: =P24*R5 -> -2.76759163 | S24: 0 | T24: 0
D25: =+SUBTOTAL(9,D23:D24) -> 374087.05 | E25: =+SUBTOTAL(9,E23:E24) -> 251311.6802 | F25: =+SUBTOTAL(9,F23:F24) -> 122775.3698 | K25: =+SUBTOTAL(9,K23:K24) -> 59586.51415 | L25: =+SUBTOTAL(9,L23:L24) -> 40030.2202 | M25: =+SUBTOTAL(9,M23:M24) -> 19556.29394 | P25: =SUBTOTAL(9,P23:P24) -> 59586.51415 | Q25: =+SUBTOTAL(9,Q23:Q24) -> 40030.2202 | R25: 19556.29394 | S25: 0 | T25: 0
A27: 393 | B27: STORES EQUIPMENT | C27: ='Comm Study Rpt'!K31 -> 92575.77 | D27: 2683.68 | E27: =D27*$E$5 -> 1802.896224 | F27: =D27*$F$5 -> 880.783776 | G27: 5 | H27: =G27*0.01 -> 0.05 | I27: ='Comm Study Rpt'!V31 -> 0.05000228462 | J27: =I27/H27 -> 1.000045692 | K27: =D27*J27 -> 2683.802624 | L27: =K27*L5 -> 1802.978602 | M27: =K27*M5 -> 880.824021 | N27: =I27 -> 0.05000228462 | O27: =N27/I27 -> 1 | P27: =K27*O27 -> 2683.802624 | Q27: =P27*Q5 -> 1802.978602 | R27: =P27*R5 -> 880.824021 | S27: =Q27-L27 -> 0 | T27: 0
D28: 1803.24 | E28: =D28*$E$5 -> 1211.416632 | F28: =D28*$F$5 -> 591.823368 | H28: 0.16438356 | I28: =I27 -> 0.05000228462 | J28: =I28/H28 -> 0.3041805678 | K28: =D28*J28 -> 548.510567 | L28: =K28*L5 -> 368.4893989 | M28: =K28*M5 -> 180.0211681 | N28: =I28 -> 0.05000228462 | O28: 1 | P28: 548.510567 | Q28: =P28*Q5 -> 368.4893989 | R28: =P28*R5 -> 180.0211681 | S28: 0 | T28: 0
D29: =+SUBTOTAL(9,D27:D28) -> 4486.92 | E29: =+SUBTOTAL(9,E27:E28) -> 3014.312856 | F29: =+SUBTOTAL(9,F27:F28) -> 1472.607144 | K29: =+SUBTOTAL(9,K27:K28) -> 3232.313191 | L29: 2171.468001 | M29: 1060.845189 | P29: =SUBTOTAL(9,P27:P28) -> 3232.313191 | Q29: 2171.468001 | R29: 1060.845189 | S29: 0 | T29: 0
A31: 394 | B31: TOOLS, SHOP AND GARAGE EQUIPMENT | C31: ='Comm Study Rpt'!K32 -> 1586280.5 | D31: 38814.78 | E31: =D31*$E$5 -> 26075.7692 | F31: =D31*$F$5 -> 12739.0108 | G31: 5 | H31: =G31*0.01 -> 0.05 | I31: ='Comm Study Rpt'!V32 -> 0.04995648626 | J31: =I31/H31 -> 0.9991297252 | K31: =D31*J31 -> 38781.00047 | L31: =K31*L5 -> 26053.07612 | M31: =K31*M5 -> 12727.92436 | N31: =I31 -> 0.04995648626 | O31: =N31/I31 -> 1 | P31: =K31*O31 -> 38781.00047 | Q31: =P31*Q5 -> 26053.07612 | R31: =P31*R5 -> 12727.92436 | S31: =Q31-L31 -> 0 | T31: 0
D32: 21582 | E32: =D32*$E$5 -> 14498.7876 | F32: =D32*$F$5 -> 7083.2124 | H32: 0.16438356 | I32: =I31 -> 0.04995648626 | J32: =I32/H32 -> 0.3039019611 | K32: =D32*J32 -> 6558.812125 | L32: =K32*L5 -> 4406.209985 | M32: =K32*M5 -> 2152.602139 | N32: =I32 -> 0.04995648626 | O32: 1 | P32: 6558.812125 | Q32: =P32*Q5 -> 4406.209985 | R32: =P32*R5 -> 2152.602139 | S32: 0 | T32: 0
D33: =+SUBTOTAL(9,D31:D32) -> 60396.78 | E33: =+SUBTOTAL(9,E31:E32) -> 40574.5568 | F33: 19822.2232 | K33: =+SUBTOTAL(9,K31:K32) -> 45339.8126 | L33: 30459.2861 | M33: 14880.52649 | P33: =SUBTOTAL(9,P31:P32) -> 45339.8126 | Q33: =+SUBTOTAL(9,Q31:Q32) -> 30459.2861 | R33: =+SUBTOTAL(9,R31:R32) -> 14880.52649 | S33: =+SUBTOTAL(9,S31:S32) -> 0 | T33: 0
A35: 396 | B35: POWER OPERATED EQUIPMENT | C35: ='Comm Study Rpt'!K33 -> 405180.32 | D35: 24310.8 | E35: =D35*$E$5 -> 16331.99544 | F35: =D35*$F$5 -> 7978.80456 | G35: 6 | H35: =G35*0.01 -> 0.06 | I35: ='Comm Study Rpt'!V33 -> 0.02839723311 | J35: =I35/H35 -> 0.4732872186 | K35: =D35*J35 -> 11505.99091 | L35: =K35*L5 -> 7729.724695 | M35: =K35*M5 -> 3776.266218 | N35: =I35 -> 0.02839723311 | O35: =N35/I35 -> 1 | P35: =K35*O35 -> 11505.99091 | Q35: =P35*Q5 -> 7729.724695 | R35: =P35*R5 -> 3776.266218 | S35: =Q35-L35 -> 0 | T35: =R35-M35 -> 0
A37: 397 | B37: COMMUNICATION EQUIPMENT ** | E37: =D37*$E$5 -> 0 | F37: =D37*$F$5 -> 0 | S37: =Q37-E37 -> 0
B38: FULLY ACCRUED | C38: ='Comm Study Rpt'!K36 -> 21530076.08 | D38: 3356202.05 | E38: =D38*$E$5 -> 2254696.537 | F38: =D38*$F$5 -> 1101505.513 | G38: 6.67 | H38: =G38*0.01 -> 0.0667 | I38: ='Comm Study Rpt'!V37 -> 0.06665307571 | J38: =I38/H38 -> 0.9992964874 | K38: =D38*J38 -> 3353840.919 | L38: =K38*L5 -> 2253110.33 | M38: =K38*M5 -> 1100730.59 | N38: 0 | O38: =N38/I38 -> 0 | P38: =K38*O38 -> 0 | Q38: =P38*Q5 -> 0 | R38: =P38*R5 -> 0 | S38: =Q38-L38 -> -2253110.33 | T38: -1100730.59
B39: AMORTIZED | C39: ='Comm Study Rpt'!K37 -> 63796965.93 | D39: 2058324.03 | E39: =D39*$E$5 -> 1382782.083 | F39: =D39*$F$5 -> 675541.9466 | H39: 0.27906976 | I39: ='Comm Study Rpt'!V37 -> 0.06665307571 | J39: =I39/H39 -> 0.2388401943 | K39: 491610.5113 | L39: =K39*L5 -> 330263.9415 | M39: =K39*M5 -> 161346.5698 | N39: =I39 -> 0.06665307571 | O39: 1 | P39: 491610.5113 | Q39: =P39*Q5 -> 330263.9415 | R39: =P39*R5 -> 161346.5698 | S39: 0 | T39: 0
C40: =+SUBTOTAL(9,C38:C39) -> 85327042.01 | D40: =+SUBTOTAL(9,D38:D39) -> 5414526.08 | E40: =+SUBTOTAL(9,E38:E39) -> 3637478.621 | F40: =+SUBTOTAL(9,F38:F39) -> 1777047.459 | K40: =+SUBTOTAL(9,K38:K39) -> 3845451.431 | L40: 2583374.271 | M40: 1262077.16 | Q40: 330263.9415 | R40: 161346.5698 | S40: -2253110.33 | T40: -1100730.59
A42: 398 | B42: MISCELLANEOUS EQUIPMENT | C42: ='Comm Study Rpt'!K41 -> 1051805.58 | D42: 39622.04 | E42: =D42*$E$5 -> 26618.08647 | F42: =D42*$F$5 -> 13003.95353 | G42: 6.67 | H42: =G42*0.01 -> 0.0667 | I42: ='Comm Study Rpt'!V41 -> 0.06671955477 | J42: =I42/H42 -> 1.000293175 | K42: =D42*J42 -> 39633.65619 | L42: =K42*L5 -> 26625.89023 | M42: =K42*M5 -> 13007.76596 | N42: =I42 -> 0.06671955477 | O42: =N42/I42 -> 1 | P42: =K42*O42 -> 39633.65619 | Q42: =P42*Q5 -> 26625.89023 | R42: =P42*R5 -> 13007.76596 | S42: =Q42-L42 -> 0 | T42: 0
D43: 27739.68 | E43: =D43*$E$5 -> 18635.51702 | F43: =D43*$F$5 -> 9104.162976 | H43: 0.27906975 | I43: =I42 -> 0.06671955477 | J43: =I43/H43 -> 0.2390784195 | K43: =D43*J43 -> 6631.958853 | L43: =K43*L5 -> 4455.349957 | M43: =K43*M5 -> 2176.608895 | N43: =I43 -> 0.06671955477 | O43: 1 | P43: 6631.958853 | Q43: =P43*Q5 -> 4455.349957 | R43: =P43*R5 -> 2176.608895 | S43: 0 | T43: 0
C44: =+SUBTOTAL(9,C42:C43) -> 1051805.58 | D44: =+SUBTOTAL(9,D42:D43) -> 67361.72 | E44: =+SUBTOTAL(9,E42:E43) -> 45253.6035 | F44: 22108.1165 | K44: =+SUBTOTAL(9,K42:K43) -> 46265.61504 | L44: 31081.24018 | M44: 15184.37486 | P44: =SUBTOTAL(9,P42:P43) -> 46265.61504 | Q44: =+SUBTOTAL(9,Q42:Q43) -> 31081.24018 | R44: =+SUBTOTAL(9,R42:R43) -> 15184.37486 | S44: =+SUBTOTAL(9,S42:S43) -> 0 | T44: 0
C46: =SUBTOTAL(9,C8:C45) -> 280165405.3 | D46: =SUBTOTAL(9,D8:D45) -> 23035683.53 | E46: =SUBTOTAL(9,E8:E45) -> 15475372.2 | F46: =SUBTOTAL(9,F8:F45) -> 7560311.335 | H46: =D46/C46 -> 0.08222172721 | I46: =K46/C46 -> 0.06464083595 | J46: =I46/H46 -> 0.7861770622 | K46: =SUBTOTAL(9,K8:K45) -> 18110126 | L46: =SUBTOTAL(9,L8:L45) -> 12166382.65 | M46: =SUBTOTAL(9,M8:M45) -> 5943743.354 | N46: =P46/$C46 -> 0.05266990429 | O46: =N46/I46 -> 0.8148085265 | P46: =SUBTOTAL(9,P8:P45) -> 14756285.08 | Q46: 9913272.32 | R46: 4843012.765 | S46: -2253110.33 | T46: =SUBTOTAL(9,T8:T45) -> -1100730.59
A47: 392 * | B47: Remove CC300 depreciation not booked | D47: =-D25 -> -374087.05 | E47: =D47*$E$5 -> -251311.6802 | F47: =D47*$F$5 -> -122775.3698 | K47: =-K25 -> -59586.51415 | L47: =K47*L5 -> -40030.2202 | M47: =K47*M5 -> -19556.29394 | P47: =-P25 -> -59586.51415 | Q47: =P47*Q5 -> -40030.2202 | R47: =P47*R5 -> -19556.29394 | S47: =Q47-L47 -> 0 | T47: 0
A48: 396 ** | B48: to 403 to be adjusted separately | D48: =-D35 -> -24310.8 | E48: =D48*$E$5 -> -16331.99544 | F48: =D48*$F$5 -> -7978.80456 | K48: =-K35 -> -11505.99091 | L48: =K48*L5 -> -7729.724695 | M48: =K48*M5 -> -3776.266218 | P48: =-P35 -> -11505.99091 | Q48: =P48*Q5 -> -7729.724695 | R48: =P48*R5 -> -3776.266218 | S48: 0 | T48: 0
B50: SUBTOTAL (excludes CC 300) | C50: =SUM(C46:C49) -> 280165405.3 | D50: =SUM(D46:D49) -> 22637285.68 | E50: 15207728.52 | F50: 7429557.16 | H50: =D50/C50 -> 0.08079971777 | I50: =K50/C50 -> 0.06438708404 | J50: =I50/H50 -> 0.7968726354 | K50: =SUM(K46:K49) -> 18039033.5 | L50: =SUM(L46:L49) -> 12118622.7 | M50: =SUM(M46:M49) -> 5920410.794 | N50: =P50/$C50 -> 0.05241615239 | O50: =N50/I50 -> 0.81407868 | P50: =SUM(P46:P48) -> 14685192.58 | Q50: =SUM(Q46:Q49) -> 9865512.375 | R50: =SUM(R46:R49) -> 4819680.205 | S50: =SUM(S46:S49) -> -2253110.33 | T50: =SUM(T46:T49) -> -1100730.59
B52: UNRECOVERED RESERVE TO BE AMORTIZED
A53: 391.1 | B53: OFFICE FURNITURE AND EQUIPMENT | D53: 0 | E53: =D53*$E$5 -> 0 | F53: =D53*$F$5 -> 0 | K53: ='Comm Study Rpt'!Q48 -> 316970.158 | L53: =K53*L5 -> 212940.5521 | M53: =K53*M5 -> 104029.6059 | P53: =K53 -> 316970.158 | Q53: =P53*Q5 -> 212940.5521 | R53: =P53*R5 -> 104029.6059 | S53: =Q53-E53 -> 212940.5521
A54: 391.2 | B54: OFFICE FURNITURE AND EQUIPMENT - COMPUTERS | D54: 0 | E54: 0 | F54: 0 | K54: ='Comm Study Rpt'!Q49 -> -151112.356 | L54: =K54*L5 -> -101517.2808 | M54: =K54*M5 -> -49595.07524 | P54: =K54 -> -151112.356 | Q54: =P54*Q5 -> -101517.2808 | R54: =P54*R5 -> -49595.07524 | S54: -101517.2808
A55: 393 | B55: STORES EQUIPMENT | D55: 0 | E55: 0 | F55: 0 | K55: ='Comm Study Rpt'!Q50 -> 882.65 | L55: =K55*L5 -> 592.96427 | M55: =K55*M5 -> 289.68573 | P55: 882.65 | Q55: =P55*Q5 -> 592.96427 | R55: =P55*R5 -> 289.68573 | S55: 592.96427
A56: 394 | B56: TOOLS, SHOP AND GARAGE EQUIPMENT | D56: 0 | E56: 0 | F56: 0 | K56: ='Comm Study Rpt'!Q51 -> 18966.706 | L56: =K56*L5 -> 12741.83309 | M56: =K56*M5 -> 6224.872909 | P56: 18966.706 | Q56: =P56*Q5 -> 12741.83309 | R56: =P56*R5 -> 6224.872909 | S56: 12741.83309
A57: 397 | B57: COMMUNICATION EQUIPMENT | D57: 0 | E57: 0 | F57: 0 | K57: ='Comm Study Rpt'!Q52 -> 1473760.044 | L57: =K57*L5 -> 990071.9976 | M57: =K57*M5 -> 483688.0464 | P57: 1473760.044 | Q57: =P57*Q5 -> 990071.9976 | R57: =P57*R5 -> 483688.0464 | S57: 990071.9976
A58: 398 | B58: MISCELLANEOUS EQUIPMENT | D58: 0 | E58: -681 | F58: 0 | K58: ='Comm Study Rpt'!Q53 -> -1598.562 | L58: =K58*L5 -> -1073.913952 | M58: =K58*M5 -> -524.6480484 | P58: -1598.562 | Q58: =P58*Q5 -> -1073.913952 | R58: =P58*R5 -> -524.6480484 | S58: -392.9139516
B59: TOTAL UNRECOVERED RESERVE TO BE AMORTIZED | C59: =SUM(C53:C58) -> 0 | D59: =SUM(D53:D58) -> 0 | E59: =SUM(E53:E58) -> -681 | F59: =SUM(F53:F58) -> 0 | K59: =SUM(K53:K58) -> 1657868.64 | L59: =SUM(L53:L58) -> 1113756.152 | M59: =SUM(M53:M58) -> 544112.4876 | P59: =SUM(P53:P58) -> 1657868.64 | Q59: =SUM(Q53:Q58) -> 1113756.152 | R59: =SUM(R53:R58) -> 544112.4876 | S59: =SUM(S53:S58) -> 1114437.152
B61: TOTAL COMMON | C61: =C50+C59 -> 280165405.3 | D61: =D50+D59 -> 22637285.68 | E61: =E50+E59 -> 15207047.52 | F61: =F50+F59 -> 7429557.16 | K61: =K50+K59 -> 19696902.14 | L61: =L50+L59 -> 13232378.86 | M61: =M50+M59 -> 6464523.282 | P61: =P50+P59 -> 16343061.22 | Q61: =Q50+Q59 -> 10979268.53 | R61: =R50+R59 -> 5363792.692 | S61: =S50+S59 -> -1138673.177 | U61: =S61-'Lead E'!E13 -> 3089105.815
B64: NONDEPRECIABLE PLANT AND ACCOUNTS NOT STUDIED
A65: 302 | B65: FRANCHISES AND CONSENTS | C65: ='Comm Study Rpt'!K63 -> 31729.64 | D65: 2347 | E65: =D65*$E$5 -> 1576.7146 | F65: =D65*$F$5 -> 770.2854 | K65: =D65 -> 2347 | L65: =K65*L5 -> 1576.7146 | M65: =K65*M5 -> 770.2854 | Q65: =E65 -> 1576.7146 | R65: =F65 -> 770.2854 | S65: =Q65-E65 -> 0
A66: 303 | B66: MISCELLANEOUS INTANGIBLE PLANT | C66: ='Comm Study Rpt'!K64 -> 166359858.7 | D66: 27664698 | E66: 18585144.12 | F66: 9079553.884 | K66: 27664698 | L66: =K66*L5 -> 18585144.12 | M66: =K66*M5 -> 9079553.884 | Q66: 18585144.12 | R66: 9079553.884 | S66: 0
A67: 389 | B67: LAND AND LAND RIGHTS | C67: ='Comm Study Rpt'!K65 -> 28496665.23 | E67: 0 | F67: 0 | K67: 0 | Q67: 0 | R67: 0 | S67: 0
A68: 390.1 | B68: STRUCTURES AND IMPROVEMENTS - LEASEHOLDS | C68: ='Comm Study Rpt'!K66 -> 46511320.42 | D68: 3019656.99 | E68: 2028605.566 | F68: 991051.4241 | K68: 3019656.99 | L68: =K68*L5 -> 2028605.566 | M68: =K68*M5 -> 991051.4241 | Q68: 2028605.566 | R68: 991051.4241 | S68: 0
A69: 391.21 | B69: OFFICE FURNITURE AND EQUIPMENT - COMPUTERS CAPITAL LEASE | C69: 756461.72 | E69: 0 | F69: 0 | K69: 0 | Q69: 0 | R69: 0 | S69: 0
A70: 392.1 | B70: AIRCRAFT | C70: ='Comm Study Rpt'!K67 -> 1509234.08 | E70: 0 | F70: 0 | K70: 0 | Q70: 0 | R70: 0 | S70: 0
A71: 392.2 | B71: AIRCRAFT ENGINE REBUILD | C71: ='Comm Study Rpt'!K68 -> 832657.21 | D71: 83265.72 | E71: =D71*$E$5 -> 55937.9107 | F71: 27327.8093 | K71: =D71 -> 83265.72 | L71: =K71*L5 -> 55937.9107 | M71: =K71*M5 -> 27327.8093 | Q71: 55937.9107 | R71: 27327.8093 | S71: 0
A72: 399 | B72: ARO GENERAL PLANT | D72: 157467 | E72: =D72*$E$5 -> 105786.3306 | F72: 51680.6694 | K72: =D72 -> 157467 | L72: =K72*L5 -> 105786.3306 | M72: =K72*M5 -> 51680.6694 | Q72: 105786.3306 | R72: 51680.6694
B73: Landis & Gyr Reclassified to 902 | E73: 0 | F73: 0 | K73: 0 | Q73: 0 | R73: 0 | S73: =Q73-E73 -> 0
B74: TOTAL COMMON PLANT | C74: =SUM(C65:C73) -> 244497927 | D74: =SUM(D65:D73) -> 30927434.71 | E74: =SUM(E65:E73) -> 20777050.64 | F74: =SUM(F65:F73) -> 10150384.07 | K74: =SUM(K65:K73) -> 30927434.71 | L74: =SUM(L65:L73) -> 20777050.64 | M74: =SUM(M65:M73) -> 10150384.07 | Q74: =SUM(Q65:Q73) -> 20777050.64 | R74: =SUM(R65:R73) -> 10150384.07 | S74: =SUM(S65:S73) -> 0
B75: Move ARC to separate line | D75: =-D72 -> -157467 | E75: =D75*$E$5 -> -105786.3306 | F75: =D75*$F$5 -> -51680.6694 | K75: =-K72 -> -157467 | L75: =-L72 -> -105786.3306 | M75: =-M72 -> -51680.6694 | Q75: =E75 -> -105786.3306 | R75: =F75 -> -51680.6694 | S75: =Q75-E75 -> 0
A76: Amortization | C76: =SUM(C74:C75) -> 244497927 | D76: =SUM(D74:D75) -> 30769967.71 | E76: =SUM(E74:E75) -> 20671264.31 | F76: =SUM(F74:F75) -> 10098703.4 | K76: =SUM(K74:K75) -> 30769967.71 | L76: =SUM(L74:L75) -> 20671264.31 | M76: =SUM(M74:M75) -> 10098703.4 | Q76: =SUM(Q74:Q75) -> 20671264.31 | R76: =SUM(R74:R75) -> 10098703.4 | S76: =SUM(S74:S75) -> 0
A78: Total Common Depreciation and Amortization | C78: =C61+C76 -> 524663332.3 | D78: =D61+D76 -> 53407253.39 | E78: =E61+E76 -> 35878311.83 | F78: =F61+F76 -> 17528260.56 | K78: =K61+K76 -> 50466869.85 | L78: =L61+L76 -> 33903643.16 | M78: =M61+M76 -> 16563226.68 | Q78: =Q61+Q76 -> 31650532.83 | R78: =R61+R76 -> 15462496.09 | S78: =S61+S76 -> -1138673.177
C83: =C46+C74 -> 524663332.3 | D83: =D61+D74 -> 53564720.39 | E83: =D83*E5 -> 35984779.16 | F83: =D83*F5 -> 17579941.23 | K83: =K61+K74 -> 50624336.85 | L83: =K83*L5 -> 34009429.49 | M83: =K83*M5 -> 16614907.35 | Q83: =K83*Q5 -> 34009429.49 | R83: =K83*R5 -> 16614907.35
D85: =K83-D83 -> -2940383.541 | Q85: =Q74+Q61 -> 31756319.17 | R85: =R74+R61 -> 15514176.76
B88: Allocate for CC 300
B89: portion of I/S | E89: Test Year | Q89: Restated
A90: * C392 | B90: Transportation Equipment | E90: =E25 -> 251311.6802 | F90: =E90*E94 -> 146792.6069 | Q90: =Q25 -> 40030.2202 | R90: =Q90*Q94 -> 23381.88331 | S90: =R90-F90 -> -123410.7236
A92: ** C396 | B92: Power Operated Equipment | E92: =E35 -> 16331.99544 | F92: =E92*E94 -> 9539.613062 | Q92: =Q35 -> 7729.724695 | R92: =Q92*Q94 -> 4514.976932 | S92: =R92-F92 -> -5024.63613
E93: =SUM(E90:E92) -> 267643.6756 | Q93: =SUM(Q90:Q92) -> 47759.9449
B94: CC 300 Depr. Exp. portion of Income Statement | E94: ='CC300'!G32 -> 0.5841057877 | Q94: ='CC300'!G32 -> 0.5841057877
E95: =E93*E94 -> 156332.22 | Q95: =Q93*Q94 -> 27896.86024

Sheet Comm Study Rpt
A1: PUGET SOUND ENERGY
A2: COMMON PLANT
A4: TABLE 3. SUMMARY OF ESTIMATED SURVIVOR CURVES, NET SALVAGE PERCENT, ORIGINAL COST, BOOK DEPRECIATION RESERVE
A5: AND CALCULATED ANNUAL DEPRECIATION RATES AS OF SEPTEMBER 30, 2016
E8: PROBABLE | I8: NET | K8: ORIGINAL COST | M8: BOOK | Q8: CALCULATED ANNUAL | U8: COMPOSITE
E9: RETIREMENT | G9: SURVIVOR | I9: SALVAGE | K9: AS OF | M9: DEPRECIATION | O9: FUTURE | Q9: ACCRUAL | S9: ACCRUAL | U9: REMAINING
C10: ACCOUNT | E10: DATE | G10: CURVE | I10: PERCENT | K10: SEPTEMBER 30, 2016 | M10: RESERVE | O10: ACCRUALS | Q10: AMOUNT | S10: RATE | U10: LIFE
C11: -1 | E11: -2 | G11: -3 | I11: -4 | K11: -5 | M11: -6 | O11: -7 | Q11: -8 | S11: (9)=(8)/(5) | U11: (10)=(7)/(8)
C13: COMMON PLANT
C15: GENERAL PLANT
A17: 389.1 | C17: LAND AND LAND RIGHTS - EASEMENTS | G17: 60-R4 | I17: 0 | K17: 14082567.58 | M17: 1627420.52 | O17: 12455147 | Q17: 231681 | S17: 1.65 | U17: 53.8 | V17: =Q17/K17 -> 0.01645161642
A19: 390 | C19: STRUCTURES AND IMPROVEMENTS
C20: EAST SIDE TELECOMMUNICATION OFFICE | E20: 2038-06-30 | G20: 55-R2.5 | H20: * | I20: -5 | K20: 25949969.49 | M20: 11448503.36 | O20: 15798965 | Q20: 764997 | S20: 2.95 | U20: 20.7 | V20: =Q20/K20 -> 0.02947968784
C21: FACTORIA | E21: 2059-06-30 | G21: 55-R2.5 | H21: * | I21: -5 | K21: 18065002.23 | M21: 6095742.49 | O21: 12872510 | Q21: 338741 | S21: 1.88 | U21: 38 | V21: =Q21/K21 -> 0.01875122935
C22: OTHER STRUCTURES | G22: 55-R2.5 | I22: -5 | K22: 45026876.4 | M22: 20435306.9 | O22: 26842913 | Q22: 578539 | S22: 1.28 | U22: 46.4 | V22: 0.01284874826
C24: TOTAL STRUCTURES AND IMPROVEMENTS | K24: =SUBTOTAL(9,K20:K22) -> 89041848.12 | M24: =SUBTOTAL(9,M20:M22) -> 37979552.75 | O24: =SUBTOTAL(9,O20:O22) -> 55514388 | Q24: =SUBTOTAL(9,Q20:Q22) -> 1682277 | S24: =+ROUND(Q24/K24*100,2) -> 1.89 | U24: =+ROUND(O24/Q24,1) -> 33 | V24: =Q24/K24 -> 0.01889310516
A26: 391.1 | C26: OFFICE FURNITURE AND EQUIPMENT | G26: 20-SQ | I26: 0 | K26: 21112177.85 | M26: 9489789 | O26: 11622389 | Q26: 1056660 | S26: 5 | U26: 11 | V26: =Q26/K26 -> 0.05004978679
A28: 391.2 | C28: OFFICE FURNITURE AND EQUIPMENT - COMPUTERS | G28: 5-SQ | I28: 0 | K28: 63265264.67 | M28: 29820000 | O28: 33445265 | Q28: 12654748 | S28: 20 | U28: 2.6 | V28: =Q28/K28 -> 0.200026793
A30: 392 | C30: TRANSPORTATION EQUIPMENT | G30: 12-L3 | I30: 10 | K30: 4200662.92 | M30: 3393820 | O30: 386777 | Q30: 60171 | S30: 1.43 | U30: 6.4 | V30: =Q30/K30 -> 0.01432416767
A31: 393 | C31: STORES EQUIPMENT | G31: 20-SQ | I31: 0 | K31: 92575.77 | M31: 40154 | O31: 52422 | Q31: 4629 | S31: 5 | U31: 11.3 | V31: 0.05000228462
A32: 394 | C32: TOOLS, SHOP AND GARAGE EQUIPMENT | G32: 20-SQ | I32: 0 | K32: 1586280.5 | M32: 530000 | O32: 1056280 | Q32: 79245 | S32: 5 | U32: 13.3 | V32: 0.04995648626
A33: 396 | C33: POWER OPERATED EQUIPMENT | G33: 14-L3 | I33: 10 | K33: 405180.32 | M33: 274569 | O33: 90093 | Q33: 11506 | S33: 2.84 | U33: 7.8 | V33: 0.02839723311
A35: 397 | C35: COMMUNICATION EQUIPMENT
C36: FULLY ACCRUED | G36: FULLY ACCRUED | K36: 21530076.08 | M36: 17976165.68 | O36: 3553910 | Q36: 0 | S36: 0 | U36: 0
C37: AMORTIZED | G37: 15-SQ | I37: 0 | K37: 63796965.93 | M37: 20785000 | O37: 43011966 | Q37: 4252264 | S37: 6.67 | U37: 10.1 | V37: =Q37/K37 -> 0.06665307571
C39: TOTAL COMMUNICATION EQUIPMENT | K39: =SUBTOTAL(9,K36:K37) -> 85327042.01 | M39: =SUBTOTAL(9,M36:M37) -> 38761165.68 | O39: =SUBTOTAL(9,O36:O37) -> 46565876 | Q39: =SUBTOTAL(9,Q36:Q37) -> 4252264 | S39: =+ROUND(Q39/K39*100,2) -> 4.98 | U39: =+ROUND(O39/Q39,1) -> 11 | V39: =Q39/K39 -> 0.0498348929
A41: 398 | C41: MISCELLANEOUS EQUIPMENT | G41: 15-SQ | I41: 0 | K41: 1051805.58 | M41: 588500 | O41: 463306 | Q41: 70176 | S41: 6.67 | U41: 6.6 | V41: =Q41/K41 -> 0.06671955477
C43: TOTAL GENERAL PLANT | K43: =+SUBTOTAL(9,K17:K42) -> 280165405.3 | M43: =+SUBTOTAL(9,M17:M42) -> 122504970.9 | O43: =+SUBTOTAL(9,O17:O42) -> 161651943 | Q43: =+SUBTOTAL(9,Q17:Q42) -> 20103357 | S43: =ROUND(Q43/K43*100,2) -> 7.18
C46: UNRECOVERED RESERVE TO BE AMORTIZED
A48: 391.1 | C48: OFFICE FURNITURE AND EQUIPMENT | M48: -1584850.79 | Q48: =-M48/5 -> 316970.158 | R48: **
A49: 391.2 | C49: OFFICE FURNITURE AND EQUIPMENT - COMPUTERS | M49: 755561.78 | Q49: -151112.356 | R49: **
A50: 393 | C50: STORES EQUIPMENT | M50: -4413.25 | Q50: 882.65 | R50: **
A51: 394 | C51: TOOLS, SHOP AND GARAGE EQUIPMENT | M51: -94833.53 | Q51: 18966.706 | R51: **
A52: 397 | C52: COMMUNICATION EQUIPMENT | M52: -7368800.22 | Q52: 1473760.044 | R52: **
A53: 398 | C53: MISCELLANEOUS EQUIPMENT | M53: 7992.81 | Q53: -1598.562 | R53: **
C55: TOTAL UNRECOVERED RESERVE TO BE AMORTIZED | M55: =SUBTOTAL(9,M48:M53) -> -8289343.2 | Q55: =SUBTOTAL(9,Q48:Q53) -> 1657868.64
C58: TOTAL DEPRECIABLE PLANT | K58: =SUBTOTAL(9,K17:K43) -> 280165405.3 | M58: =SUBTOTAL(9,M48:M53) -> -8289343.2 | O58: =SUBTOTAL(9,O17:O43) -> 161651943 | Q58: =SUBTOTAL(9,Q17:Q43) -> 20103357
C61: NONDEPRECIABLE PLANT AND ACCOUNTS NOT STUDIED
A63: 302 | C63: FRANCHISES AND CONSENTS | K63: 31729.64 | M63: 7170.57
A64: 303 | C64: MISCELLANEOUS INTANGIBLE PLANT | K64: 166359858.7 | M64: 65088600.45
A65: 389 | C65: LAND AND LAND RIGHTS | K65: 28496665.23
A66: 390.1 | C66: STRUCTURES AND IMPROVEMENTS - LEASEHOLDS | K66: 46511320.42 | M66: 34903367.78
A67: 392.1 | C67: AIRCRAFT | K67: 1509234.08 | M67: 923765.46
A68: 392.2 | C68: AIRCRAFT ENGINE REBUILD | K68: 832657.21 | M68: 796960.84
C70: TOTAL NONDEPRECIABLE PLANT | K70: =SUBTOTAL(9,K63:K69) -> 243741465.3 | M70: =SUBTOTAL(9,M63:M69) -> 101719865.1
C73: TOTAL COMMON PLANT | K73: =SUBTOTAL(9,K17:K70) -> 523906870.6 | M73: =SUBTOTAL(9,M17:M70) -> 215935492.9 | O73: =SUBTOTAL(9,O17:O70) -> 161651943 | Q73: =SUBTOTAL(9,Q17:Q70) -> 21761225.64
B76: * LIFE SPAN PROCEDURE USED. CURVE SHOWN IS INTERIM SURVIVOR CURVE.
B77: ** 5-YEAR AMORTIZATION OF UNRECOVERED RESERVE RELATED TO AMORTIZATION ACCOUNTING.

Sheet DFIT Depr Stdy 8.06E
A1: Electric Depreciation Study October 31, 2015 through September 30, 2016
A9: Date | C9: Depreciation Expense | I9: Accummulated Depreciation | N9: Net Book Value | Q9: NBV Diff | S9: ADFIT | U9: DFIT
F10: Book Depr. | L10: BOOK | U10: Expense
C11: Tax | E11: Book | F11: Using Tax Basis | I11: Tax | K11: Book | L11: Permanent | N11: Tax | O11: Book | Q11: Book > Tax | S11: 0.35 | U11: (o) = -
C12: (d) = (a) x Tax | E12: (e) = (b) x 4.24% | F12: (f) = (c) x 4.24% | G12: Net Difference | L12: Difference | U12: curr month (n)
C13: Table | E13: ¸ 12 mos. | F13: ¸ 12 mos. | G13: (g) = (e) x (f) | I13: (h) = prior month - (d) | K13: (i) = prior month - (e) | L13: (j) = prior month - (g) | N13: (k) = (a) + (h) | O13: (l) = (b) + (i) +(j) | Q13: (m) = (k) - (l) | S13: (n) = - (m) * 35% | U13: + prior month (n)
A15: 2017-12-31 | C15: 0 | E15: 0 | F15: 0 | I15: 0 | K15: 0 | L15: 0 | N15: 0 | O15: 0 | Q15: 0 | S15: =-Q15*$S$11 -> 0 | U15: 0
A16: 2018-01-31 | C16: 0 | E16: ='Lead E'!E33/12 -> 2175790.48 | F16: 0 | G16: =E16-F16 -> 2175790.48 | I16: =-C16 -> 0 | K16: =-E16 -> -2175790.48 | L16: =+G16 -> 2175790.48 | N16: =I16 -> 0 | O16: =K16 -> -2175790.48 | Q16: =O16-N16 -> -2175790.48 | S16: 761526.6681 | U16: =-S16 -> -761526.6681
A17: 2018-02-28 | C17: =C16 -> 0 | D17: 0 | E17: =E16 -> 2175790.48 | F17: 0 | G17: 2175790.48 | I17: =I16-C17 -> 0 | K17: =K16-E17 -> -4351580.96 | L17: =L16+G17 -> 4351580.96 | N17: 0 | O17: -4351580.96 | Q17: -4351580.96 | S17: 1523053.336 | U17: =-S17+S16 -> -761526.6681
A18: 2018-03-31 | C18: 0 | E18: 2175790.48 | F18: 0 | G18: 2175790.48 | I18: 0 | K18: -6527371.441 | L18: 6527371.441 | N18: 0 | O18: -6527371.441 | Q18: -6527371.441 | S18: 2284580.004 | U18: -761526.6681
A19: 2018-04-30 | C19: 0 | E19: 2175790.48 | F19: 0 | G19: 2175790.48 | I19: 0 | K19: -8703161.921 | L19: 8703161.921 | N19: 0 | O19: -8703161.921 | Q19: -8703161.921 | S19: 3046106.672 | U19: -761526.6681
A20: 2018-05-31 | C20: 0 | E20: 2175790.48 | F20: 0 | G20: 2175790.48 | I20: 0 | K20: -10878952.4 | L20: 10878952.4 | N20: 0 | O20: -10878952.4 | Q20: -10878952.4 | S20: 3807633.34 | U20: -761526.6681
A21: 2018-06-30 | C21: 0 | E21: 2175790.48 | F21: 0 | G21: 2175790.48 | I21: 0 | K21: -13054742.88 | L21: 13054742.88 | N21: 0 | O21: -13054742.88 | Q21: -13054742.88 | S21: 4569160.008 | U21: -761526.6681
A22: 2018-07-31 | C22: 0 | E22: 2175790.48 | F22: 0 | G22: 2175790.48 | I22: 0 | K22: -15230533.36 | L22: 15230533.36 | N22: 0 | O22: -15230533.36 | Q22: -15230533.36 | S22: 5330686.676 | U22: -761526.6681
A23: 2018-08-31 | C23: 0 | E23: 2175790.48 | F23: 0 | G23: 2175790.48 | I23: 0 | K23: -17406323.84 | L23: 17406323.84 | N23: 0 | O23: -17406323.84 | Q23: -17406323.84 | S23: 6092213.344 | U23: -761526.6681
A24: 2018-09-30 | C24: 0 | E24: 2175790.48 | F24: 0 | G24: 2175790.48 | I24: 0 | K24: -19582114.32 | L24: 19582114.32 | N24: 0 | O24: -19582114.32 | Q24: -19582114.32 | S24: 6853740.013 | U24: -761526.6681
A25: 2018-10-31 | C25: 0 | E25: 2175790.48 | F25: 0 | G25: 2175790.48 | I25: 0 | K25: -21757904.8 | L25: 21757904.8 | N25: 0 | O25: -21757904.8 | Q25: -21757904.8 | S25: 7615266.681 | U25: -761526.6681
A26: 2018-11-30 | C26: 0 | E26: 2175790.48 | F26: 0 | G26: 2175790.48 | I26: 0 | K26: -23933695.28 | L26: 23933695.28 | N26: 0 | O26: -23933695.28 | Q26: -23933695.28 | S26: 8376793.349 | U26: -761526.6681
A27: 2018-12-31 | C27: 0 | E27: 2175790.48 | F27: 0 | G27: 2175790.48 | I27: 0 | K27: -26109485.76 | L27: 26109485.76 | N27: 0 | O27: -26109485.76 | Q27: -26109485.76 | S27: 9138320.017 | U27: -761526.6681
S29: =(S15+S27+SUM(S16:S26)*2)/24 -> 4569160.008
S30: AMA 12/31/2018

Sheet 403.1 Depr
D1: CURRENT | F1: CURRENT | I1: PROPOSED | L1: PROPOSED | M1: INCREASE
A2: ACCOUNT | D2: DEPRECIATION | E2: CURRENT | F2: RATE | G2: PROPOSED | H2: Difft % | I2: DEPRECIATION | J2: PROPOSED | K2: Difft % | L2: DEPRECIATION | M2: (DECREASE)
A3: NUMBER | C3: DESCRIPTION | D3: EXPENSE | E3: RATE | F3: % | G3: RATE | H3: RATE | I3: EXPENSE AMOUNT | J3: RATE | K3: RATE | L3: EXPENSE AMOUNT | M3: AMOUNT
G4: Per PSE | I4: Per PSE | J4: Per Public Counsel | L4: Per Public Counsel
C5: ELECTRIC ARO ACCRETION RECOVERED IN RATES
C7: STEAM PRODUCTION PLANT
C9: 311 STRUCTURES AND IMPROVEMENTS
A10: 311 | C10: COLSTRIP 1-2 | D10: ='Depr Oct15-Sep16 Revised'!T5 -> -3982.36 | E10: 1.23 | F10: =E10*0.01 -> 0.0123 | G10: ='Elec Study Rpt'!V28 -> 0.02280454027 | H10: =G10/F10 -> 1.854027665 | I10: =D10*H10 -> -7383.40561 | J10: =Electric!J14 -> 0.0079 | K10: =J10/G10 -> 0.3464222433 | L10: =I10*K10 -> -2557.775935 | M10: =L10-I10 -> 4825.629675
A11: 311 | C11: COLSTRIP 3-4 | D11: ='Depr Oct15-Sep16 Revised'!T6 -> 3374.58 | E11: 1.31 | F11: 0.0131 | G11: ='Elec Study Rpt'!V29 -> 0.02100471768 | H11: 1.603413563 | I11: 5410.847343 | J11: =Electric!J15 -> 0.0206 | K11: =J11/G11 -> 0.980732058 | L11: =I11*K11 -> 5306.59145 | M11: =L11-I11 -> -104.2558927
A12: 311 | C12: FREDERICKSON 1/EPCOR | D12: ='Depr Oct15-Sep16 Revised'!T9 -> 8795.58 | E12: 3.18 | F12: 0.0318 | G12: ='Elec Study Rpt'!V30 -> 0.04111873074 | H12: =G12/F12 -> 1.293041847 | I12: 11373.05301 | J12: =Electric!J16 -> 0.0284 | K12: 0.6906827981 | L12: 7855.172075 | M12: -3517.880934
C14: TOTAL STRUCTURES AND IMPROVEMENTS | D14: =+SUBTOTAL(9,D10:D12) -> 8187.8 | I14: =+SUBTOTAL(9,I10:I12) -> 9400.494742 | L14: =+SUBTOTAL(9,L10:L12) -> 10603.98759 | M14: =+SUBTOTAL(9,M10:M12) -> 1203.492849
C16: TOTAL STEAM PRODUCTION PLANT | D16: =SUBTOTAL(9,D10:D15) -> 8187.8 | I16: =SUBTOTAL(9,I10:I15) -> 9400.494742 | L16: =SUBTOTAL(9,L10:L15) -> 10603.98759 | M16: =SUBTOTAL(9,M10:M15) -> 1203.492849
C18: OTHER PRODUCTION PLANT
C20: 341 STRUCTURES AND IMPROVEMENTS
A21: 341 | C21: FREDERICKSON 1/EPCOR | D21: 0 | E21: 3.33 | F21: =E21*0.01 -> 0.0333 | G21: ='Elec Study Rpt'!V175 -> 0.02466738135 | H21: =G21/F21 -> 0.7407622026 | I21: =D21*H21 -> 0 | J21: =Electric!J173 -> 0.02466738135 | K21: =J21/G21 -> 1 | L21: =I21*K21 -> 0 | M21: =L21-I21 -> 0
A22: 341 | C22: FERNDALE | D22: ='Depr Oct15-Sep16 Revised'!T8 -> 28450.01 | E22: 1.504422 | F22: 0.01504422 | G22: ='Elec Study Rpt'!V183 -> 0.02280247846 | H22: 1.515696956 | I22: =D22*H22 -> 43121.59355 | J22: =Electric!J182 -> 0.02280247846 | K22: 1 | L22: 43121.59355 | M22: 0
C24: TOTAL STRUCTURES AND IMPROVEMENTS | D24: =+SUBTOTAL(9,D21:D22) -> 28450.01 | I24: =+SUBTOTAL(9,I21:I22) -> 43121.59355 | L24: 43121.59355 | M24: 0
C26: 341.01 STRUCTURES AND IMPROVEMENTS - WIND
A27: 341.01 | C27: LOWER SNAKE RIVER | D27: ='Depr Oct15-Sep16 Revised'!T12 -> 478487.03 | E27: 4.24 | F27: =E27*0.01 -> 0.0424 | G27: ='Elec Study Rpt'!V188 -> 0.04371854404 | H27: =G27/F27 -> 1.031097737 | I27: =D27*H27 -> 493366.8938 | J27: =Electric!J187 -> 0.04371854404 | K27: =J27/G27 -> 1 | L27: =I27*K27 -> 493366.8938 | M27: =L27-I27 -> 0
A28: 341.01 | C28: LOWER SNAKE RIVER TEMPORARY MET TOWERS | D28: ='Depr Oct15-Sep16 Revised'!T13 -> 2459.77 | E28: 4.24 | F28: 0.0424 | G28: ='Elec Study Rpt'!V188 -> 0.04371854404 | H28: 1.031097737 | I28: 2536.26328 | J28: =J27 -> 0.04371854404 | K28: 1 | L28: 2536.26328 | M28: 0
A29: 341.01 | C29: HOPKINS RIDGE | D29: ='Depr Oct15-Sep16 Revised'!T11 -> 445066.78 | E29: 4.24 | F29: 0.0424 | G29: ='Elec Study Rpt'!V189 -> 0.06876400394 | H29: 1.621792546 | I29: 721805.9862 | J29: =Electric!J188 -> 0.06876400394 | K29: 1 | L29: 721805.9862 | M29: 0
A30: 341.01 | C30: WILD HORSE | D30: ='Depr Oct15-Sep16 Revised'!T15 -> 235972.94 | E30: 4.28 | F30: 0.0428 | G30: ='Elec Study Rpt'!V190 -> 0.05702307468 | H30: 1.332314829 | I30: 314390.2472 | J30: =Electric!J189 -> 0.05702307468 | K30: 1 | L30: 314390.2472 | M30: 0
C32: TOTAL STRUCTURES AND IMPROVEMENTS - WIND | D32: =+SUBTOTAL(9,D27:D30) -> 1161986.52 | I32: =+SUBTOTAL(9,I27:I30) -> 1532099.39 | L32: =+SUBTOTAL(9,L27:L30) -> 1532099.39 | M32: =+SUBTOTAL(9,M27:M30) -> 0
C34: TOTAL OTHER PRODUCTION PLANT | D34: =SUBTOTAL(9,D20:D32) -> 1190436.53 | I34: =SUBTOTAL(9,I20:I32) -> 1575220.984 | L34: 1575220.984 | M34: 0
C37: TRANSMISSION PLANT
A39: 355 | C39: POLES AND FIXTURES | D39: ='Depr Oct15-Sep16 Revised'!T14 -> 99569.24 | E39: 3.02 | F39: =E39*0.01 -> 0.0302 | G39: ='Elec Study Rpt'!V316 -> 0.03038912538 | H39: =G39/F39 -> 1.00626243 | I39: =D39*H39 -> 100192.7854 | J39: =Electric!J336 -> 0.0275 | K39: =J39/G39 -> 0.9049289723 | L39: =I39*K39 -> 90667.3543 | M39: =L39-I39 -> -9525.431075
C41: TOTAL TRANSMISSION PLANT | D41: =+SUBTOTAL(9,D39:D39) -> 99569.24 | I41: =+SUBTOTAL(9,I39:I39) -> 100192.7854 | L41: 90667.3543 | M41: -9525.431075
C44: DISTRIBUTION PLANT
A46: 364 | C46: POLES, TOWERS AND FIXTURES | D46: ='Depr Oct15-Sep16 Revised'!T7 -> 53931.16 | E46: 3.11 | F46: =E46*0.01 -> 0.0311 | G46: ='Elec Study Rpt'!V344 -> 0.03142787399 | H46: =G46/F46 -> 1.010542572 | I46: =D46*H46 -> 54499.73313 | J46: =Electric!J368 -> 0.03142787399 | K46: =J46/G46 -> 1 | L46: =I46*K46 -> 54499.73313 | M46: =L46-I46 -> 0
C48: TOTAL DISTRIBUTION PLANT | D48: =+SUBTOTAL(9,D46:D46) -> 53931.16 | I48: =+SUBTOTAL(9,I46:I46) -> 54499.73313 | L48: =+SUBTOTAL(9,L46:L46) -> 54499.73313 | M48: =+SUBTOTAL(9,M46:M46) -> 0
C50: TOTAL ELECTRIC ARO ACCRETION RECOVERED IN RATES | D50: =+SUBTOTAL(9,D10:D49) -> 1352124.73 | I50: =+SUBTOTAL(9,I9:I48) -> 1739313.997 | L50: =+SUBTOTAL(9,L9:L48) -> 1730992.059 | M50: =+SUBTOTAL(9,M9:M48) -> -8321.938226
D51: =D50-SUM('Depr Oct15-Sep16 Revised'!T5:T9)-SUM('Depr Oct15-Sep16 Revised'!T11:T15) -> 0 | E51: chk sb 0
C53: ELECTRIC ARO ACCRETION NOT RECOVERED IN RATES
C55: STEAM PRODUCTION PLANT
C57: 311 STRUCTURES AND IMPROVEMENTS
A58: 311 | C58: COLSTRIP 1-2 | D58: ='Depr Oct15-Sep16 Revised'!T24 -> 645438 | E58: 1.23 | F58: =E58*0.01 -> 0.0123 | G58: ='Elec Study Rpt'!V28 -> 0.02280454027 | H58: =G58/F58 -> 1.854027665 | J58: =J10 -> 0.0079 | K58: =J58/G58 -> 0.3464222433 | L58: =I58*K58 -> 0 | M58: =I58-D58 -> -645438
A59: 311 | C59: COLSTRIP 3-4 | D59: ='Depr Oct15-Sep16 Revised'!T25 -> 694356.62 | E59: 1.31 | F59: 0.0131 | G59: ='Elec Study Rpt'!V29 -> 0.02100471768 | H59: 1.603413563 | J59: =J11 -> 0.0206 | K59: 0.980732058 | L59: 0 | M59: -694356.62
C61: TOTAL STRUCTURES AND IMPROVEMENTS | D61: =+SUBTOTAL(9,D58:D59) -> 1339794.62 | I61: =+SUBTOTAL(9,I58:I59) -> 0 | M61: -1339794.62
C63: TOTAL STEAM PRODUCTION PLANT | D63: =+SUBTOTAL(9,D58:D61) -> 1339794.62 | I63: =+SUBTOTAL(9,I58:I61) -> 0 | M63: -1339794.62
C65: OTHER PRODUCTION PLANT
A67: 341 | C67: CRYSTAL MOUNTAIN | D67: ='Depr Oct15-Sep16 Revised'!T26 -> 30434.94 | E67: 5 | F67: 0.05 | G67: ='Elec Study Rpt'!V179 -> 0.05046167533 | H67: 1.009233507 | J67: =Electric!J177 -> 0.05046167533 | K67: =J67/G67 -> 1 | L67: =I67*K67 -> 0 | M67: =I67-D67 -> -30434.94
C69: TOTAL OTHER PRODUCTION PLANT | D69: =+SUBTOTAL(9,D66:D67) -> 30434.94 | I69: =+SUBTOTAL(9,I66:I67) -> 0 | M69: -30434.94
C71: GENERAL PLANT
C72: STRUCTURES AND IMPROVEMENTS
A73: 390 | C73: SOUTH KING COMPLEX ELECTRIC PORTION | D73: ='Depr Oct15-Sep16 Revised'!V119 -> 105787.1435 | E73: 5.27 | F73: 0.0527 | G73: ='Comm Study Rpt'!V20 -> 0.02947968784 | H73: =G73/F73 -> 0.559386866 | J73: ='Common-Elec&Gas'!N11 -> 0.02947968784 | K73: =J73/G73 -> 1 | L73: =I73*K73 -> 0 | M73: =I73-D73 -> -105787.1435
C75: TOTAL GENERAL PLANT | D75: =+SUBTOTAL(9,D72:D73) -> 105787.1435 | I75: =+SUBTOTAL(9,I72:I73) -> 0 | M75: -105787.1435
C77: TOTAL ELECTRIC ARO ACCRETION NOT RECOVERED IN RATES | D77: =+SUBTOTAL(9,D53:D75) -> 1476016.703 | I77: =+SUBTOTAL(9,I53:I75) -> 0 | M77: -1476016.703
D78: =D77-SUM('Depr Oct15-Sep16 Revised'!T24:T26)-'Depr Oct15-Sep16 Revised'!V119 -> 0 | E78: chk sb 0
D80: =D50+D77 -> 2828141.433 | I80: =I50+I77 -> 1739313.997 | M80: =M50+M77 -> -1484338.642
D81: =Electric!D485+'Common-Elec&Gas'!E75+D80 -> 0.8128779992
D85: =D77 -> 1476016.703 | E85: =D50 -> 1352124.73
D86: =-SUM('Depr Oct15-Sep16 Revised'!T24:T26) -> -1370229.56 | E86: =-SUM('Depr Oct15-Sep16 Revised'!T5:T9) -> -90568.97
D87: =-SUM('Depr Oct15-Sep16 Revised'!V24:V26) -> -8148.37 | E87: =-SUM('Depr Oct15-Sep16 Revised'!T11:T15) -> -1261555.76
D88: =-'Depr Oct15-Sep16 Revised'!V119 -> -105787.1435 | E88: =-SUM('Depr Oct15-Sep16 Revised'!V5:V9) -> -24447.1
E89: =-SUM('Depr Oct15-Sep16 Revised'!V11:V15) -> 197574.12

Sheet Elec Accretion
D1: CURRENT | F1: CURRENT | I1: PROPOSED | L1: PROPOSED | M1: INCREASE
A2: ACCOUNT | D2: DEPRECIATION | E2: CURRENT | F2: RATE | G2: PROPOSED | H2: Difft % | I2: DEPRECIATION | J2: PROPOSED | K2: Difft % | L2: DEPRECIATION | M2: (DECREASE)
A3: NUMBER | C3: DESCRIPTION | D3: EXPENSE | E3: RATE | F3: % | G3: RATE | H3: RATE | I3: EXPENSE AMOUNT | J3: RATE | K3: RATE | L3: EXPENSE AMOUNT | M3: AMOUNT
G4: Per PSE | I4: Per PSE | J4: Per Public Counsel | L4: Per Public Counsel
C6: ELECTRIC ARO ACCRETION RECOVERED IN RATES
C8: STEAM PRODUCTION PLANT
C10: 311 STRUCTURES AND IMPROVEMENTS
A11: 311 | C11: COLSTRIP 1-2 | D11: ='Depr Oct15-Sep16 Revised'!AF5 -> 71456.9887 | E11: 1.23 | F11: =E11*0.01 -> 0.0123 | G11: ='Elec Study Rpt'!V28 -> 0.02280454027 | H11: =G11/F11 -> 1.854027665 | I11: =D11*H11 -> 132483.2339 | J11: =Electric!J14 -> 0.0079 | K11: =J11/G11 -> 0.3464222433 | L11: =I11*K11 -> 45895.13908 | M11: =L11-I11 -> -86588.09479
A12: 311 | C12: COLSTRIP 3-4 | D12: ='Depr Oct15-Sep16 Revised'!AF6 -> 39135.30387 | E12: 1.31 | F12: 0.0131 | G12: ='Elec Study Rpt'!V29 -> 0.02100471768 | H12: 1.603413563 | I12: =D12*H12 -> 62750.07704 | J12: =Electric!J15 -> 0.0206 | K12: =J12/G12 -> 0.980732058 | L12: =I12*K12 -> 61541.01219 | M12: =L12-I12 -> -1209.064844
A13: 311 | C13: FREDERICKSON 1/EPCOR | D13: ='Depr Oct15-Sep16 Revised'!AF9 -> 55301.75 | E13: 3.18 | F13: 0.0318 | G13: ='Elec Study Rpt'!V30 -> 0.04111873074 | H13: 1.293041847 | I13: 71507.47697 | J13: =Electric!J16 -> 0.0284 | K13: 0.6906827981 | L13: 49388.98428 | M13: -22118.49269
C15: TOTAL STRUCTURES AND IMPROVEMENTS | D15: =+SUBTOTAL(9,D11:D13) -> 165894.0426 | I15: =+SUBTOTAL(9,I11:I13) -> 266740.7879 | L15: =+SUBTOTAL(9,L11:L13) -> 156825.1356 | M15: =+SUBTOTAL(9,M11:M13) -> -109915.6523
C17: TOTAL STEAM PRODUCTION PLANT | D17: =SUBTOTAL(9,D11:D16) -> 165894.0426 | I17: =SUBTOTAL(9,I11:I16) -> 266740.7879 | L17: =SUBTOTAL(9,L11:L16) -> 156825.1356 | M17: =SUBTOTAL(9,M11:M16) -> -109915.6523
C19: OTHER PRODUCTION PLANT
C21: 341 STRUCTURES AND IMPROVEMENTS
A22: 341 | C22: FREDERICKSON 1/EPCOR | D22: 0 | E22: 3.33 | F22: =E22*0.01 -> 0.0333 | G22: ='Elec Study Rpt'!V175 -> 0.02466738135 | H22: =G22/F22 -> 0.7407622026 | I22: =D22*H22 -> 0 | J22: =Electric!J173 -> 0.02466738135 | K22: =J22/G22 -> 1 | L22: =I22*K22 -> 0 | M22: =L22-I22 -> 0
A23: 341 | C23: FERNDALE | D23: ='Depr Oct15-Sep16 Revised'!AF8 -> 48247.08 | E23: 1.504422 | F23: 0.01504422 | G23: ='Elec Study Rpt'!V183 -> 0.02280247846 | H23: 1.515696956 | I23: =D23*H23 -> 73127.95228 | J23: =Electric!J182 -> 0.02280247846 | K23: 1 | L23: 73127.95228 | M23: 0
C25: TOTAL STRUCTURES AND IMPROVEMENTS | D25: =+SUBTOTAL(9,D22:D23) -> 48247.08 | I25: =+SUBTOTAL(9,I22:I23) -> 73127.95228 | L25: 73127.95228 | M25: 0
C27: 341.01 STRUCTURES AND IMPROVEMENTS - WIND
A28: 341.01 | C28: LOWER SNAKE RIVER | D28: ='Depr Oct15-Sep16 Revised'!AF12 -> 472792.87 | E28: 4.24 | F28: =E28*0.01 -> 0.0424 | G28: ='Elec Study Rpt'!V188 -> 0.04371854404 | H28: =G28/F28 -> 1.031097737 | I28: =D28*H28 -> 487495.6583 | J28: =Electric!J187 -> 0.04371854404 | K28: =J28/G28 -> 1 | L28: =I28*K28 -> 487495.6583 | M28: =L28-I28 -> 0
A29: 341.01 | C29: LOWER SNAKE RIVER TEMPORARY MET TOWERS | D29: ='Depr Oct15-Sep16 Revised'!AF13 -> 2874.83 | E29: 4.24 | F29: 0.0424 | G29: ='Elec Study Rpt'!V188 -> 0.04371854404 | H29: 1.031097737 | I29: 2964.230707 | J29: =J28 -> 0.04371854404 | K29: 1 | L29: 2964.230707 | M29: 0
A30: 341.01 | C30: HOPKINS RIDGE | D30: ='Depr Oct15-Sep16 Revised'!AF11 -> 266713.8 | E30: 4.24 | F30: 0.0424 | G30: ='Elec Study Rpt'!V189 -> 0.06876400394 | H30: 1.621792546 | I30: 432554.4527 | J30: =Electric!J188 -> 0.06876400394 | K30: 1 | L30: 432554.4527 | M30: 0
A31: 341.01 | C31: WILD HORSE | D31: ='Depr Oct15-Sep16 Revised'!AF15 -> 265931.2 | E31: 4.28 | F31: 0.0428 | G31: ='Elec Study Rpt'!V190 -> 0.05702307468 | H31: 1.332314829 | I31: 354304.0813 | J31: =Electric!J189 -> 0.05702307468 | K31: 1 | L31: 354304.0813 | M31: 0
C33: TOTAL STRUCTURES AND IMPROVEMENTS - WIND | D33: =+SUBTOTAL(9,D28:D31) -> 1008312.7 | I33: =+SUBTOTAL(9,I28:I31) -> 1277318.423 | L33: =+SUBTOTAL(9,L28:L31) -> 1277318.423 | M33: =+SUBTOTAL(9,M28:M31) -> 0
C35: TOTAL OTHER PRODUCTION PLANT | D35: =SUBTOTAL(9,D21:D33) -> 1056559.78 | I35: =SUBTOTAL(9,I21:I33) -> 1350446.375 | L35: 1350446.375 | M35: 0
C38: TRANSMISSION PLANT
A40: 355 | C40: POLES AND FIXTURES | D40: ='Depr Oct15-Sep16 Revised'!AF14+'Depr Oct15-Sep16 Revised'!AF16 -> 173123.8 | E40: 3.02 | F40: =E40*0.01 -> 0.0302 | G40: ='Elec Study Rpt'!V316 -> 0.03038912538 | H40: =G40/F40 -> 1.00626243 | I40: =D40*H40 -> 174207.9757 | J40: =Electric!J336 -> 0.0275 | K40: =J40/G40 -> 0.9049289723 | L40: =I40*K40 -> 157645.8444 | M40: =L40-I40 -> -16562.13128
C42: TOTAL TRANSMISSION PLANT | D42: =+SUBTOTAL(9,D40:D40) -> 173123.8 | I42: =+SUBTOTAL(9,I40:I40) -> 174207.9757 | L42: 157645.8444 | M42: -16562.13128
C45: DISTRIBUTION PLANT
A47: 364 | C47: POLES, TOWERS AND FIXTURES | D47: ='Depr Oct15-Sep16 Revised'!AF7 -> 29083.46 | E47: 3.11 | F47: =E47*0.01 -> 0.0311 | G47: ='Elec Study Rpt'!V344 -> 0.03142787399 | H47: =G47/F47 -> 1.010542572 | I47: =D47*H47 -> 29390.07447 | J47: =Electric!J368 -> 0.03142787399 | K47: =J47/G47 -> 1 | L47: =I47*K47 -> 29390.07447 | M47: =L47-I47 -> 0
C49: TOTAL DISTRIBUTION PLANT | D49: =+SUBTOTAL(9,D47:D47) -> 29083.46 | I49: =+SUBTOTAL(9,I47:I47) -> 29390.07447 | L49: =+SUBTOTAL(9,L47:L47) -> 29390.07447 | M49: =+SUBTOTAL(9,M47:M47) -> 0
C51: TOTAL ELECTRIC ARO ACCRETION RECOVERED IN RATES | D51: =+SUBTOTAL(9,D11:D50) -> 1424661.083 | I51: =+SUBTOTAL(9,I10:I49) -> 1820785.213 | L51: 1694307.43 | M51: -126477.7836
D52: =D51-SUM('Depr Oct15-Sep16 Revised'!AF5:AF9)-SUM('Depr Oct15-Sep16 Revised'!AF11:AF16) -> 0 | E52: chk sb 0
C55: ELECTRIC ARO ACCRETION NOT RECOVERED IN RATES
C57: STEAM PRODUCTION PLANT
C59: 311 STRUCTURES AND IMPROVEMENTS
A60: 311 | C60: COLSTRIP 1-2 | D60: ='Depr Oct15-Sep16 Revised'!AF24 -> 540148.3113 | E60: 1.23 | F60: =E60*0.01 -> 0.0123 | G60: ='Elec Study Rpt'!V28 -> 0.02280454027 | H60: =G60/F60 -> 1.854027665 | J60: =J11 -> 0.0079 | K60: =J60/G60 -> 0.3464222433 | M60: =L60-I60 -> 0
A61: 311 | C61: COLSTRIP 3-4 | D61: ='Depr Oct15-Sep16 Revised'!AF25 -> 584769.7061 | E61: 1.31 | F61: 0.0131 | G61: ='Elec Study Rpt'!V29 -> 0.02100471768 | H61: 1.603413563 | J61: =J12 -> 0.0206 | K61: 0.980732058 | M61: 0
C63: TOTAL STRUCTURES AND IMPROVEMENTS | D63: =+SUBTOTAL(9,D60:D61) -> 1124918.017 | I63: =+SUBTOTAL(9,I60:I61) -> 0 | L63: 0 | M63: 0
C65: TOTAL STEAM PRODUCTION PLANT | D65: =+SUBTOTAL(9,D60:D63) -> 1124918.017 | I65: =+SUBTOTAL(9,I60:I63) -> 0 | L65: 0 | M65: 0
C67: OTHER PRODUCTION PLANT
A69: 341 | C69: CRYSTAL MOUNTAIN | D69: ='Depr Oct15-Sep16 Revised'!AF26 -> 13152.02 | E69: 5 | F69: 0.05 | G69: ='Elec Study Rpt'!V179 -> 0.05046167533 | H69: 1.009233507 | J69: =Electric!J177 -> 0.05046167533 | K69: =J69/G69 -> 1 | M69: =L69-I69 -> 0
C71: TOTAL OTHER PRODUCTION PLANT | D71: =+SUBTOTAL(9,D68:D69) -> 13152.02 | I71: =+SUBTOTAL(9,I68:I69) -> 0 | L71: 0 | M71: 0
C73: GENERAL PLANT
C74: STRUCTURES AND IMPROVEMENTS
A75: 390 | C75: SOUTH KING COMPLEX ELECTRIC PORTION | D75: ='Depr Oct15-Sep16 Revised'!AF27 -> 9932.96608 | E75: 5.27 | F75: 0.0527 | G75: ='Comm Study Rpt'!V20 -> 0.02947968784 | H75: =G75/F75 -> 0.559386866 | J75: ='Common-Elec&Gas'!N11 -> 0.02947968784 | K75: =J75/G75 -> 1 | M75: =L75-I75 -> 0
C77: TOTAL GENERAL PLANT | D77: =+SUBTOTAL(9,D74:D75) -> 9932.96608 | I77: =+SUBTOTAL(9,I74:I75) -> 0 | L77: 0 | M77: 0
C79: TOTAL ELECTRIC ARO ACCRETION NOT RECOVERED IN RATES | D79: =+SUBTOTAL(9,D55:D77) -> 1148003.004 | I79: =+SUBTOTAL(9,I55:I77) -> 0 | L79: 0 | M79: 0
D80: =-SUM('Depr Oct15-Sep16 Revised'!AF24:AF27)+D79 -> 0 | E80: chk sb 0
D82: =D51+D79 -> 2572664.086 | I82: =I51+I79 -> 1820785.213 | L82: 1694307.43 | M82: -126477.7836

Sheet Depr Oct15-Sep16 Revised
A1: ARO | B1: Asset ID | C1: Vintage | D1: FERC | E1: 2015-10-01 | F1: 2015-11-01 | G1: 2015-12-01 | H1: 2016-01-01 | I1: 2016-02-01 | J1: 2016-03-01 | K1: 2016-04-01 | L1: 2016-05-01 | M1: 2016-06-01 | N1: 2016-07-01 | O1: 2016-08-01 | P1: 2016-09-01 | Q1: Depr. Adjustment in Dec ( note 3) | R1: Depr. Adjustment in Jan ( note 4) | S1: Total Depr. AMT Oct 15 - Sep 16 | T1: 403 Adj. Depr | U1: 411 Adj. Accretion ARO-1000 | V1: 403.1 Recalss in Nov. 2015 (note 1) | W1: Calculated (Depr + Accr.) | X1: Recorded Reclass (negative sign in PP) | Y1: Difference between Calculated vs. Recorded | AA1: Manual JE's to 411.10 | AB1: check PP report
A2: Recoverable in rates: | AB2: Depre report 1604 ARO 1000 report
AC3: 403.1 | AF3: 411.1 | AI3: Total
AC4: Electric | AD4: Gas | AE4: Total | AF4: Electric | AG4: Gas | AH4: Total | AI4: Electric | AJ4: Gas | AK4: Total
A5: Colstrip 1 & 2 Ash Pond Capping | B5: 76110 | C5: 2003 | D5: E317 | E5: 0 | F5: 0 | G5: 0 | H5: 0 | I5: 0 | J5: 0 | K5: 0 | L5: 0 | M5: 0 | N5: 0 | O5: 0 | P5: 0 | R5: -3982.36 | S5: =SUM(E5:R5) -> -3982.36 | T5: =+S5 -> -3982.36 | U5: 72109.5312 | W5: =T5+U5+V5 -> 68127.1712 | X5: =+W5 -> 68127.1712 | Y5: =+X5-W5 -> 0 | AA5: -652.5425024 | AC5: =T5 -> -3982.36 | AE5: =SUM(AC5:AD5) -> -3982.36 | AF5: =U5+AA5 -> 71456.9887 | AH5: =SUM(AF5:AG5) -> 71456.9887 | AI5: =AF5+AC5 -> 67474.6287 | AJ5: =AG5+AD5 -> 0 | AK5: =AH5+AE5 -> 67474.6287
A6: Colstrip 3 & 4 Ash Pond Capping | B6: 76111 | C6: 2003 | D6: E317 | E6: 632.55 | F6: 632.55 | G6: 632.55 | H6: 632.55 | I6: 632.55 | J6: 632.55 | K6: 632.55 | L6: 632.55 | M6: 632.55 | N6: 632.55 | O6: 632.55 | P6: 632.55 | R6: -4216.02 | S6: 3374.58 | T6: 3374.58 | U6: 39492.68596 | W6: 42867.26596 | X6: =W6 -> 42867.26596 | Y6: 0 | AA6: -357.3820866 | AC6: =T6 -> 3374.58 | AE6: 3374.58 | AF6: =U6+AA6 -> 39135.30387 | AH6: =SUM(AF6:AG6) -> 39135.30387 | AI6: =AF6+AC6 -> 42509.88387 | AJ6: 0 | AK6: 42509.88387
A7: Distribution Wood Poles | B7: 12771690 | C7: 2005 | D7: E374 | E7: 4459.92 | F7: 4459.91 | G7: 4640.01 | H7: 4485.7 | I7: 4485.71 | J7: 4485.71 | K7: 4485.71 | L7: 4485.7 | M7: 4485.7 | N7: 4485.7 | O7: 4485.69 | P7: 4485.7 | S7: 53931.16 | T7: 53931.16 | U7: 29083.46 | W7: 83014.62 | X7: 83014.62 | Y7: 0 | AC7: =T7 -> 53931.16 | AE7: 53931.16 | AF7: =U7+AA7 -> 29083.46 | AH7: 29083.46 | AI7: 83014.62 | AJ7: 0 | AK7: 83014.62
A8: Ferndale | B8: 12971225 | C8: 2006 | D8: E347 | E8: 3167 | F8: 3167 | G8: 3184.06 | H8: 3201.18 | I8: 3201.18 | J8: 3201.18 | K8: 3201.18 | L8: 3201.18 | M8: 3201.18 | N8: 3201.18 | O8: 3201.18 | P8: 3201.18 | Q8: -9878.67 | S8: 28450.01 | T8: 28450.01 | U8: 37567.05 | V8: =C117 -> 24447.1 | W8: 90464.16 | X8: 90464.16 | Y8: 0 | AA8: 10680.03 | AC8: =T8 -> 28450.01 | AE8: 28450.01 | AF8: =U8+AA8 -> 48247.08 | AH8: 48247.08 | AI8: 76697.09 | AJ8: 0 | AK8: 76697.09
A9: Frederickson 1/Epcor | B9: 85044/45 | C9: 2006 | D9: E317 | E9: 732.97 | F9: 732.96 | G9: 732.96 | H9: 732.96 | I9: 732.97 | J9: 732.96 | K9: 732.96 | L9: 732.97 | M9: 732.96 | N9: 732.97 | O9: 732.97 | P9: 732.97 | S9: 8795.58 | T9: 8795.58 | U9: 55301.75 | W9: 64097.33 | X9: 64097.33 | Y9: 0 | AC9: =T9 -> 8795.58 | AE9: 8795.58 | AF9: =U9+AA9 -> 55301.75 | AH9: 55301.75 | AI9: 64097.33 | AJ9: 0 | AK9: 64097.33
A10: Gas Mains | B10: 12771693 | C10: 2006 | D10: G359 | E10: 12773.59 | F10: 12773.57 | G10: 14332.92 | H10: 14901.68 | I10: 14901.66 | J10: 14901.65 | K10: 14901.64 | L10: 14901.63 | M10: 14901.63 | N10: 14901.64 | O10: 14901.65 | P10: 14901.66 | S10: 173994.92 | T10: 173994.92 | U10: 28810.3 | W10: 202805.22 | X10: 202805.22 | Y10: 0 | AD10: =T10 -> 173994.92 | AE10: 173994.92 | AG10: =U10+AA10 -> 28810.3 | AH10: 28810.3 | AI10: 0 | AJ10: 202805.22 | AK10: 202805.22
A11: Hopkins Ridge Wind Project | B11: 81633 | C11: 2005 | D11: E347 | E11: 1095.91 | F11: 1095.92 | G11: 3651.16 | H11: 6212.3 | I11: 6212.32 | J11: 39810.79 | K11: 64498.11 | L11: 64498.1 | M11: 64498.03 | N11: 64498.03 | O11: 64498.04 | P11: 64498.07 | S11: 445066.78 | T11: 445066.78 | U11: 266713.8 | V11: =C118 -> -25234.39 | W11: 686546.19 | X11: 686546.19 | Y11: 0 | AC11: =T11 -> 445066.78 | AE11: 445066.78 | AF11: =U11+AA11 -> 266713.8 | AH11: 266713.8 | AI11: 711780.58 | AJ11: 0 | AK11: 711780.58
A12: Lower Snake River Wind | B12: 11193345 | C12: 2012 | D12: E347 | E12: 20371.33 | F12: 20371.35 | G12: 12524.54 | H12: 10996.88 | I12: 10996.88 | J12: 38670.69 | K12: 60759.19 | L12: 60759.25 | M12: 60759.19 | N12: 60759.28 | O12: 60759.21 | P12: 60759.24 | S12: 478487.03 | T12: 478487.03 | U12: 472792.87 | V12: =C119 -> -333212.98 | W12: 618066.92 | X12: 618066.92 | Y12: 0 | AC12: 478487.03 | AE12: 478487.03 | AF12: 472792.87 | AH12: 472792.87 | AI12: 951279.9 | AJ12: 0 | AK12: 951279.9
A13: Meteorological Towers -LSR | B13: 13997947 | C13: 2013 | D13: E347 | E13: 2047.48 | F13: 2047.48 | G13: 1101.41 | H13: 131.89 | I13: 131.9 | J13: 131.89 | K13: 131.9 | L13: 131.9 | M13: 131.89 | N13: 131.89 | O13: 131.9 | P13: 131.89 | Q13: -3923.65 | S13: 2459.77 | T13: 2459.77 | U13: 3053.11 | V13: =C120 -> 1277.62 | W13: 6790.5 | X13: 6790.5 | Y13: 0 | AA13: -178.28 | AC13: 2459.77 | AE13: 2459.77 | AF13: 2874.83 | AH13: 2874.83 | AI13: 5334.6 | AJ13: 0 | AK13: 5334.6
A14: Transmission Wood Poles | B14: 82937 | C14: 2005 | D14: E359 | E14: 4864.17 | F14: 4864.18 | G14: 5035.13 | H14: 4988.57 | I14: 9977.16 | J14: 9977.15 | K14: 9977.18 | L14: 9977.14 | M14: 9977.13 | N14: 9977.17 | O14: 9977.13 | P14: 9977.13 | S14: 99569.24 | T14: 99569.24 | U14: 133039.32 | W14: 232608.56 | X14: 232608.56 | Y14: 0 | AC14: 99569.24 | AE14: 99569.24 | AF14: 133039.32 | AH14: 133039.32 | AI14: 232608.56 | AJ14: 0 | AK14: 232608.56
A15: Wild Horse Wind Project (New) | B15: 12971222 | C15: 2013 | D15: E347 | E15: 23027.43 | F15: 23027.41 | G15: 23114.41 | H15: 23201.71 | I15: 23201.76 | J15: 23201.72 | K15: 23201.76 | L15: 23201.74 | M15: 23201.71 | N15: 23201.72 | O15: 23201.76 | P15: 23201.76 | Q15: -42011.95 | S15: 235972.94 | T15: 235972.94 | U15: 212740.68 | V15: =C121 -> 159595.63 | W15: 608309.25 | X15: 608309.25 | Y15: 0 | AA15: 53190.52 | AC15: 235972.94 | AE15: 235972.94 | AF15: 265931.2 | AH15: 265931.2 | AI15: 501904.14 | AJ15: 0 | AK15: 501904.14
A16: Transmission Wood Poles (Site ARO) | T16: 0 | U16: 40084.48 | W16: 40084.48 | Y16: -40084.48 | Z16: 2 | AC16: 0 | AE16: 0 | AF16: 40084.48 | AH16: 40084.48 | AI16: 40084.48 | AJ16: 0 | AK16: 40084.48
Y17: 0
A19: Total recoverable in rates | E19: =SUM(E3:E18) -> 73172.35 | F19: 73172.33 | G19: 68949.15 | H19: 69485.42 | I19: 74474.09 | J19: 135746.29 | K19: 182522.18 | L19: 182522.16 | M19: 182521.97 | N19: 182522.13 | O19: 182522.08 | P19: 182522.15 | Q19: -55814.27 | R19: -8198.38 | S19: 1526119.65 | T19: 1526119.65 | U19: =SUM(U3:U18) -> 1390789.037 | V19: -173127.02 | W19: 2743781.667 | X19: 2703697.187 | Y19: -40084.48 | AA19: 62682.34541 | AC19: =SUM(AC5:AC18) -> 1352124.73 | AD19: =SUM(AD5:AD18) -> 173994.92 | AE19: 1526119.65 | AF19: =SUM(AF5:AF18) -> 1424661.083 | AG19: =SUM(AG5:AG18) -> 28810.3 | AH19: =SUM(AH5:AH18) -> 1453471.383 | AI19: =SUM(AI5:AI18) -> 2776785.813 | AJ19: =SUM(AJ5:AJ18) -> 202805.22 | AK19: =SUM(AK5:AK18) -> 2979591.033
AH20: 0
A22: Not recoverable in rates:
A24: Colstrip 1 & 2 Ash Pond Capping | B24: 76110 | C24: 2003 | D24: E317 | E24: 54257.39 | F24: 54257.42 | G24: 54257.4 | H24: 53925.47 | I24: 53592.53 | J24: 53592.48 | K24: 53592.5 | L24: 53592.58 | M24: 53592.54 | N24: 53592.54 | O24: 53592.56 | P24: 53592.59 | S24: =SUM(E24:R24) -> 645438 | T24: =S24 -> 645438 | U24: 535738.7688 | AA24: 4409.542502 | AC24: =T24 -> 645438 | AE24: =SUM(AC24:AD24) -> 645438 | AF24: =U24+AA24 -> 540148.3113 | AH24: =SUM(AF24:AG24) -> 540148.3113 | AI24: =AF24+AC24 -> 1185586.311 | AJ24: =AG24+AD24 -> 0 | AK24: =AH24+AE24 -> 1185586.311
A25: Colstrip 3 & 4 Ash Pond Capping | B25: 76111 | C25: 2003 | D25: E317 | E25: 58361.57 | F25: 58361.6 | G25: 58361.58 | H25: 58010.17 | I25: 57657.7 | J25: 57657.64 | K25: 57657.67 | L25: 57657.75 | M25: 57657.72 | N25: 57657.71 | O25: 57657.74 | P25: 57657.77 | S25: =SUM(E25:R25) -> 694356.62 | T25: =S25 -> 694356.62 | U25: 580610.284 | AA25: 4159.422087 | AC25: =T25 -> 694356.62 | AE25: =SUM(AC25:AD25) -> 694356.62 | AF25: =U25+AA25 -> 584769.7061 | AH25: 584769.7061 | AI25: 1279126.326 | AJ25: 0 | AK25: 1279126.326
A26: Crystal Mtn. Generator Site | B26: 13084613 | C26: 2013 | D26: E347 | E26: 2663.94 | F26: 2663.94 | G26: 2669.14 | H26: 2674.37 | I26: 2674.36 | J26: 2674.37 | K26: 2674.37 | L26: 2674.37 | M26: 2674.37 | N26: 2674.37 | O26: 2674.37 | P26: 2674.37 | Q26: -1631.4 | S26: =SUM(E26:R26) -> 30434.94 | T26: =S26 -> 30434.94 | U26: 10965.29 | V26: =C125 -> 8148.37 | AA26: 2186.73 | AC26: =T26 -> 30434.94 | AE26: =SUM(AC26:AD26) -> 30434.94 | AF26: =U26+AA26 -> 13152.02 | AH26: 13152.02 | AI26: 43586.96 | AJ26: 0 | AK26: 43586.96
A27: South King Complex | B27: 13056748 | C27: 2013 | D27: C399 | E27: 15388.83 | F27: 15388.83 | G27: 15332.73 | H27: 15275.18 | I27: 15275.18 | J27: 15275.17 | K27: 15275.17 | L27: 15275.18 | M27: 15275.18 | N27: 15275.17 | P27: 0 | Q27: 4431.59 | S27: =SUM(E27:R27) -> 157468.21 | T27: =S27 -> 157468.21 | U27: 13504.32 | V27: =C124 -> -3186.48 | AA27: 1281.28 | AC27: =(T27)*0.6718 -> 105787.1435 | AD27: =(T27)*0.3282 -> 51681.06652 | AE27: =SUM(AC27:AD27) -> 157468.21 | AF27: =(U27+AA27)*0.6718 -> 9932.96608 | AG27: =(U27+AA27)*0.3282 -> 4852.63392 | AH27: 14785.6 | AI27: 115720.1096 | AJ27: 56533.70044 | AK27: 172253.81
A29: Total not recoverable in rates | E29: =SUM(E24:E27) -> 130671.73 | F29: 130671.79 | G29: 130620.85 | H29: 129885.19 | I29: 129199.77 | J29: 129199.66 | K29: 129199.71 | L29: 129199.88 | M29: 129199.81 | N29: 129199.79 | O29: 113924.67 | P29: 113924.73 | Q29: 2800.19 | R29: 0 | S29: 1527697.77 | T29: =SUM(T24:T28) -> 1527697.77 | U29: =SUM(U24:U28) -> 1140818.663 | V29: =SUM(V24:V28) -> 4961.89 | W29: =SUM(W24:W27) -> 0 | X29: =SUM(X24:X27) -> 0 | Y29: =SUM(Y24:Y27) -> 0 | AA29: =SUM(AA24:AA27) -> 12036.97459 | AC29: =SUM(AC24:AC28) -> 1476016.703 | AD29: 51681.06652 | AE29: 1527697.77 | AF29: 1148003.004 | AG29: 4852.63392 | AH29: 1152855.637 | AI29: =SUM(AI24:AI28) -> 2624019.707 | AJ29: 56533.70044 | AK29: 2680553.407
A31: Total ARO Depreciation | E31: =E29+E19 -> 203844.08 | F31: 203844.12 | G31: 199570 | H31: 199370.61 | I31: 203673.86 | J31: 264945.95 | K31: 311721.89 | L31: 311722.04 | M31: 311721.78 | N31: 311721.92 | O31: 296446.75 | P31: 296446.88 | Q31: -53014.08 | R31: -8198.38 | S31: 3053817.42 | T31: 3053817.42 | U31: 2531607.7 | V31: -168165.13 | W31: 2743781.667 | X31: 2703697.187 | Y31: -40084.48 | AA31: 74719.32 | AC31: =AC19+AC29 -> 2828141.433 | AD31: =AD19+AD29 -> 225675.9865 | AE31: 3053817.42 | AF31: 2572664.086 | AG31: 33662.93392 | AH31: 2606327.02 | AI31: 5400805.52 | AJ31: 259338.9204 | AK31: 5660144.44
T32: =T31+V31 -> 2885652.29 | AE32: =T31-AE31 -> 0 | AF32: ='Elec Accretion'!D82-AF31 -> 0 | AH32: =U31+AA31-AH31 -> 0
A33: Note | AC33: =[1]Detail!$G$235-AC31 -> 0 | AD33: =[1]Detail!$H$235-AD31 -> 0 | AE33: =[1]Detail!$I$235-AE31 -> 0 | AF33: =[1]Detail!$G$240-AF31 -> 0 | AG33: =[1]Detail!$H$240-AG31 -> 0 | AH33: =[1]Detail!$I$240-AH31 -> 0
A34: 1. ARO / ARC Recoverable portion:
A36: (1) ARO Recoverable portion:
A37: - Colstrip 1&2: Although Colstrip 1&2 termination date was January 2015, reclass is needed because there is some ARO recovery built into rates. | I37: - Colstrip 3&4: Monthly recoverable accretion amount is calculated based on the original ARO liability balance & revised monthly discount rate.
A38: - Monthly recoverable accretion amount is calculated based on the original ARO liability balance & revised monthly discount.
M39: 0.002616666667 | N39: in 2015
D40: Colstirp 1&2 Monthly Discount Rate | E40: 0.002616666667 | F40: in 2015 | L40: Colstirp 3&4 Monthly Discount Rate | M40: =0.0321/12 -> 0.002675 | N40: in 2016
D41: Colstirp 1&2 Monthly Discount Rate | E41: =0.0321/12 -> 0.002675 | F41: in 2016 | J41: E311 Colstrip 3&4 Com | K41: Prior ARO balance | L41: Accretion Exp. | M41: Ending Balance
B42: E311 Colstrip 1&2 Com | C42: Prior ARO balance | D42: Accretion Exp. | E42: Ending Balance | J42: 2015-10-01 | K42: 1218780.809 | L42: =+K42*$M$39 -> 3189.143116 | M42: =+K42+L42 -> 1221969.952
B43: 2015-10-01 | C43: 2225366.935 | D43: =+C43*$E$40 -> 5823.04348 | E43: =+C43+D43 -> 2231189.979 | J43: 2015-11-01 | K43: =+M42 -> 1221969.952 | L43: =+K43*$M$39 -> 3197.48804 | M43: 1225167.44
B44: 2015-11-01 | C44: =+E43 -> 2231189.979 | D44: =+C44*$E$40 -> 5838.280444 | E44: 2237028.259 | J44: 2015-12-01 | K44: =+M43 -> 1225167.44 | L44: =+K44*$M$39 -> 3205.8548 | M44: 1228373.294
B45: 2015-12-01 | C45: =+E44 -> 2237028.259 | D45: =+C45*$E$40 -> 5853.557278 | E45: 2242881.816 | J45: 2016-01-01 | K45: 1228730.68 | L45: =+ROUND(K45*$M$40,2) -> 3286.85 | M45: 1232017.53
B46: 2016-01-01 | C46: 2243534.36 | D46: =+ROUND(C46*$E$41,2) -> 6001.45 | E46: 2249535.81 | J46: 2016-02-01 | K46: =+M45 -> 1232017.53 | L46: 3295.65 | M46: 1235313.18
B47: 2016-02-01 | C47: =+E46 -> 2249535.81 | D47: 6017.51 | E47: 2255553.32 | J47: 2016-03-01 | K47: 1235313.18 | L47: 3304.46 | M47: 1238617.64
B48: 2016-03-01 | C48: 2255553.32 | D48: 6033.61 | E48: 2261586.93 | J48: 2016-04-01 | K48: 1238617.64 | L48: 3313.3 | M48: 1241930.94
B49: 2016-04-01 | C49: 2261586.93 | D49: 6049.75 | E49: 2267636.68 | J49: 2016-05-01 | K49: 1241930.94 | L49: 3322.17 | M49: 1245253.11
B50: 2016-05-01 | C50: 2267636.68 | D50: 6065.93 | E50: 2273702.61 | J50: 2016-06-01 | K50: 1245253.11 | L50: 3331.05 | M50: 1248584.16
B51: 2016-06-01 | C51: 2273702.61 | D51: 6082.15 | E51: 2279784.76 | J51: 2016-07-01 | K51: 1248584.16 | L51: 3339.96 | M51: 1251924.12
B52: 2016-07-01 | C52: 2279784.76 | D52: 6098.42 | E52: 2285883.18 | J52: 2016-08-01 | K52: 1251924.12 | L52: 3348.9 | M52: 1255273.02
B53: 2016-08-01 | C53: 2285883.18 | D53: 6114.74 | E53: 2291997.92 | J53: 2016-09-01 | K53: 1255273.02 | L53: 3357.86 | M53: 1258630.88
B54: 2016-09-01 | C54: 2291997.92 | D54: 6131.09 | E54: 2298129.01 | J54: Total Accreation Expense | L54: =SUM(L42:L53) -> 39492.68596
B55: 2016-11-01 | C55: =+#REF! -> 
B56: 2016-12-01 | C56: =+E55 -> 
B57: Total Accreation Expense | D57: =SUM(D43:D54) -> 72109.5312
A77: (2) ARC Recoverable portion:
B78: Colstrip | C78: Prior Depr. | D78: Comments
B79: E311 Colstrip 1&2 Com (Ash Pond) | C79: N/A | D79: No monthly depreciation because original termination date was Jan. 2015 & ARO is fully depreciated.
B80: E311 Colstrip 3&4 Com (Ash Pond) | C80: 632.55 | D80: Monthly depr. cost is $632.55 until Jan. 2024 ( original termination date)
A82: While verifying the accuracy of ARO liabilities, Property Accounting noted that Colstrip AROs had an incorrect inflation/ discount rate was set up on PowerPlant because CAFRF should be the average of multiple years cash outflows (3.21%) instead of CARFR averages from 2015 to 2040 (3.14%). Therefore, based on the revised inflation/ discount rate, we will adjust the monthly recoverable accretion amount. This amount is calculated based on the original ARO liability balance & revised monthly discount rate because there is some ARO recovery built into rates.
A84: Colstrip unit 1&2: Underlying Asset Adjustment
B85: Colstrip unit 3&4 ARO liability in July 2015 (recoverable in rate) | C85: 2213766.4
B86: Current monthly discount rate | C86: =3.14%/12 -> 0.002616666667
B87: Updated monthly discount rate (should be) | C87: =3.21%/12 -> 0.002675
B88: Current Discount Rate (3.14%) | E88: Updated Discount Rate (3.21%) - Should Be
A89: E311 Colstrip 3&4 Com (Ash Pond) | B89: Prior ARO balance | C89: Accretion Exp. | D89: Ending Balance | E89: Prior ARO balance | F89: Accretion Exp. | G89: Ending Balance | H89: Difference
A90: 2015-08-01 | B90: 2213766.4 | C90: 5792.688747 | D90: 2219559.089 | E90: 2213766.4 | F90: 5921.82512 | G90: 2219688.225 | H90: 129.1363733
A91: 2015-09-01 | B91: 2219559.089 | C91: 5807.846282 | D91: 2225366.935 | E91: 2219688.225 | F91: 5937.666002 | G91: 2225625.891 | H91: 129.81972
A92: 2015-10-01 | B92: 2225366.935 | C92: 5823.04348 | D92: 2231189.979 | E92: 2225625.891 | F92: 5953.549259 | G92: 2231579.44 | H92: 130.5057788
A93: 2015-11-01 | B93: 2231189.979 | C93: 5838.280444 | D93: 2237028.259 | E93: 2231579.44 | F93: 5969.475003 | G93: 2237548.915 | H93: 131.1945593
A94: 2015-12-01 | B94: 2237028.259 | C94: 5853.557278 | D94: 2242881.816 | E94: 2237548.915 | F94: 5985.443349 | G94: 2243534.359 | H94: 131.8860711
G96: Accretion Adjustment | H96: =SUM(H90:H94) -> 652.5425024
A97: Colstrip unit 3&4: Underlying Asset Adjustment
B98: Colstrip unit 3&4 ARO liability in July 2015 (recoverable in rate) | C98: 1212427.47
B99: Current monthly discount rate | C99: =3.14%/12 -> 0.002616666667
B100: Updated monthly discount rate (should be) | C100: =3.21%/12 -> 0.002675
B101: Current Discount Rate (3.14%) | E101: Updated Discount Rate (3.21%) - Should Be
A102: E311 Colstrip 3&4 Com (Ash Pond) | B102: Prior ARO balance | C102: Accretion Exp. | D102: Ending Balance | E102: Prior ARO balance | F102: Accretion Exp. | G102: Ending Balance | H102: Difference
A103: 2015-08-01 | B103: 1212427.47 | C103: 3172.518547 | D103: 1215599.989 | E103: 1212427.47 | F103: 3243.243482 | G103: 1215670.713 | H103: 70.72493575
A104: 2015-09-01 | B104: 1215599.989 | C104: 3180.81997 | D104: 1218780.809 | E104: 1215670.713 | F104: 3251.919159 | G104: 1218922.633 | H104: 71.09918854
A105: 2015-10-01 | B105: 1218780.809 | C105: 3189.143116 | D105: 1221969.952 | E105: 1218922.633 | F105: 3260.618042 | G105: 1222183.251 | H105: 71.4749267
A106: 2015-11-01 | B106: 1221969.952 | C106: 3197.48804 | D106: 1225167.44 | E106: 1222183.251 | F106: 3269.340196 | G106: 1225452.591 | H106: 71.85215547
A107: 2015-12-01 | B107: 1225167.44 | C107: 3205.8548 | D107: 1228373.294 | E107: 1225452.591 | F107: 3278.085681 | G107: 1228730.677 | H107: 72.23088012
F109: Accretion Adjustment | G109: Accretion Adjustment | H109: =SUM(H103:H107) -> 357.3820866
A111: 1. PA adjusted the accretion expense (decrease by $168,185.14) because ,after 2007 conversion, incorrect inflation/discount rate set up on PowerPlant in July 2015. In November 2015, PA found that
A112: additional JE will be needed to reclass from the underlying asset to accumulated reserve for ARO recoverable in rates (-$173,127.02).
A114: ARO Accretion Adjustment 07-2015 Due to inflation/discount rate correction
A115: ARO | C115: Add. Reclass AMT in Nov. 15 | V115: 2017 GRC Four Factor Alloacator For South King 403.1 Depr. | X115: 2017 GRC Four Factor Alloacator For South King 411.1 Depr.
A116: Recoverable in rates: | V116: Electric | W116: Gas | X116: Electric | Y116: Gas
A117: Ferndale | C117: 24447.1 | V117: ='Common-Elec&Gas'!E5 -> 0.6718 | W117: ='Common-Elec&Gas'!F5 -> 0.3282 | X117: =V117 -> 0.6718 | Y117: =W117 -> 0.3282
A118: Hopkins Ridge Wind Project | C118: -25234.39
A119: Lower Snake River Wind | C119: -333212.98 | U119: Electric Portion S King Complex | V119: =(T27)*V117 -> 105787.1435 | X119: =U27*V117 -> 9072.202176
A120: Meteorological Towers -LSR | C120: 1277.62 | U120: Gas Portion S King Complex | V120: =(T27)*W117 -> 51681.06652 | X120: =U27*Y117 -> 4432.117824
A121: Wild Horse Wind Project (New) | C121: 159595.63 | V121: =SUM(V119:V120) -> 157468.21 | X121: =SUM(X119:X120) -> 13504.32
A122: Total recoverable in rates | C122: =SUM(C117:C121) -> -173127.02 | V122: =(T27)-V121 -> 0 | W122: Chk | X122: =U27-X121 -> 0 | Y122: Chk
A123: Not recovered in rates:
A124: South King Complex | C124: -3186.48
A125: Crystal Mtn. Generator Site | C125: 8148.37
A126: Total not recovered in rates | C126: =SUM(C124:C125) -> 4961.89
A128: 2. For the Transmission Wood Poles, additional accretion of $40,084.48 will be reclassed to the underlying assets in November 2016
A129: 3. PA adjusted the depreciation expenses (decrease by $53,014.08 in December)
A130: 4. Depreciation expense was decrease by $8k because Colstrip AROs had an incorrect inflation/ discount rate was set up on PowerPlant because CAFRF should be the average of multiple years cash outflows
A131: (3.21%) instead of CARFR averages from 2015 to 2040 (3.14%). Going forward, ARO depreciation will automatically reallocate over remaining life from 2016 to 2040.

Sheet CC300
A1: 12ME Sep 2015 D&A Expense | C1: Total | E1: Electric | F1: Gas | G1: Common | I1: Check
A2: In New Depr Study | C2: =SUM(E2:G2) -> 388358848 | E2: 250591014 | F2: 114732150 | G2: 23035684
A3: Not Part of Study | C3: =SUM(E3:G3) -> 45296621.93 | E3: 11877723 | F3: 1734999 | G3: =30769970+756461.72+157468.21 -> 31683899.93 | J3: Common Includes Landis & Gyr $756,461.72 and ARO $157,468.21
A4: PP D&A Expense per 1085 Combined | C4: 433655470.4 | E4: 262468737.4 | F4: 116467149.3 | G4: =54719583.69 -> 54719583.69 | I4: =C4-E4-F4-G4 -> 0
C5: =C4-C3-C2 -> 0.4800000191 | E5: =E4-E3-E2 -> 0.400000006 | F5: =F4-F3-F2 -> 0.3199999928 | G5: -0.2400000021
A6: Not in GAAP D&A Expense
A7: CC300 WO 40309300 | C7: =SUM(E7:G7) -> -884454.47 | E7: -481479.76 | F7: -237283.35 | G7: -165691.36 | I7: =C7-E7-F7-G7 -> 0
A8: Capital Lease WO 90201001 | C8: -756461.72 | G8: =C8 -> -756461.72 | I8: =C8-E8-F8-G8 -> 0
A11: SAP Transaction
A12: 40300341 | C12: -173057.07 | F12: =C12 -> -173057.07 | I12: =C12-E12-F12-G12 -> 0 | J12: Booked as a depreciation expense in SAP, but a reserve expense in PP.
A14: Total Utility Plant D&A | C14: =SUBTOTAL(9,C4:C13) -> 431841497.6 | E14: =SUBTOTAL(9,E4:E13) -> 261987258 | F14: =SUBTOTAL(9,F4:F13) -> 116056809.2 | G14: 53797430.37 | I14: =C14-E14-F14-G14 -> 0
A16: GAAP D&A Expense - Utility Plant
A17: ***** Total Depreciation Expense | C17: 390437769.9 | E17: 252831199 | F17: 114495844.8 | G17: 23110726.1 | I17: =C17-E17-F17-G17 -> 0
A18: ** Total Amortization Expense | C18: 41403037.44 | E18: 9155368.79 | F18: 1560964.14 | G18: 30686704.51 | I18: =C18-E18-F18-G18 -> 0
A19: Total Utility Plant D&A per GAAP IS | C19: =SUBTOTAL(9,C17:C18) -> 431840807.3 | E19: =SUBTOTAL(9,E17:E18) -> 261986567.8 | F19: 116056808.9 | G19: 53797430.61 | I19: 0
A20: Check | C20: =C14-C19 -> 690.32 | E20: =E14-E19 -> 690.24 | F20: =F14-F19 -> 0.3199999928 | G20: =G14-G19 -> -0.2400000021 | I20: -3.725290298e-08
A22: Add back Accretion Expense
A23: Actual GAAP Expense - Total | C23: =SUM(E23:G23) -> -856858.48 | E23: -61849.08 | F23: -927658 | G23: 132648.6
C27: TRANSPORTATION EQUIPMENT | E27: =Electric!D405 -> 808903.53 | G27: ='Common-Elec&Gas'!D25 -> 374087.05
C28: POWER OPERATED EQUIPMENT | E28: =Electric!D425 -> 363063.33 | G28: ='Common-Elec&Gas'!D35 -> 24310.8
C29: TOTAL TRANSPORTATION & PWR EQUIPMENT | E29: =SUM(E27:E28) -> 1171966.86 | G29: =SUM(G27:G28) -> 398397.85
C30: PORTION NOT IN INCOME STATEMENT | E30: =-E7 -> 481479.76 | G30: =-G7 -> 165691.36
C31: % NOT INCLUDED IN INCOME STATEMENT | E31: =E30/E29 -> 0.4108305247 | G31: =G30/G29 -> 0.4158942123
C32: % INCLUDED IN INCOME STATEMENT | E32: =1-E31 -> 0.5891694753 | G32: =1-G31 -> 0.5841057877

Sheet RB&ISbyFERC
B5: =Electric!A9 -> 311 | C5: =Electric!M9 -> 0 | D5: =VLOOKUP(B5,$A$456:$A$537,1,FALSE) -> 311
B6: =B5 -> 311 | C6: =Electric!M10 -> -361970.2294 | D6: 311
B7: 311 | C7: =Electric!M11 -> -296513.7503 | D7: 311
B8: 311 | C8: =Electric!M12 -> -22475.82517 | D8: 311
B9: 311 | C9: =Electric!M13 -> -39874.88148 | D9: 311
B10: 311 | C10: =Electric!M14 -> -373209.8218 | D10: 311
B11: 311 | C11: =Electric!M15 -> -26905.0723 | D11: 311
B12: 311 | C12: =Electric!M16 -> -347.7532961 | D12: 311
B13: 311 | C13: =Electric!M17 -> 34391.6197 | D13: 311
B14: 311 | C14: =Electric!M18 -> 525.5664825 | D14: 311
B15: 311 | C15: =Electric!M19 -> 41480.02295 | D15: 311
B16: 311 | C16: =Electric!M20 -> 14536.74722 | D16: 311
B17: 311 | D17: 311
B18: 311 | D18: 311
B19: 311 | D19: 311
B20: =Electric!A24 -> 312 | D20: 312
B21: =B20 -> 312 | C21: =Electric!M25 -> -5048484.523 | D21: 312
B22: 312 | C22: =Electric!M26 -> -5525419.058 | D22: 312
B23: 312 | C23: =Electric!M27 -> -547055.1056 | D23: 312
B24: 312 | C24: =Electric!M28 -> -674867.8128 | D24: 312
B25: 312 | C25: =Electric!M29 -> -236957.5584 | D25: 312
B26: 312 | C26: =Electric!M30 -> -135694.4051 | D26: 312
B27: 312 | C27: =Electric!M31 -> 585003.0755 | D27: 312
B28: 312 | C28: =Electric!M32 -> 13917.87372 | D28: 312
B29: 312 | C29: =Electric!M33 -> 1588085.504 | D29: 312
B30: 312 | C30: =Electric!M34 -> -108868.5783 | D30: 312
B31: 312 | C31: =Electric!M35 -> 479921.0056 | D31: 312
B32: 312 | C32: =Electric!M36 -> 1179850.554 | D32: 312
B33: 312 | D33: 312
B34: 312 | D34: 312
B35: 312 | D35: 312
B36: =Electric!A40 -> 314 | D36: 314
B37: =B36 -> 314 | C37: =Electric!M41 -> -2674958.576 | D37: 314
B38: 314 | C38: =Electric!M42 -> -3200080.259 | D38: 314
B39: 314 | C39: =Electric!M43 -> -902688.7916 | D39: 314
B40: 314 | C40: =Electric!M44 -> -648794.3873 | D40: 314
B41: 314 | C41: =Electric!M45 -> -106560.2877 | D41: 314
B42: 314 | C42: =Electric!M46 -> 230725.1094 | D42: 314
B43: 314 | C43: =Electric!M47 -> -20729.50446 | D43: 314
B44: 314 | C44: =Electric!M48 -> 1596040.898 | D44: 314
B45: 314 | C45: =Electric!M49 -> -21169.62293 | D45: 314
B46: 314 | C46: =Electric!M50 -> 538163.7045 | D46: 314
B47: 314 | C47: =Electric!M51 -> 420121.6442 | D47: 314
B48: 314 | D48: 314
B49: 314 | D49: 314
B50: 314 | D50: 314
B51: =Electric!A55 -> 315 | D51: 315
B52: =B51 -> 315 | C52: =Electric!M56 -> -244588.7743 | D52: 315
B53: 315 | C53: =Electric!M57 -> -284501.738 | D53: 315
B54: 315 | C54: =Electric!M58 -> -37832.84542 | D54: 315
B55: 315 | C55: =Electric!M59 -> -46279.60959 | D55: 315
B56: 315 | C56: =Electric!M60 -> -67362.39464 | D56: 315
B57: 315 | C57: =Electric!M61 -> -38637.62056 | D57: 315
B58: 315 | C58: =Electric!M62 -> 25518.68221 | D58: 315
B59: 315 | C59: =Electric!M63 -> 539.4067479 | D59: 315
B60: 315 | C60: =Electric!M64 -> 137306.6154 | D60: 315
B61: 315 | C61: =Electric!M65 -> 2022.355567 | D61: 315
B62: 315 | C62: =Electric!M66 -> 20314.67007 | D62: 315
B63: 315 | C63: =Electric!M67 -> 33357.94605 | D63: 315
B64: 315 | D64: 315
B65: 315 | D65: 315
B66: 315 | D66: 315
B67: =Electric!A71 -> 316 | D67: 316
B68: =B67 -> 316 | C68: =Electric!M72 -> -38682.52251 | D68: 316
B69: 316 | C69: =Electric!M73 -> -38923.20981 | D69: =VLOOKUP(B69,$A$456:$A$537,1,FALSE) -> 316
B70: 316 | C70: =Electric!M74 -> -3940.472784 | D70: 316
B71: 316 | C71: =Electric!M75 -> -6140.205777 | D71: 316
B72: 316 | C72: =Electric!M76 -> 23455.76925 | D72: 316
B73: 316 | C73: =Electric!M77 -> 1866.689639 | D73: 316
B74: 316 | C74: =Electric!M78 -> 5588.696435 | D74: 316
B75: 316 | C75: =Electric!M79 -> 1694.517235 | D75: 316
B76: 316 | C76: =Electric!M80 -> 137.6599324 | D76: 316
B77: 316 | C77: =Electric!M81 -> 338.3326527 | D77: 316
B78: 316 | C78: =Electric!M82 -> 4555.985365 | D78: 316
B79: 316 | C79: =Electric!M83 -> 1890.714259 | D79: 316
B80: 316 | D80: 316
B81: 316 | D81: 316
B82: 316 | D82: 316
B83: 316 | D83: 316
B84: 316 | D84: 316
B85: 316 | D85: 316
B86: 316 | D86: 316
B87: 316 | D87: 316
B88: =Electric!A92 -> 330.1 | C88: =Electric!M92 -> 0 | D88: 330.1
B89: =Electric!A93 -> 331 | C89: =Electric!M93 -> 0 | D89: 331
B90: =B89 -> 331 | C90: =Electric!M94 -> -102.7242375 | D90: 331
B91: 331 | C91: =Electric!M95 -> -636.1417864 | D91: 331
B92: 331 | C92: =Electric!M96 -> -4703.473024 | D92: 331
B93: 331 | C93: =Electric!M97 -> 610.8154731 | D93: 331
B94: 331 | C94: =Electric!M98 -> 2238.964541 | D94: 331
B95: 331 | C95: =Electric!M99 -> 694.4798501 | D95: 331
B96: 331 | C96: =Electric!M100 -> 0 | D96: 331
B97: 331 | D97: 331
B98: 331 | D98: 331
B99: 331 | D99: 331
B100: =Electric!A104 -> 332 | D100: 332
B101: =B100 -> 332 | C101: =Electric!M105 -> -8301.172409 | D101: 332
B102: 332 | C102: =Electric!M106 -> -14906.65663 | D102: 332
B103: 332 | C103: =Electric!M107 -> -34990.38442 | D103: 332
B104: 332 | C104: =Electric!M108 -> -5.805505701 | D104: 332
B105: 332 | C105: =Electric!M109 -> -376.1564281 | D105: 332
B106: 332 | C106: =Electric!M110 -> -27.66136394 | D106: 332
B107: 332 | C107: =Electric!M111 -> -4879.71683 | D107: 332
B108: 332 | D108: 332
B109: 332 | D109: 332
B110: 332 | D110: 332
B111: =Electric!A115 -> 333 | D111: 333
B112: =B111 -> 333 | C112: =Electric!M116 -> -2836.610495 | D112: 333
B113: 333 | C113: =Electric!M117 -> -7718.197396 | D113: 333
B114: 333 | C114: =Electric!M118 -> 0 | D114: 333
B115: 333 | C115: =Electric!M119 -> -631.1078798 | D115: 333
B116: 333 | C116: =Electric!M120 -> -12992.70164 | D116: 333
B117: 333 | C117: =Electric!M121 -> 209.012139 | D117: 333
B118: 333 | C118: =Electric!M122 -> 48.65249877 | D118: 333
B119: 333 | D119: 333
B120: 333 | D120: 333
B121: 333 | D121: 333
B122: =Electric!A126 -> 334 | D122: 334
B123: =B122 -> 334 | C123: =Electric!M127 -> -563.3498979 | D123: 334
B124: 334 | C124: =Electric!M128 -> -3740.923088 | D124: 334
B125: 334 | C125: =Electric!M129 -> -657.5349572 | D125: 334
B126: 334 | C126: =Electric!M130 -> -7099.432285 | D126: 334
B127: 334 | C127: =Electric!M131 -> -379.9446569 | D127: 334
B128: 334 | C128: =Electric!M132 -> 0 | D128: 334
B129: 334 | D129: 334
B130: 334 | D130: 334
B131: 334 | D131: 334
B132: =Electric!A136 -> 335 | D132: 335
B133: =B132 -> 335 | C133: =Electric!M137 -> -176.9216388 | D133: =VLOOKUP(B133,$A$456:$A$537,1,FALSE) -> 335
B134: 335 | C134: =Electric!M138 -> -1707.568777 | D134: 335
B135: 335 | C135: =Electric!M139 -> -277.0684582 | D135: 335
B136: 335 | C136: =Electric!M140 -> 53.5230853 | D136: 335
B137: 335 | C137: =Electric!M141 -> -530.1487073 | D137: 335
B138: 335 | C138: =Electric!M142 -> -0.1817038677 | D138: 335
B139: 335 | D139: 335
B140: 335 | D140: 335
B141: 335 | D141: 335
B142: =Electric!A146 -> 335.1 | D142: 335.1
B143: =B142 -> 335.1 | C143: =Electric!M147 -> -0.06519505027 | D143: 335.1
B144: 335.1 | C144: =Electric!M148 -> -37.67418381 | D144: 335.1
B145: 335.1 | C145: =Electric!M149 -> -16.16964074 | D145: 335.1
B146: 335.1 | C146: =Electric!M150 -> 20.17826126 | D146: 335.1
B147: 335.1 | C147: =Electric!M151 -> 2.780657762 | D147: 335.1
B148: 335.1 | D148: 335.1
B149: 335.1 | D149: 335.1
B150: 335.1 | D150: 335.1
B151: =Electric!A155 -> 336 | D151: 336
B152: =B151 -> 336 | C152: =Electric!M156 -> 1.726643601 | D152: 336
B153: 336 | C153: =Electric!M157 -> 24.53557972 | D153: 336
B154: 336 | C154: =Electric!M158 -> 0 | D154: 336
B155: 336 | C155: =Electric!M159 -> 54.26720264 | D155: 336
B156: 336 | C156: =Electric!M160 -> -2.794690172 | D156: 336
B157: 336 | C157: =Electric!M161 -> 0 | D157: 336
B158: 336 | D158: 336
B159: 336 | D159: 336
B160: 336 | D160: 336
B161: 336 | D161: 336
B162: 336 | D162: 336
B163: 336 | D163: 336
B164: 336 | D164: 336
B165: 336 | D165: 336
B166: =Electric!A170 -> 340.1 | C166: =Electric!M170 -> 0 | D166: 340.1
B167: =Electric!A171 -> 341 | C167: =Electric!M171 -> 0 | D167: 341
B168: =B167 -> 341 | C168: =Electric!M172 -> 0 | D168: 341
B169: 341 | C169: =Electric!M173 -> 0 | D169: 341
B170: 341 | C170: =Electric!M174 -> 0 | D170: 341
B171: 341 | C171: =Electric!M175 -> 0 | D171: 341
B172: 341 | C172: =Electric!M176 -> 0 | D172: 341
B173: 341 | C173: =Electric!M177 -> 0 | D173: 341
B174: 341 | C174: =Electric!M178 -> 0 | D174: 341
B175: 341 | C175: =Electric!M179 -> 0 | D175: 341
B176: 341 | C176: =Electric!M180 -> 0 | D176: 341
B177: 341 | C177: =Electric!M181 -> 0 | D177: 341
B178: 341 | C178: =Electric!M182 -> 0 | D178: 341
B179: 341 | D179: 341
B180: 341 | D180: 341
B181: 341 | D181: 341
B182: =Electric!A186 -> 341.01 | D182: 341.01
B183: =B182 -> 341.01 | C183: =Electric!M187 -> 0 | D183: 341.01
B184: 341.01 | C184: =Electric!M188 -> 0 | D184: 341.01
B185: 341.01 | C185: =Electric!M189 -> 0 | D185: 341.01
B186: 341.01 | D186: 341.01
B187: 341.01 | D187: 341.01
B188: 341.01 | D188: 341.01
B189: =Electric!A193 -> 342 | D189: 342
B190: =B189 -> 342 | C190: =Electric!M194 -> 0 | D190: 342
B191: 342 | C191: =Electric!M195 -> 0 | D191: 342
B192: 342 | C192: =Electric!M196 -> 0 | D192: 342
B193: 342 | C193: =Electric!M197 -> 0 | D193: 342
B194: 342 | C194: =Electric!M198 -> 0 | D194: 342
B195: 342 | C195: =Electric!M199 -> 0 | D195: 342
B196: 342 | C196: =Electric!M200 -> 0 | D196: 342
B197: 342 | C197: =Electric!M201 -> 0 | D197: =VLOOKUP(B197,$A$456:$A$537,1,FALSE) -> 342
B198: 342 | C198: =Electric!M202 -> 0 | D198: 342
B199: 342 | C199: =Electric!M203 -> 0 | D199: 342
B200: 342 | C200: =Electric!M204 -> 0 | D200: 342
B201: 342 | D201: 342
B202: 342 | D202: 342
B203: 342 | D203: 342
B204: =Electric!A208 -> 344 | D204: 344
... 351 more rows
